Workbook

Sheet Accueil
G20: Pour initialiser le classeur avec vos données personnelles cliquez : | H20: ici

Sheet Param (hidden)
B1: poids | C1: Hauteur | D1: Age | E1: MétabBase | G1: Profil | K1: Black & Al = 230 ⋅ P 0 , 48 ⋅ T 0 , 50 ⋅ A − 0 , 13 | Q1: G R O U P E S D' A L I M E N T S
A2: FEMME | B2: 68 | C2: 163 | D2: 57 | E2: 161 | G2: 1.2 | Q2: Abat. cuit (aliment moyen)
B3: =9.99*B2 -> 679.32 | C3: =6.25*C2 -> 1018.75 | D3: =5*D2 -> 285 | E3: =SUM(B3:D3)-E2 -> 1822.07 | G3: 1.4 | H3: =E3*Profil -> 2550.898 | Q3: abats
A4: HOMME | E4: 5 | G4: 1.6 | K4: Black & Al = 259 ⋅ P 0 , 48 ⋅ T 0 , 50 ⋅ A − 0 , 13 | Q4: agneau et mouton
B5: =9.99*B4 -> 0 | C5: =6.25*C4 -> 0 | D5: =5*D4 -> 0 | E5: =SUM(B5:D5)+E4 -> 5 | G5: 1.7 | H5: =E5*Profil -> 7 | Q5: aides culinaires
G6: 1.9 | Q6: algues
A7: H & B | B7: =9.6*B2 -> 652.8 | C7: =1.85*C2 -> 301.55 | D7: =4.68*D2 -> 266.76 | E7: =B7+C7-D7+655 -> 1342.59 | Q7: autres desserts
B8: =13.75*B4 -> 0 | C8: =5*C4 -> 0 | D8: =6.7*D4 -> 0 | E8: =B8+C8-D866 -> 0 | G8: 1.4 | H8: =E8*G2 -> 0 | Q8: autres fromages et spécialités
Q9: autres matières grasses
A10: B & A Corr. | B10: =230*B2^0.48*C2^0.5*D2^-0.13/10 -> 1315.716088 | Q10: autres produits à base de viande
H11: Détermination du Besoin Journalier | Q11: autres spécialités charcutières
D12: Cliquez (ci-dessus)votre niveau d'activité habituel | H12: =B10*Profil -> 1842.002523 | I12: Valeur cible utilisée pour la lecture du graphique (Feuille Calculs) | Q12: autres viandes
A13: Activité : | B13: Sédentaire | C13: Peu Actif | D13: Moyen | E13: Actif | F13: Sportif | Q13: barres céréalières
D14: Le statut appliqué est coloré en marron | Q14: beurres
Q15: bières et cidres
Q16: biscottes et pains grillés
B17: Cette feuille est une feuille de paramètre. | Q17: biscuits apéritifs
D18: Ces paramètres sont pertinents pour des personnes en surpoid ou/et agées. | Q18: biscuits sucrés
Q19: bœuf et veau
B20: Les données grisées sont des paramètres de calculs établis automatiquement : Ne les modifiés pas ! | Q20: Boisson à base de riz
B21: Les résultats obtenus sont appliqués à la feuille "Calculs" | Q21: boissons à reconstituer
Q22: boissons rafraîchissantes lactées
E23: La feuille n'est pas protégée… Le code VBA non plus : | Q23: boissons rafraîchissantes sans alcool
F24: Conservez en lieu sur le classeur original ! | Q24: boissons végétales
Q25: café. thé. cacao etc. prêts à consommer
Q26: céréales de petit-déjeuner
Q27: céréales et biscuits infantiles
Q28: charcuteries
Q29: chocolats et produits à base de chocolat
Q30: cocktails
Q31: compotes et assimilés
Q32: condiments
Q33: confiseries non chocolatées
Q34: confitures et assimilés
Q35: crèmes et spécialités à base de crème
Q36: denrées destinées à une alimentation particulière
Q37: desserts glacés
Q38: desserts infantiles
Q39: desserts lactés
Q40: dinde
Q41: eaux
Q42: épices
Q43: farines
Q44: feuilletées et autres entrées
Q45: Foie gras. canard. bloc (aliment moyen)
Q46: Fromage
Q47: fromage fondus
Q48: fromages à pâte molle
Q49: fromages à pâte persillée
Q50: fromages à pâte pressée
Q51: fromages blancs
Q52: fruits à coque et graines oléagineuses
Q53: fruits appertisés
Q54: fruits crus
Q55: fruits séchés
Q56: gâteaux et pâtisseries
Q57: gibier
Q58: Glace (aliment moyen)
Q59: glaces
Q60: herbes fraîches
Q61: herbes séchées
Q62: huiles de poissons
Q63: huiles et graisses végétales
Q64: ingrédients divers
Q65: jambons cuits
Q66: jambons secs et crus
Q67: jus
Q68: Lait
Q69: laits autres que de vache
Q70: laits de vache concentrés ou en poudre
Q71: laits de vaches liquides (non concentrés)
Q72: laits et boissons infantiles
Q73: légumes crus
Q74: légumes cuits
Q75: légumes séchés ou déshydratés
Q76: légumineuses cuites
Q77: légumineuses fraîches
Q78: légumineuses sèches
Q79: margarines
Q80: mollusques et crustacés crus
Q81: mollusques et crustacés cuits
Q82: nectars
Q83: œufs crus
Q84: œufs cuits
Q85: omelettes et autres ovoproduits
Q86: pains
Q87: pâtes à tarte
Q88: pâtés et terrines
Q89: pâtes. riz et céréales crus
Q90: pâtes. riz et céréales cuits
Q91: petits pots salés et plats infantiles
Q92: pizzas. tartes et crêpes salées
Q93: plats de céréales/pâtes
Q94: plats de fromage
Q95: plats de légumes/légumineuses
Q96: plats de poisson et féculents
Q97: plats de poisson sans garniture
Q98: plats de viande et féculents
Q99: plats de viande et légumes/légumineuses
Q100: plats de viande sans garniture
Q101: poissons crus
Q102: poissons cuits
Q103: pommes de terre et autres tubercules
Q104: porc
Q105: poulet
Q106: produits à base de poissons et produits de la mer
Q107: quenelles
Q108: rillettes
Q109: salades composées et crudités
Q110: sandwichs
Q111: sauces chaudes
Q112: sauces condimentaires
Q113: sauces sucrées
Q114: saucisses et assimilés
Q115: saucisson secs
Q116: sels
Q117: sorbets
Q118: soupes
Q119: sucres. miels et assimilés
Q120: Viande blanche. cuite (aliment moyen)
Q121: Viande cuite (aliment moyen)
Q122: Viande rouge. cuite (aliment moyen)
Q123: viennoiseries
Q124: vins
Q125: Volaille. cuite (aliment moyen)
Q126: yaourts et spécialités laitières type yaourt

Sheet BD
A1: iD | B1: Groupe d'aliment | C1: ="Libellé (Nombres de références : " & MAX(A:A) -> Libellé (Nombres de références : 2827 | D1: Qte | E1: (kcal/100g) | F1: Eau (g/100g) | G1: Protéines (g/100g) | H1: Glucides (g/100g) | I1: Lipides (g/100g) | J1: Sucres (g/100g) | K1: Amidon (g/100g) | L1: Fibres alimentaires (g/100g) | M1: Polyols totaux (g/100g) | N1: Cendres (g/100g) | O1: Alcool (g/100g) | P1: Acides organiques (g/100g) | Q1: AG saturés (g/100g) | R1: AG monoinsaturés (g/100g) | S1: AG polyinsaturés (g/100g) | T1: AG 4:0. butyrique (g/100g) | U1: AG 6:0. caproïque (g/100g) | V1: AG 8:0. caprylique (g/100g) | W1: AG 10:0. caprique (g/100g) | X1: AG 12:0. laurique (g/100g) | Y1: AG 14:0. myristique (g/100g) | Z1: AG 16:0. palmitique (g/100g) | AA1: AG 18:0. stéarique (g/100g) | AB1: AG 18:1 9c (n-9). oléique (g/100g) | AC1: AG 18:2 9c.12c (n-6). linoléique (g/100g) | AD1: AG 18:3 c9.c12.c15 (n-3). alpha-linolénique (g/100g) | AE1: AG 20:4 5c.8c.11c.14c (n-6). arachidonique (g/100g) | AF1: AG 20:5 5c.8c.11c.14c.17c (n-3) EPA (g/100g) | AG1: AG 22:6 4c.7c.10c.13c.16c.19c (n-3) DHA (g/100g) | AH1: Cholestérol (mg/100g) | AI1: Sel chlorure de sodium (g/100g) | AJ1: Calcium (mg/100g) | AK1: Chlorure (mg/100g) | AL1: Cuivre (mg/100g) | AM1: Fer (mg/100g) | AN1: Iode (µg/100g) | AO1: Magnésium (mg/100g) | AP1: Manganèse (mg/100g) | AQ1: Phosphore (mg/100g) | AR1: Potassium (mg/100g) | AS1: Sélénium (µg/100g) | AT1: Sodium (mg/100g) | AU1: Zinc (mg/100g) | AV1: Rétinol (µg/100g) | AW1: Beta-Carotène (µg/100g) | AX1: Vitamine D (µg/100g) | AY1: Vitamine E (mg/100g) | AZ1: Vitamine K1 (µg/100g) | BA1: Vitamine K2 (µg/100g) | BB1: Vitamine C (mg/100g) | BC1: Vitamine B1 ou Thiamine (mg/100g) | BD1: Vitamine B2 ou Riboflavine (mg/100g) | BE1: Vitamine B3 ou PP ou Niacine (mg/100g) | BF1: Vitamine B5 ou Acide pantothénique (mg/100g) | BG1: Vitamine B6 (mg/100g) | BH1: Vitamine B9 ou Folates totaux (µg/100g) | BI1: Vitamine B12 (µg/100g)
A2: 1 | B2: Abat. cuit (aliment moyen) | C2: Abat. cuit (aliment moyen) | D2: 100 | E2: 164 | F2: 64.7 | G2: 24.9 | H2: 2.72 | I2: 5.98 | J2: 0.028 | K2: 0 | L2: 0.12 | M2: 0 | N2: 1.7 | O2: 0 | P2: 0 | Q2: 2.02 | R2: 1.55 | S2: 0.8 | T2: 0.00028 | U2: 0.00028 | V2: 0.00028 | W2: 0.001 | X2: 0.0044 | Y2: 0.11 | Z2: 1.08 | AA2: 0.75 | AB2: 1.5 | AC2: 0.44 | AD2: 0.031 | AE2: 0.078 | AF2: 0.0049 | AG2: 0.007 | AH2: 327 | AI2: 0.62 | AJ2: 9.63 | AK2: 0 | AL2: 5.06 | AM2: 6.57 | AN2: 11.9 | AO2: 18.1 | AP2: 0.18 | AQ2: 266 | AR2: 253 | AS2: 25.7 | AT2: 250 | AU2: 4.26 | AV2: 3510 | AW2: 33.8 | AX2: 0.79 | AY2: 0.38 | AZ2: 1.37 | BA2: 0 | BB2: 10.4 | BC2: 0.2 | BD2: 1.35 | BE2: 9.53 | BF2: 2.87 | BG2: 0.52 | BH2: 240 | BI2: 21.4
A3: 1026 | B3: fromages à pâte pressée | C3: Abondance | D3: 100 | E3: 393 | F3: 37.2 | G3: 27.1 | H3: 0 | I3: 31.6 | J3: < 0.2 | K3: 0 | L3: 0 | M3: 0 | N3: 3.9 | O3: 0 | P3: 0.84 | Q3: 20.1 | R3: 7.47 | S3: 0.94 | T3: 1.13 | U3: 0.7 | V3: 0.44 | W3: 0.84 | X3: 1.03 | Y3: 3.67 | Z3: 8.48 | AA3: 2.96 | AB3: 6.41 | AC3: 0.53 | AD3: 0.27 | AE3: 0.02 | AF3: 0.02 | AG3: < 0.01 | AH3: 106 | AI3: 1.73 | AJ3: 760 | AK3: 1090 | AL3: 0.49 | AM3: 0.09 | AN3: < 20 | AO3: 28 | AP3: 0.02 | AQ3: 570 | AR3: 120 | AS3: < 20 | AT3: 690 | AU3: 3.5 | AV3: 261 | AW3: 149 | AX3: < 0.25 | AY3: 0.75 | AZ3: 2.25 | BA3: 0 | BB3: < 0.5 | BC3: < 0.015 | BD3: 0.27 | BE3: < 0.1 | BF3: 0.34 | BG3: 0.092 | BH3: 39.6 | BI3: 2.19
A4: 1130 | B4: fruits appertisés | C4: Abricot au sirop léger. appertisé. égoutté | D4: 100 | E4: 60.2 | F4: 83 | G4: 0.94 | H4: 13.7 | I4: 0.5 | J4: 13.3 | K4: 0 | L4: 1.4 | M4: 0.39 | N4: 0.5 | O4: 0 | P4: 0 | Q4: 0 | R4: 0 | S4: 0 | T4: < 0.006 | U4: 0 | V4: 0 | W4: 0 | X4: 0 | Y4: 0 | Z4: 0 | AA4: 0 | AB4: 0 | AC4: 0 | AD4: 0 | AE4: 0 | AF4: 0 | AG4: 0 | AH4: 0 | AI4: 0.024 | AJ4: 18 | AK4: 4.63 | AL4: 0.04 | AM4: 0.12 | AN4: < 20 | AO4: 4.9 | AP4: 0.03 | AQ4: 11 | AR4: 140 | AS4: < 20 | AT4: 9.7 | AU4: 0.06 | AV4: 0 | AW4: 925 | AX4: 0 | AY4: 0 | AZ4: < 0.8 | BA4: 0 | BB4: 2.19 | BC4: 0.7 | BD4: < 0.01 | BE4: < 0.1 | BF4: 0.12 | BG4: 0.017 | BH4: 6.85 | BI4: 0
A5: 1131 | B5: fruits appertisés | C5: Abricot au sirop léger. appertisé. non égoutté | D5: 100 | E5: 57.2 | F5: 83.5 | G5: 0.81 | H5: 14 | I5: 0.043 | J5: 14 | K5: 0 | L5: 0.83 | M5: 0 | N5: 0.43 | O5: 0 | P5: 0 | Q5: 0.003 | R5: 0.021 | S5: 0.01 | T5: < 0.006 | U5: 0 | V5: 0 | W5: 0 | X5: 0 | Y5: 0 | Z5: 0.003 | AA5: 0 | AB5: 0 | AC5: 0 | AD5: 0 | AE5: 0 | AF5: 0 | AG5: 0 | AH5: 0 | AI5: 0.025 | AJ5: 14.3 | AK5: 4.45 | AL5: 0.036 | AM5: 0.1 | AN5: < 20 | AO5: 4.74 | AP5: 0.026 | AQ5: 9.25 | AR5: 136 | AS5: < 20 | AT5: 9.86 | AU5: 0.06 | AV5: 0 | AW5: 551 | AX5: 0 | AY5: 0.6 | AZ5: < 0.8 | BA5: 0 | BB5: 2.28 | BC5: 0.68 | BD5: < 0.01 | BE5: < 0.1 | BF5: 0.11 | BG5: 0.017 | BH5: 6.98 | BI5: 0
A6: 1132 | B6: fruits appertisés | C6: Abricot au sirop. appertisé. égoutté | D6: 100 | E6: 69.8 | F6: 81 | G6: 0.5 | H6: 16.2 | I6: 0.5 | J6: 15.3 | K6: 0 | L6: 1.4 | M6: 0.42 | N6: 0.35 | O6: 0 | P6: 0 | Q6: 0 | R6: 0 | S6: 0 | T6: < 0.006 | U6: 0 | V6: 0 | W6: 0 | X6: 0 | Y6: 0 | Z6: 0 | AA6: 0 | AB6: 0 | AC6: 0 | AD6: 0 | AE6: 0 | AF6: 0 | AG6: 0 | AH6: 0 | AI6: 0.03 | AJ6: 16 | AK6: < 3.6 | AL6: 0.04 | AM6: 0.13 | AN6: < 20 | AO6: 5.3 | AP6: 0.02 | AQ6: 10 | AR6: 130 | AS6: < 20 | AT6: 12 | AU6: 0.06 | AV6: 0 | AW6: 7.98 | AX6: 0 | AY6: 0 | AZ6: < 0.8 | BA6: 0 | BB6: < 0.5 | BC6: 0.7 | BD6: < 0.01 | BE6: 0.11 | BF6: 0.071 | BG6: 0.02 | BH6: 9.3 | BI6: 0
A7: 1133 | B7: fruits appertisés | C7: Abricot au sirop. appertisé. non égoutté | D7: 100 | E7: 71.2 | F7: 81.4 | G7: 0.29 | H7: 16.6 | I7: 0.5 | J7: 15.1 | K7: 0 | L7: 0.81 | M7: 0 | N7: 0.35 | O7: 0 | P7: 0 | Q7: 0 | R7: 0 | S7: 0 | T7: < 0.006 | U7: 0 | V7: 0 | W7: 0 | X7: 0 | Y7: 0 | Z7: 0 | AA7: 0 | AB7: 0 | AC7: 0 | AD7: 0 | AE7: 0 | AF7: 0 | AG7: 0 | AH7: 0 | AI7: 0.03 | AJ7: 11.3 | AK7: < 3.6 | AL7: 0.036 | AM7: 0.11 | AN7: < 20 | AO7: 4.8 | AP7: 0.02 | AQ7: 8.66 | AR7: 114 | AS7: < 20 | AT7: 12 | AU7: 0.035 | AV7: 0 | AW7: 114 | AX7: 0 | AY7: 0 | AZ7: < 0.8 | BA7: 0 | BB7: < 0.5 | BC7: 0 | BD7: < 0.01 | BE7: 0.12 | BF7: 0.073 | BG7: 0.036 | BH7: 9.89 | BI7: 0
A8: 1141 | B8: fruits crus | C8: Abricot. dénoyauté. cru | D8: 100 | E8: 42.6 | F8: 87.6 | G8: 1.01 | H8: 7.14 | I8: 0.35 | J8: 6.57 | K8: 0 | L8: 1.8 | M8: 0.57 | N8: 0.73 | O8: 0 | P8: 1.4 | Q8: 0.024 | R8: 0.15 | S8: 0.068 | T8: 0 | U8: 0 | V8: 0 | W8: 0 | X8: 0 | Y8: 0 | Z8: 0.021 | AA8: 0.0025 | AB8: 0.13 | AC8: 0.059 | AD8: 0 | AE8: 0 | AF8: 0 | AG8: 0 | AH8: 0 | AI8: 0.0025 | AJ8: 16.1 | AK8: 0 | AL8: 0.082 | AM8: 0.19 | AN8: 0.37 | AO8: 9.94 | AP8: 0.071 | AQ8: 22.5 | AR8: 229 | AS8: < 10 | AT8: < 1.11 | AU8: 0.14 | AV8: 0 | AW8: 1090 | AX8: 0 | AY8: 0.89 | AZ8: 3.3 | BA8: 0 | BB8: 10 | BC8: 0.03 | BD8: 0.04 | BE8: 0.6 | BF8: 0.24 | BG8: 0.054 | BH8: 9 | BI8: 0
A9: 1202 | B9: fruits séchés | C9: Abricot. dénoyauté. sec | D9: 100 | E9: 165.7 | F9: 26.2 | G9: 1.86 | H9: 39.8 | I9: 0.51 | J9: 36.6 | K9: 3.2 | L9: 5.7 | M9: 0 | N9: 16.5 | O9: 0 | P9: 9.4 | Q9: 0.16 | R9: 0.12 | S9: 0.12 | T9: 0 | U9: 0 | V9: 0 | W9: 0 | X9: 0.0018 | Y9: 0.0018 | Z9: 0.12 | AA9: 0.019 | AB9: 0.011 | AC9: 0.069 | AD9: 0.053 | AE9: 0 | AF9: 0 | AG9: 0 | AH9: 0 | AI9: 0.098 | AJ9: 61.3 | AK9: 61 | AL9: 0.31 | AM9: 4.33 | AN9: 3.4 | AO9: 36.5 | AP9: 0.24 | AQ9: 68.4 | AR9: 1090 | AS9: 2.2 | AT9: 39 | AU9: 0.3 | AV9: 0 | AW9: 2160 | AX9: 0 | AY9: 4.17 | AZ9: 3.1 | BA9: 0 | BB9: 1 | BC9: 0.015 | BD9: 0.067 | BE9: 2.69 | BF9: 0.61 | BG9: 0.16 | BH9: 12 | BI9: 0
A10: 2455 | B10: produits à base de poissons et produits de la mer | C10: Accra de poisson | D10: 100 | E10: 275 | F10: 49.5 | G10: 12.4 | H10: 15.1 | I10: 17.6 | J10: 2.55 | K10: 12.6 | L10: 3 | M10: 0 | N10: 2.3 | O10: 0 | P10: 0 | Q10: 2.3 | R10: 9.46 | S10: 5.01 | T10: < 0.0056 | U10: < 0.0056 | V10: < 0.0056 | W10: < 0.0056 | X10: < 0.0056 | Y10: 0.097 | Z10: 1.23 | AA10: 0.51 | AB10: 9.34 | AC10: 4.67 | AD10: 0.073 | AE10: 0.014 | AF10: 0.016 | AG10: 0.033 | AH10: 68.8 | AI10: 1.24 | AJ10: 55.3 | AK10: 743 | AL10: < 0.1 | AM10: 1.1 | AN10: 20 | AO10: 18 | AP10: 0.3 | AQ10: 110 | AR10: 216 | AS10: 18 | AT10: 583 | AU10: 0.8 | AV10: 7.5 | AW10: 0 | AX10: < 0.5 | AY10: 4.84 | AZ10: 0 | BA10: 0 | BB10: 0.5 | BC10: 0.064 | BD10: 0.1 | BE10: 1.1 | BF10: 0.35 | BG10: 0.19 | BH10: 33 | BI10: 0.43
A11: 97 | B11: algues | C11: Agar (algue). cru | D11: 100 | E11: 28.4 | F11: 91.3 | G11: 0.54 | H11: 6.25 | I11: 0.03 | J11: 0.28 | K11: 0 | L11: 0.5 | M11: 0 | N11: 1.36 | O11: 0 | P11: 0 | Q11: 0.006 | R11: 0.003 | S11: 0.01 | T11: 0 | U11: 0 | V11: 0 | W11: 0 | X11: 0 | Y11: 0 | Z11: 0.005 | AA11: 0 | AB11: 0 | AC11: 0 | AD11: 0 | AE11: 0 | AF11: 0.008 | AG11: 0 | AH11: 0 | AI11: 0.023 | AJ11: 54 | AK11: 0 | AL11: 0.061 | AM11: 1.86 | AN11: 0 | AO11: 67 | AP11: 0.37 | AQ11: 5 | AR11: 226 | AS11: 0 | AT11: 9 | AU11: 0.58 | AV11: 0 | AW11: 0 | AX11: 0 | AY11: 0.87 | AZ11: 2.3 | BA11: 0 | BB11: 0 | BC11: 0.005 | BD11: 0.022 | BE11: 0.055 | BF11: 0.3 | BG11: 0.032 | BH11: 85 | BI11: 0
A12: 60 | B12: agneau et mouton | C12: Agneau. collier. braisé ou bouilli | D12: 100 | E12: 365 | F12: 40.6 | G12: 33.6 | H12: 0 | I12: 25.6 | J12: 0 | K12: 0 | L12: 0 | M12: 0 | N12: 0 | O12: 0 | P12: 0 | Q12: 0 | R12: 0 | S12: 0 | T12: 0 | U12: 0 | V12: 0 | W12: 0 | X12: 0 | Y12: 0 | Z12: 0 | AA12: 0 | AB12: 0 | AC12: 0 | AD12: 0 | AE12: 0 | AF12: 0 | AG12: 0 | AH12: 93 | AI12: 0 | AJ12: 0 | AK12: 0 | AL12: 0 | AM12: 0.66 | AN12: 0 | AO12: 0 | AP12: 0 | AQ12: 0 | AR12: 0 | AS12: 13.9 | AT12: 0 | AU12: 7.14 | AV12: 0 | AW12: 0 | AX12: 0 | AY12: 0.36 | AZ12: 0 | BA12: 0 | BB12: 0 | BC12: 0.1 | BD12: 0 | BE12: 4.26 | BF12: 0.69 | BG12: 0.095 | BH12: 0 | BI12: 2.06
A13: 79 | B13: agneau et mouton | C13: Agneau. collier. cru | D13: 100 | E13: 195 | F13: 68.2 | G13: 18 | H13: 0 | I13: 13.7 | J13: 0 | K13: 0 | L13: 0 | M13: 0 | N13: 0.21 | O13: 0 | P13: 0 | Q13: 5.79 | R13: 5.21 | S13: 0.92 | T13: 0 | U13: 0 | V13: 0 | W13: 0 | X13: 0.064 | Y13: 0.59 | Z13: 2.8 | AA13: 1.67 | AB13: 3.98 | AC13: 0.5 | AD13: 0.091 | AE13: 0.044 | AF13: 0 | AG13: 0 | AH13: 0 | AI13: 0.2 | AJ13: 0 | AK13: 0 | AL13: 0 | AM13: 1.14 | AN13: 0 | AO13: 0 | AP13: 0 | AQ13: 0 | AR13: 0 | AS13: 7.41 | AT13: 80.1 | AU13: 3.82 | AV13: 0 | AW13: 0 | AX13: 0 | AY13: 0 | AZ13: 0 | BA13: 0 | BB13: 0 | BC13: 0 | BD13: 0 | BE13: 4.27 | BF13: 0 | BG13: 0.16 | BH13: 0 | BI13: 2.18
A14: 81 | B14: agneau et mouton | C14: Agneau. côte filet. crue | D14: 100 | E14: 242 | F14: 64 | G14: 17.6 | H14: 2.3 | I14: 18 | J14: 0 | K14: 0 | L14: 0 | M14: 0 | N14: 0.19 | O14: 0 | P14: 0 | Q14: 7.75 | R14: 6.8 | S14: 1.26 | T14: 0 | U14: 0 | V14: 0 | W14: 0 | X14: 0.085 | Y14: 0.8 | Z14: 3.75 | AA14: 2.16 | AB14: 5.04 | AC14: 0.69 | AD14: 0.12 | AE14: 0.057 | AF14: 0 | AG14: 0 | AH14: 0 | AI14: 0.18 | AJ14: 9 | AK14: 0 | AL14: 0 | AM14: 1.15 | AN14: 0 | AO14: 0 | AP14: 0 | AQ14: 0 | AR14: 0 | AS14: 5.7 | AT14: 69.6 | AU14: 2.08 | AV14: 0 | AW14: 0 | AX14: 0 | AY14: 0 | AZ14: 0 | BA14: 0 | BB14: 0 | BC14: 0 | BD14: 0 | BE14: 5.51 | BF14: 0 | BG14: 0.23 | BH14: 0 | BI14: 1.47
A15: 61 | B15: agneau et mouton | C15: Agneau. côte filet. grillée/poêlée | D15: 100 | E15: 157 | F15: 67.7 | G15: 26.3 | H15: 0 | I15: 5.78 | J15: 0 | K15: 0 | L15: 0 | M15: 0 | N15: 0 | O15: 0 | P15: 0 | Q15: 2.21 | R15: 2.05 | S15: 0.54 | T15: 0 | U15: 0 | V15: 0 | W15: 0 | X15: 0.022 | Y15: 0.2 | Z15: 1.08 | AA15: 0.67 | AB15: 1.58 | AC15: 0.28 | AD15: 0.038 | AE15: 0.066 | AF15: 0 | AG15: 0.0057 | AH15: 86 | AI15: 0 | AJ15: 0 | AK15: 0 | AL15: 0 | AM15: 1.27 | AN15: 0 | AO15: 0 | AP15: 0 | AQ15: 0 | AR15: 0 | AS15: 10.1 | AT15: 0 | AU15: 3.55 | AV15: 0 | AW15: 0 | AX15: 0 | AY15: 0.16 | AZ15: 0 | BA15: 0 | BB15: 0 | BC15: 0.1 | BD15: 0 | BE15: 6.72 | BF15: 0.62 | BG15: 0.3 | BH15: 0 | BI15: 1.22
A16: 83 | B16: agneau et mouton | C16: Agneau. côte ou côtelette. crue (aliment moyen) | D16: 100 | E16: 295 | F16: 57.8 | G16: 16.3 | H16: 0.77 | I16: 25.2 | J16: 0 | K16: 0 | L16: 0 | M16: 0 | N16: 0.37 | O16: 0 | P16: 0 | Q16: 11.5 | R16: 9.54 | S16: 1.48 | T16: 0 | U16: 0 | V16: 0 | W16: 0 | X16: 0.065 | Y16: 1.19 | Z16: 5.46 | AA16: 3.88 | AB16: 7.96 | AC16: 0.79 | AD16: 0.36 | AE16: 0.036 | AF16: 0 | AG16: 0 | AH16: 0 | AI16: 0.18 | AJ16: 9.97 | AK16: 0 | AL16: 0 | AM16: 1.25 | AN16: 0 | AO16: 0 | AP16: 0 | AQ16: 0 | AR16: 0 | AS16: 3.97 | AT16: 72.3 | AU16: 2.45 | AV16: 0 | AW16: 0 | AX16: 0 | AY16: 0 | AZ16: 0 | BA16: 0 | BB16: 0 | BC16: 0 | BD16: 0 | BE16: 4.98 | BF16: 0 | BG16: 0.21 | BH16: 0 | BI16: 1.44
A17: 67 | B17: agneau et mouton | C17: Agneau. côte ou côtelette. cuite (aliment moyen) | D17: 100 | E17: 157 | F17: 67.7 | G17: 26.3 | H17: 0 | I17: 5.78 | J17: 0 | K17: 0 | L17: 0 | M17: 0 | N17: 0 | O17: 0 | P17: 0 | Q17: 2.21 | R17: 2.05 | S17: 0.54 | T17: 0 | U17: 0 | V17: 0 | W17: 0 | X17: 0.022 | Y17: 0.2 | Z17: 1.08 | AA17: 0.67 | AB17: 1.58 | AC17: 0.28 | AD17: 0.038 | AE17: 0.066 | AF17: 0 | AG17: 0.0057 | AH17: 86 | AI17: 0 | AJ17: 0 | AK17: 0 | AL17: 0 | AM17: 1.27 | AN17: 0 | AO17: 0 | AP17: 0 | AQ17: 0 | AR17: 0 | AS17: 10.1 | AT17: 0 | AU17: 3.55 | AV17: 0 | AW17: 0 | AX17: 0 | AY17: 0.16 | AZ17: 0 | BA17: 0 | BB17: 0 | BC17: 0.1 | BD17: 0 | BE17: 6.72 | BF17: 0.62 | BG17: 0.3 | BH17: 0 | BI17: 1.22
A18: 69 | B18: agneau et mouton | C18: Agneau. côte ou côtelette. grillée/poêlée (aliment moyen) | D18: 100 | E18: 157 | F18: 67.7 | G18: 26.3 | H18: 0 | I18: 5.78 | J18: 0 | K18: 0 | L18: 0 | M18: 0 | N18: 0 | O18: 0 | P18: 0 | Q18: 2.21 | R18: 2.05 | S18: 0.54 | T18: 0 | U18: 0 | V18: 0 | W18: 0 | X18: 0.022 | Y18: 0.2 | Z18: 1.08 | AA18: 0.67 | AB18: 1.58 | AC18: 0.28 | AD18: 0.038 | AE18: 0.066 | AF18: 0 | AG18: 0.0057 | AH18: 86 | AI18: 0 | AJ18: 0 | AK18: 0 | AL18: 0 | AM18: 1.27 | AN18: 0 | AO18: 0 | AP18: 0 | AQ18: 0 | AR18: 0 | AS18: 10.1 | AT18: 0 | AU18: 3.55 | AV18: 0 | AW18: 0 | AX18: 0 | AY18: 0.16 | AZ18: 0 | BA18: 0 | BB18: 0 | BC18: 0.1 | BD18: 0 | BE18: 6.72 | BF18: 0.62 | BG18: 0.3 | BH18: 0 | BI18: 1.22
A19: 82 | B19: agneau et mouton | C19: Agneau. côte première. crue | D19: 100 | E19: 276 | F19: 59.3 | G19: 16.9 | H19: 0 | I19: 23.1 | J19: 0 | K19: 0 | L19: 0 | M19: 0 | N19: 0.21 | O19: 0 | P19: 0 | Q19: 10 | R19: 8.82 | S19: 1.57 | T19: 0 | U19: 0 | V19: 0 | W19: 0 | X19: 0.11 | Y19: 1.04 | Z19: 4.85 | AA19: 2.77 | AB19: 6.53 | AC19: 0.87 | AD19: 0.15 | AE19: 0.052 | AF19: 0 | AG19: 0 | AH19: 0 | AI19: 0.2 | AJ19: 8 | AK19: 0 | AL19: 0 | AM19: 1.12 | AN19: 0 | AO19: 0 | AP19: 0 | AQ19: 0 | AR19: 0 | AS19: 4.81 | AT19: 81.2 | AU19: 1.84 | AV19: 0 | AW19: 0 | AX19: 0 | AY19: 0 | AZ19: 0 | BA19: 0 | BB19: 0 | BC19: 0 | BD19: 0 | BE19: 5.14 | BF19: 0 | BG19: 0.21 | BH19: 0 | BI19: 1.64
A20: 62 | B20: agneau et mouton | C20: Agneau. côte première. grillée/poêlée | D20: 100 | E20: 185 | F20: 64.1 | G20: 26.1 | H20: 0 | I20: 9.01 | J20: 0 | K20: 0 | L20: 0 | M20: 0 | N20: 0.93 | O20: 0 | P20: 0 | Q20: 3.67 | R20: 3.37 | S20: 0.7 | T20: 0 | U20: 0 | V20: 0 | W20: 0.08 | X20: 0.039 | Y20: 0.36 | Z20: 1.8 | AA20: 1.06 | AB20: 2.58 | AC20: 0.39 | AD20: 0.06 | AE20: 0.053 | AF20: 0 | AG20: 0.004 | AH20: 90 | AI20: 0.18 | AJ20: 22 | AK20: 0 | AL20: 0.12 | AM20: 1.27 | AN20: 0 | AO20: 20 | AP20: 0.019 | AQ20: 166 | AR20: 271 | AS20: 9.36 | AT20: 73 | AU20: 3.43 | AV20: 0 | AW20: 0 | AX20: 0 | AY20: 0.1 | AZ20: 0 | BA20: 0 | BB20: 0 | BC20: 0.1 | BD20: 0.21 | BE20: 6.64 | BF20: 0.7 | BG20: 0.28 | BH20: 15 | BI20: 1.38
A21: 75 | B21: agneau et mouton | C21: Agneau. côtelette. crue | D21: 100 | E21: 368 | F21: 50.2 | G21: 14.4 | H21: 0 | I21: 34.5 | J21: 0 | K21: 0 | L21: 0 | M21: 0 | N21: 0.7 | O21: 0 | P21: 0 | Q21: 16.8 | R21: 13 | S21: 1.6 | T21: 0 | U21: 0 | V21: 0 | W21: 0 | X21: 0 | Y21: 1.74 | Z21: 7.79 | AA21: 6.72 | AB21: 12.3 | AC21: 0.8 | AD21: 0.8 | AE21: 0 | AF21: 0 | AG21: 0 | AH21: 82 | AI21: 0.17 | AJ21: 12.9 | AK21: 0 | AL21: 0.12 | AM21: 1.5 | AN21: 0.7 | AO21: 17 | AP21: 0.01 | AQ21: 136 | AR21: 218 | AS21: 1.4 | AT21: 66 | AU21: 3.42 | AV21: 45 | AW21: 0 | AX21: 0.4 | AY21: 0.7 | AZ21: 0 | BA21: 0 | BB21: 1 | BC21: 0.18 | BD21: 0.3 | BE21: 4.3 | BF21: 0.55 | BG21: 0.2 | BH21: 2.6 | BI21: 1.2
A22: 56 | B22: agneau et mouton | C22: Agneau. côtelette. grillée | D22: 100 | E22: 240 | F22: 58 | G22: 25.7 | H22: 0 | I22: 15.2 | J22: 0 | K22: 0 | L22: 0 | M22: 0 | N22: 1.02 | O22: 0 | P22: 0 | Q22: 6.52 | R22: 4.19 | S22: 0.51 | T22: 0 | U22: 0 | V22: 0.08 | W22: 0.029 | X22: 0.086 | Y22: 0.76 | Z22: 2.93 | AA22: 2.39 | AB22: 4.19 | AC22: 0.35 | AD22: 0.11 | AE22: 0.043 | AF22: 0.014 | AG22: < 0.014 | AH22: 48.9 | AI22: 0.31 | AJ22: 19.7 | AK22: 0 | AL22: 0.077 | AM22: 0 | AN22: 5 | AO22: 20.1 | AP22: 0.0079 | AQ22: 184 | AR22: 0 | AS22: 9.97 | AT22: 0 | AU22: 3.5 | AV22: 5.5 | AW22: 0 | AX22: 0 | AY22: 0 | AZ22: 0 | BA22: 0 | BB22: 0 | BC22: 0 | BD22: 0 | BE22: 7.45 | BF22: 0 | BG22: 0 | BH22: 0 | BI22: 2.8
A23: 77 | B23: agneau et mouton | C23: Agneau. épaule. crue | D23: 100 | E23: 204 | F23: 64.4 | G23: 19 | H23: 0.2 | I23: 14.1 | J23: 0 | K23: 0 | L23: 0 | M23: 0 | N23: 0.85 | O23: 0 | P23: 0 | Q23: 6.23 | R23: 6.19 | S23: 1.04 | T23: 0 | U23: 0 | V23: 0 | W23: 0.042 | X23: 0.075 | Y23: 0.63 | Z23: 3.19 | AA23: 2.29 | AB23: 4.73 | AC23: 0.31 | AD23: 0.31 | AE23: 0 | AF23: 0 | AG23: 0 | AH23: 72.5 | AI23: 0.17 | AJ23: 12.7 | AK23: 0 | AL23: 0.11 | AM23: 1.5 | AN23: 0.7 | AO23: 19 | AP23: 0.015 | AQ23: 170 | AR23: 224 | AS23: 6.05 | AT23: 68.7 | AU23: 3.68 | AV23: 45 | AW23: 0 | AX23: 0.4 | AY23: 0.46 | AZ23: 3.4 | BA23: 0 | BB23: 1 | BC23: 0.15 | BD23: 0.26 | BE23: 4.98 | BF23: 0.62 | BG23: 0.17 | BH23: 10.8 | BI23: 1.87
A24: 78 | B24: agneau et mouton | C24: Agneau. épaule. maigre. crue | D24: 100 | E24: 139 | F24: 73 | G24: 19.6 | H24: 0 | I24: 6.76 | J24: 0 | K24: 0 | L24: 0 | M24: 0 | N24: 1.04 | O24: 0 | P24: 0 | Q24: 2.42 | R24: 2.72 | S24: 0.62 | T24: 0 | U24: 0 | V24: 0 | W24: 0.01 | X24: 0.02 | Y24: 0.18 | Z24: 1.31 | AA24: 0.8 | AB24: 0 | AC24: 0 | AD24: 0 | AE24: 0 | AF24: 0 | AG24: 0 | AH24: 66 | AI24: 0.18 | AJ24: 15 | AK24: 0 | AL24: 0.11 | AM24: 1.66 | AN24: 0 | AO24: 24 | AP24: 0.024 | AQ24: 184 | AR24: 274 | AS24: 0 | AT24: 70 | AU24: 4.77 | AV24: 0 | AW24: 0 | AX24: 0.1 | AY24: 0.22 | AZ24: 3.4 | BA24: 0 | BB24: 0 | BC24: 0.12 | BD24: 0.22 | BE24: 5.45 | BF24: 0.71 | BG24: 0.16 | BH24: 23 | BI24: 2.78
A25: 59 | B25: agneau et mouton | C25: Agneau. épaule. maigre. rôtie/cuite au four | D25: 100 | E25: 197 | F25: 64.2 | G25: 24.9 | H25: 0 | I25: 10.8 | J25: 0 | K25: 0 | L25: 0 | M25: 0 | N25: 1.33 | O25: 0 | P25: 0 | Q25: 4.08 | R25: 4.36 | S25: 0.95 | T25: 0 | U25: 0 | V25: 0 | W25: 0.02 | X25: 0.03 | Y25: 0.32 | Z25: 2.17 | AA25: 1.33 | AB25: 0 | AC25: 0 | AD25: 0 | AE25: 0 | AF25: 0 | AG25: 0 | AH25: 87 | AI25: 0.17 | AJ25: 19 | AK25: 0 | AL25: 0.11 | AM25: 2.13 | AN25: 5 | AO25: 25 | AP25: 0.026 | AQ25: 200 | AR25: 265 | AS25: 6 | AT25: 68 | AU25: 6.04 | AV25: 0 | AW25: 0 | AX25: 0.1 | AY25: 0.18 | AZ25: 4.5 | BA25: 0 | BB25: 0 | BC25: 0.09 | BD25: 0.26 | BE25: 5.76 | BF25: 0.73 | BG25: 0.15 | BH25: 25 | BI25: 2.7
A26: 58 | B26: agneau et mouton | C26: Agneau. épaule. rôtie/cuite au four | D26: 100 | E26: 252 | F26: 53.7 | G26: 30.5 | H26: 0.1 | I26: 14.5 | J26: 0 | K26: 0 | L26: 0 | M26: 0 | N26: 1.22 | O26: 0 | P26: 0 | Q26: 5.26 | R26: 4.69 | S26: 1.26 | T26: 0 | U26: 0 | V26: 0 | W26: 0 | X26: 0 | Y26: 0 | Z26: 0 | AA26: 0 | AB26: 0 | AC26: 0 | AD26: 0 | AE26: 0 | AF26: 0 | AG26: 0 | AH26: 99.8 | AI26: 0.24 | AJ26: 8.8 | AK26: 61 | AL26: 0.2 | AM26: 2.2 | AN26: 8.6 | AO26: 25.4 | AP26: < 0.1 | AQ26: 231 | AR26: 376 | AS26: < 5 | AT26: 95.5 | AU26: 4.7 | AV26: 7.5 | AW26: 0 | AX26: < 0.5 | AY26: 0.14 | AZ26: 4.6 | BA26: 0 | BB26: 6.9 | BC26: 0.064 | BD26: 0.3 | BE26: 7.2 | BF26: 0.3 | BG26: 0.21 | BH26: 24.2 | BI26: 2.72
A27: 65 | B27: agneau et mouton | C27: Agneau. gigot. braisé | D27: 100 | E27: 222 | F27: 55.2 | G27: 35.2 | H27: 0 | I27: 9.03 | J27: 0 | K27: 0 | L27: 0 | M27: 0 | N27: 0 | O27: 0 | P27: 0 | Q27: 3.46 | R27: 3.34 | S27: 0.83 | T27: 0 | U27: 0 | V27: 0 | W27: 0 | X27: 0.041 | Y27: 0.35 | Z27: 1.74 | AA27: 0.97 | AB27: 2.6 | AC27: 0.45 | AD27: 0.067 | AE27: 0.078 | AF27: 0 | AG27: 0.012 | AH27: 0 | AI27: 0 | AJ27: 0 | AK27: 0 | AL27: 0 | AM27: 0.97 | AN27: 0 | AO27: 0 | AP27: 0 | AQ27: 0 | AR27: 0 | AS27: 13.6 | AT27: 0 | AU27: 5.28 | AV27: 0 | AW27: 0 | AX27: 0 | AY27: 0 | AZ27: 0 | BA27: 0 | BB27: 0 | BC27: 0 | BD27: 0 | BE27: 6.52 | BF27: 0 | BG27: 0.16 | BH27: 0 | BI27: 1.88
A28: 76 | B28: agneau et mouton | C28: Agneau. gigot. cru | D28: 100 | E28: 128 | F28: 74.5 | G28: 20 | H28: 0.48 | I28: 5.13 | J28: 0 | K28: 0 | L28: 0 | M28: 0 | N28: 0.96 | O28: 0 | P28: 0 | Q28: 1.97 | R28: 1.9 | S28: 0.47 | T28: 0 | U28: 0 | V28: 0 | W28: 0.06 | X28: 0.023 | Y28: 0.2 | Z28: 0.99 | AA28: 0.55 | AB28: 1.48 | AC28: 0.25 | AD28: 0.038 | AE28: 0.044 | AF28: 0 | AG28: 0 | AH28: 72.7 | AI28: 0.12 | AJ28: 10 | AK28: 0 | AL28: 0.12 | AM28: 1.51 | AN28: 0.7 | AO28: 21.9 | AP28: 0.015 | AQ28: 177 | AR28: 255 | AS28: 7.73 | AT28: 48.7 | AU28: 3 | AV28: 45 | AW28: 0 | AX28: 0.4 | AY28: 0.46 | AZ28: 0 | BA28: 0 | BB28: 1 | BC28: 0.15 | BD28: 0.27 | BE28: 6.52 | BF28: 0.63 | BG28: 0.26 | BH28: 9.8 | BI28: 2.17
A29: 64 | B29: agneau et mouton | C29: Agneau. gigot. grillé/poêlé | D29: 100 | E29: 174 | F29: 64.8 | G29: 27.6 | H29: 0 | I29: 7.08 | J29: 0 | K29: 0 | L29: 0 | M29: 0 | N29: 0 | O29: 0 | P29: 0 | Q29: 2.63 | R29: 2.54 | S29: 0.63 | T29: 0 | U29: 0 | V29: 0 | W29: 0 | X29: 0.031 | Y29: 0.27 | Z29: 1.32 | AA29: 0.73 | AB29: 1.98 | AC29: 0.34 | AD29: 0.051 | AE29: 0.059 | AF29: 0 | AG29: 0.009 | AH29: 0 | AI29: 0 | AJ29: 0 | AK29: 0 | AL29: 0 | AM29: 1.51 | AN29: 0 | AO29: 0 | AP29: 0 | AQ29: 0 | AR29: 0 | AS29: 10.7 | AT29: 0 | AU29: 4.15 | AV29: 0 | AW29: 0 | AX29: 0 | AY29: 0 | AZ29: 0 | BA29: 0 | BB29: 0 | BC29: 0 | BD29: 0 | BE29: 6.52 | BF29: 0 | BG29: 0.23 | BH29: 0 | BI29: 1.88
A30: 57 | B30: agneau et mouton | C30: Agneau. gigot. rôti/cuit au four | D30: 100 | E30: 169 | F30: 65.9 | G30: 26.8 | H30: 0 | I30: 6.85 | J30: 0 | K30: 0 | L30: 0 | M30: 0 | N30: 1.32 | O30: 0 | P30: 0 | Q30: 2.63 | R30: 2.54 | S30: 0.63 | T30: 0 | U30: 0 | V30: 0 | W30: 0.015 | X30: 0.031 | Y30: 0.27 | Z30: 1.32 | AA30: 0.73 | AB30: 1.98 | AC30: 0.34 | AD30: 0.051 | AE30: 0.059 | AF30: 0.0076 | AG30: 0.009 | AH30: 97.6 | AI30: 0.19 | AJ30: 21.8 | AK30: 61 | AL30: 0.12 | AM30: 1.4 | AN30: 5 | AO30: 30.7 | AP30: 0.015 | AQ30: 183 | AR30: 301 | AS30: 10.3 | AT30: 75.5 | AU30: 4.01 | AV30: 0 | AW30: 0 | AX30: 0 | AY30: 0.13 | AZ30: 0 | BA30: 0 | BB30: 0 | BC30: 0.1 | BD30: 0.28 | BE30: 6.52 | BF30: 0.83 | BG30: 0.24 | BH30: 17 | BI30: 1.88
A31: 80 | B31: agneau et mouton | C31: Agneau. selle. crue | D31: 100 | E31: 236 | F31: 63.8 | G31: 17.5 | H31: 0 | I31: 18.4 | J31: 0 | K31: 0 | L31: 0 | M31: 0 | N31: 0.77 | O31: 0 | P31: 0 | Q31: 7.95 | R31: 6.97 | S31: 1.29 | T31: 0 | U31: 0 | V31: 0 | W31: 0.07 | X31: 0.086 | Y31: 0.81 | Z31: 3.84 | AA31: 2.21 | AB31: 5.16 | AC31: 0.71 | AD31: 0.12 | AE31: 0.054 | AF31: 0 | AG31: 0 | AH31: 78 | AI31: 0.14 | AJ31: 12.8 | AK31: 0 | AL31: 0.13 | AM31: 1.16 | AN31: 0.7 | AO31: 19 | AP31: 0.014 | AQ31: 175 | AR31: 222 | AS31: 5.73 | AT31: 55 | AU31: 2.11 | AV31: 45 | AW31: 0 | AX31: 0.4 | AY31: 0.44 | AZ31: 0 | BA31: 0 | BB31: 0 | BC31: 0.1 | BD31: 0.19 | BE31: 5.41 | BF31: 0.59 | BG31: 0.22 | BH31: 9.2 | BI31: 1.73
A32: 66 | B32: agneau et mouton | C32: Agneau. selle. partie maigre. grillée/poêlée | D32: 100 | E32: 153 | F32: 68.3 | G32: 26.1 | H32: 0 | I32: 5.45 | J32: 0 | K32: 0 | L32: 0 | M32: 0 | N32: 0 | O32: 0 | P32: 0 | Q32: 2.05 | R32: 1.95 | S32: 0.54 | T32: 0 | U32: 0 | V32: 0 | W32: 0 | X32: 0.022 | Y32: 0.2 | Z32: 1.02 | AA32: 0.6 | AB32: 1.52 | AC32: 0.29 | AD32: 0.039 | AE32: 0.061 | AF32: 0 | AG32: 0.0081 | AH32: 0 | AI32: 0 | AJ32: 0 | AK32: 0 | AL32: 0 | AM32: 1.28 | AN32: 0 | AO32: 0 | AP32: 0 | AQ32: 0 | AR32: 0 | AS32: 10.3 | AT32: 0 | AU32: 3.67 | AV32: 0 | AW32: 0 | AX32: 0 | AY32: 0 | AZ32: 0 | BA32: 0 | BB32: 0 | BC32: 0 | BD32: 0 | BE32: 6.67 | BF32: 0 | BG32: 0.29 | BH32: 0 | BI32: 1.53
A33: 63 | B33: agneau et mouton | C33: Agneau. selle. partie maigre. rôtie/cuite au four | D33: 100 | E33: 153 | F33: 68.3 | G33: 26.1 | H33: 0 | I33: 5.45 | J33: 0 | K33: 0 | L33: 0 | M33: 0 | N33: 1.16 | O33: 0 | P33: 0 | Q33: 2.01 | R33: 1.92 | S33: 0.53 | T33: 0 | U33: 0 | V33: 0 | W33: 0.06 | X33: 0.022 | Y33: 0.19 | Z33: 1 | AA33: 0.59 | AB33: 1.49 | AC33: 0.28 | AD33: 0.039 | AE33: 0.06 | AF33: 0 | AG33: 0.008 | AH33: 91 | AI33: 0.16 | AJ33: 18 | AK33: 0 | AL33: 0.12 | AM33: 1.21 | AN33: 0 | AO33: 23 | AP33: 0.02 | AQ33: 180 | AR33: 246 | AS33: 10.3 | AT33: 64 | AU33: 3.67 | AV33: 0 | AW33: 0 | AX33: 0.1 | AY33: 0.11 | AZ33: 4.7 | BA33: 0 | BB33: 0 | BC33: 0.1 | BD33: 0.24 | BE33: 6.67 | BF33: 0.83 | BG33: 0.27 | BH33: 19 | BI33: 1.53
A34: 68 | B34: agneau et mouton | C34: Agneau. viande. cuite (aliment moyen) | D34: 100 | E34: 209 | F34: 60.4 | G34: 28.3 | H34: 0.012 | I34: 10.7 | J34: 0 | K34: 0 | L34: 0 | M34: 0 | N34: 0 | O34: 0 | P34: 0 | Q34: 3.67 | R34: 3.55 | S34: 0.88 | T34: 0 | U34: 0 | V34: 0 | W34: 0 | X34: 0.031 | Y34: 0.28 | Z34: 1.61 | AA34: 0.94 | AB34: 0 | AC34: 0 | AD34: 0 | AE34: 0 | AF34: 0 | AG34: 0.0062 | AH34: 0 | AI34: 0 | AJ34: 0 | AK34: 0 | AL34: 0 | AM34: 1.73 | AN34: 0 | AO34: 0 | AP34: 0 | AQ34: 0 | AR34: 0 | AS34: 7.87 | AT34: 0 | AU34: 4.9 | AV34: 0 | AW34: 0 | AX34: 0 | AY34: 0 | AZ34: 0 | BA34: 0 | BB34: 0 | BC34: 0 | BD34: 0 | BE34: 6.41 | BF34: 0 | BG34: 0.2 | BH34: 0 | BI34: 2.26
A35: 1327 | B35: herbes séchées | C35: Ail séché. poudre | D35: 100 | E35: 344 | F35: 6.48 | G35: 16.7 | H35: 62.8 | I35: 0.77 | J35: 2.43 | K35: 0 | L35: 9.45 | M35: 0 | N35: 3.42 | O35: 0 | P35: traces | Q35: 0.2 | R35: 0.067 | S35: 0.29 | T35: 0 | U35: 0 | V35: 0 | W35: 0.0024 | X35: 0 | Y35: 0.012 | Z35: 0.097 | AA35: 0.084 | AB35: 0.062 | AC35: 0.27 | AD35: 0.016 | AE35: 0 | AF35: 0 | AG35: 0 | AH35: 0 | AI35: 0.11 | AJ35: 79.5 | AK35: 0 | AL35: 0.53 | AM35: 4.2 | AN35: 0 | AO35: 67.5 | AP35: 0.98 | AQ35: 416 | AR35: 1150 | AS35: 0 | AT35: 43 | AU35: 2.81 | AV35: 0 | AW35: 0 | AX35: 0 | AY35: 0.67 | AZ35: 0.4 | BA35: 0 | BB35: 2.39 | BC35: 0.45 | BD35: 0.15 | BE35: 0.74 | BF35: 0.74 | BG35: 1.65 | BH35: 47 | BI35: 0
A36: 1313 | B36: herbes fraîches | C36: Ail. cru | D36: 100 | E36: 93.7 | F36: 64.3 | G36: 5.81 | H36: 21.2 | I36: 0.34 | J36: 1.43 | K36: 13.4 | L36: 4.7 | M36: 0 | N36: 1.41 | O36: 0 | P36: 0 | Q36: 0.075 | R36: 0.011 | S36: 0.25 | T36: 0 | U36: 0 | V36: 0 | W36: 0.002 | X36: 0 | Y36: < 0.00027 | Z36: 0.062 | AA36: 0.0039 | AB36: 0.011 | AC36: 0.14 | AD36: 0.013 | AE36: 0 | AF36: 0 | AG36: 0 | AH36: 0 | AI36: 0.098 | AJ36: 80.5 | AK36: 61 | AL36: 0.3 | AM36: 1.6 | AN36: 0.9 | AO36: 25 | AP36: 1.67 | AQ36: 157 | AR36: 401 | AS36: 2 | AT36: 39 | AU36: 1.16 | AV36: 0 | AW36: 5 | AX36: 0 | AY36: 0.045 | AZ36: 1.7 | BA36: 0 | BB36: 18.1 | BC36: 0.2 | BD36: 0.11 | BE36: 0.7 | BF36: 0.6 | BG36: 1.99 | BH36: 51.3 | BI36: 0
A37: 659 | B37: cocktails | C37: Alcool pur | D37: 100 | E37: 660 | F37: 0 | G37: 0 | H37: 0 | I37: 0 | J37: 0 | K37: 0 | L37: 0 | M37: 0 | N37: traces | O37: 94.3 | P37: 0 | Q37: 0 | R37: 0 | S37: 0 | T37: 0 | U37: 0 | V37: 0 | W37: 0 | X37: 0 | Y37: 0 | Z37: 0 | AA37: 0 | AB37: 0 | AC37: 0 | AD37: 0 | AE37: 0 | AF37: 0 | AG37: 0 | AH37: 0 | AI37: 0 | AJ37: 0 | AK37: 0 | AL37: 0 | AM37: 0 | AN37: 1 | AO37: 0 | AP37: 0 | AQ37: 0 | AR37: 0 | AS37: 0 | AT37: 0 | AU37: 0 | AV37: 0 | AW37: 0 | AX37: 0 | AY37: 0 | AZ37: 0 | BA37: 0 | BB37: 0 | BC37: 0 | BD37: 0 | BE37: 0 | BF37: 0 | BG37: 0 | BH37: 0 | BI37: 0
A38: 2061 | B38: plats de fromage | C38: Aligot (purée de pomme de terre à la tomme fraîche) | D38: 100 | E38: 191 | F38: 0 | G38: 8.55 | H38: 9.5 | I38: 12.9 | J38: 0 | K38: 0 | L38: 1.55 | M38: 0 | N38: 1.01 | O38: 0 | P38: traces | Q38: 9.05 | R38: 0 | S38: 0 | T38: 0 | U38: 0 | V38: 0 | W38: 0 | X38: 0 | Y38: 0 | Z38: 0 | AA38: 0 | AB38: 0 | AC38: 0 | AD38: 0 | AE38: 0 | AF38: 0 | AG38: 0 | AH38: 0 | AI38: 1.01 | AJ38: 0 | AK38: 0 | AL38: 0 | AM38: 0 | AN38: 0 | AO38: 0 | AP38: 0 | AQ38: 0 | AR38: 0 | AS38: 0 | AT38: 320 | AU38: 0 | AV38: 0 | AW38: 0 | AX38: 0 | AY38: 0 | AZ38: 0 | BA38: 0 | BB38: 0 | BC38: 0 | BD38: 0 | BE38: 0 | BF38: 0 | BG38: 0 | BH38: 0 | BI38: 0
A39: 1078 | B39: fruits à coque et graines oléagineuses | C39: Amande (avec peau) | D39: 100 | E39: 634 | F39: 4.58 | G39: 21.1 | H39: 7.85 | I39: 53.4 | J39: 4.4 | K39: 0.6 | L39: 10.2 | M39: 0 | N39: 2.93 | O39: 0 | P39: 0 | Q39: 4.19 | R39: 31.8 | S39: 13.5 | T39: < 0.005 | U39: < 0.005 | V39: < 0.005 | W39: < 0.0033 | X39: < 0.0033 | Y39: 0.024 | Z39: 3.04 | AA39: 0.66 | AB39: 31.5 | AC39: 11.6 | AD39: 0.052 | AE39: < 0.01 | AF39: < 0.005 | AG39: < 0.005 | AH39: 0 | AI39: 0.004 | AJ39: 248 | AK39: < 61 | AL39: 0.9 | AM39: 3 | AN39: 5.7 | AO39: 232 | AP39: 1.39 | AQ39: 416 | AR39: 668 | AS39: < 2.2 | AT39: 1.61 | AU39: 2.85 | AV39: 0 | AW39: 1 | AX39: 0 | AY39: 14.6 | AZ39: 0 | BA39: 0 | BB39: < 0.5 | BC39: 0.18 | BD39: 0.91 | BE39: 3.4 | BF39: 0.28 | BG39: 0.11 | BH39: 93.1 | BI39: 0
A40: 1111 | B40: fruits à coque et graines oléagineuses | C40: Amande. grillée. salée | D40: 100 | E40: 638 | F40: 2.41 | G40: 21.1 | H40: 8.72 | I40: 53.9 | J40: 4.86 | K40: 0.73 | L40: 10.9 | M40: 0 | N40: 3.07 | O40: 0 | P40: 0 | Q40: 4.09 | R40: 33.1 | S40: 13 | T40: 0 | U40: 0 | V40: 0 | W40: 0 | X40: 0 | Y40: 0.019 | Z40: 3.35 | AA40: 0.7 | AB40: 32.7 | AC40: 12.9 | AD40: 0.006 | AE40: 0 | AF40: 0 | AG40: 0 | AH40: 0 | AI40: 1.25 | AJ40: 268 | AK40: 0 | AL40: 1.1 | AM40: 3.73 | AN40: 0 | AO40: 279 | AP40: 2.23 | AQ40: 471 | AR40: 713 | AS40: 0 | AT40: 498 | AU40: 3.31 | AV40: 0 | AW40: 1 | AX40: 0 | AY40: 23.9 | AZ40: 0 | BA40: 0 | BB40: 0 | BC40: 0.077 | BD40: 1.2 | BE40: 3.64 | BF40: 0.32 | BG40: 0.14 | BH40: 55 | BI40: 0
A41: 1110 | B41: fruits à coque et graines oléagineuses | C41: Amande. mondée. émondée ou blanchie | D41: 100 | E41: 631 | F41: 4.51 | G41: 21.4 | H41: 8.76 | I41: 52.5 | J41: 4.63 | K41: 1 | L41: 9.9 | M41: 0 | N41: 2.91 | O41: 0 | P41: 0 | Q41: 3.95 | R41: 33.4 | S41: 12.4 | T41: 0 | U41: 0 | V41: 0 | W41: 0 | X41: 0 | Y41: 0 | Z41: 3.27 | AA41: 0.67 | AB41: 0 | AC41: 0 | AD41: 0 | AE41: 0 | AF41: 0 | AG41: 0 | AH41: 0 | AI41: 0.048 | AJ41: 236 | AK41: 0 | AL41: 1.03 | AM41: 3.28 | AN41: 0 | AO41: 268 | AP41: 1.84 | AQ41: 481 | AR41: 659 | AS41: 0 | AT41: 19 | AU41: 2.97 | AV41: 0 | AW41: 4 | AX41: 0 | AY41: 23.8 | AZ41: 0 | BA41: 0 | BB41: 0 | BC41: 0.19 | BD41: 0.71 | BE41: 3.5 | BF41: 0.31 | BG41: 0.12 | BH41: 49 | BI41: 0
A42: 1923 | B42: pâtes. riz et céréales crus | C42: Amarante. crue | D42: 100 | E42: 369 | F42: 11.3 | G42: 13.5 | H42: 58.6 | I42: 7.02 | J42: 1.68 | K42: 56.9 | L42: 6.7 | M42: 0 | N42: 2.88 | O42: 0 | P42: 0 | Q42: 1.46 | R42: 1.69 | S42: 2.78 | T42: 0 | U42: 0 | V42: 0 | W42: 0 | X42: 0 | Y42: 0.011 | Z42: 1.15 | AA42: 0.22 | AB42: 1.43 | AC42: 2.74 | AD42: 0.041 | AE42: 0 | AF42: 0 | AG42: 0 | AH42: 0 | AI42: 0.01 | AJ42: 159 | AK42: 0 | AL42: 0.53 | AM42: 7.61 | AN42: 0 | AO42: 248 | AP42: 3.33 | AQ42: 557 | AR42: 508 | AS42: 0 | AT42: 4 | AU42: 2.87 | AV42: 0 | AW42: 1 | AX42: 0 | AY42: 1.19 | AZ42: 0 | BA42: 0 | BB42: 4.2 | BC42: 0.12 | BD42: 0.2 | BE42: 0.92 | BF42: 1.46 | BG42: 0.59 | BH42: 82 | BI42: 0
A43: 915 | B43: farines | C43: Amidon de maïs ou fécule de maïs | D43: 100 | E43: 362 | F43: 9.26 | G43: 0.43 | H43: 89.2 | I43: 0.25 | J43: 0 | K43: 87 | L43: 0.8 | M43: 0 | N43: 0.09 | O43: 0 | P43: 0 | Q43: 0.009 | R43: 0.016 | S43: 0.025 | T43: 0 | U43: 0 | V43: 0 | W43: 0 | X43: 0 | Y43: 0 | Z43: 0.0081 | AA43: 0.0009 | AB43: 0 | AC43: 0 | AD43: 0 | AE43: 0 | AF43: 0 | AG43: 0 | AH43: 0 | AI43: 0.019 | AJ43: 6 | AK43: 0 | AL43: 0.05 | AM43: 0.38 | AN43: 0.6 | AO43: 3.5 | AP43: 0.53 | AQ43: 56 | AR43: 4 | AS43: 2.8 | AT43: 10.2 | AU43: 0.28 | AV43: 0 | AW43: 0 | AX43: 0 | AY43: 0 | AZ43: 0 | BA43: 0 | BB43: 0 | BC43: 0 | BD43: 0.008 | BE43: 0.03 | BF43: 0 | BG43: 0.005 | BH43: 1 | BI43: 0
A44: 926 | B44: farines | C44: Amidon de riz | D44: 100 | E44: 343 | F44: 14.2 | G44: 0.6 | H44: 85 | I44: 0 | J44: 0 | K44: 0 | L44: traces | M44: 0 | N44: 0 | O44: 0 | P44: 0 | Q44: 0 | R44: 0 | S44: 0 | T44: 0 | U44: 0 | V44: 0 | W44: 0 | X44: 0 | Y44: 0 | Z44: 0 | AA44: 0 | AB44: 0 | AC44: 0 | AD44: 0 | AE44: 0 | AF44: 0 | AG44: 0 | AH44: 0 | AI44: 0 | AJ44: 0 | AK44: 0 | AL44: 0 | AM44: 0 | AN44: 0 | AO44: 0 | AP44: 0 | AQ44: 0 | AR44: 0 | AS44: 0 | AT44: 0 | AU44: 0 | AV44: 0 | AW44: 0 | AX44: 0 | AY44: 0 | AZ44: 0 | BA44: 0 | BB44: 0 | BC44: 0 | BD44: 0 | BE44: 0 | BF44: 0 | BG44: 0 | BH44: 0 | BI44: 0
A45: 1134 | B45: fruits appertisés | C45: Ananas au sirop et jus d'ananas. appertisé. égoutté | D45: 100 | E45: 59.4 | F45: 84.5 | G45: 0.5 | H45: 13.6 | I45: 0.5 | J45: 12.8 | K45: 0 | L45: 1.4 | M45: 0 | N45: 0.25 | O45: 0 | P45: 0 | Q45: 0 | R45: 0 | S45: 0 | T45: < 0.006 | U45: 0 | V45: 0 | W45: 0 | X45: 0 | Y45: 0 | Z45: 0 | AA45: 0 | AB45: 0 | AC45: 0 | AD45: 0 | AE45: 0 | AF45: 0 | AG45: 0 | AH45: 0 | AI45: 0 | AJ45: 11 | AK45: 18 | AL45: 0.04 | AM45: 0.19 | AN45: < 20 | AO45: 12 | AP45: 1.2 | AQ45: 7.8 | AR45: 130 | AS45: < 20 | AT45: < 1 | AU45: 0.11 | AV45: 0 | AW45: 24.2 | AX45: 0 | AY45: 0 | AZ45: < 0.8 | BA45: 0 | BB45: 4.99 | BC45: 0.063 | BD45: < 0.01 | BE45: 2.2 | BF45: 0.067 | BG45: 0.076 | BH45: 13.5 | BI45: 0
A46: 1135 | B46: fruits appertisés | C46: Ananas au sirop et jus d'ananas. appertisé. non égoutté | D46: 100 | E46: 59.4 | F46: 84.9 | G46: 0.5 | H46: 13.6 | I46: 0.5 | J46: 12.6 | K46: 0 | L46: 0.92 | M46: 0 | N46: 0.31 | O46: 0 | P46: 0 | Q46: 0 | R46: 0 | S46: 0 | T46: < 0.006 | U46: 0 | V46: 0 | W46: 0 | X46: 0 | Y46: 0 | Z46: 0 | AA46: 0 | AB46: 0 | AC46: 0 | AD46: 0 | AE46: 0 | AF46: 0 | AG46: 0 | AH46: 0 | AI46: 0.00049 | AJ46: 10.3 | AK46: 18 | AL46: 0.033 | AM46: 0.19 | AN46: < 20 | AO46: 11.7 | AP46: 1.13 | AQ46: 7.14 | AR46: 127 | AS46: < 20 | AT46: 0.2 | AU46: 0.11 | AV46: 0 | AW46: 15.9 | AX46: 0 | AY46: 0 | AZ46: < 0.8 | BA46: 0 | BB46: 4.98 | BC46: 0.063 | BD46: < 0.01 | BE46: 1.44 | BF46: 0.061 | BG46: 0.064 | BH46: 12.9 | BI46: 0
A47: 1136 | B47: fruits appertisés | C47: Ananas au sirop léger. appertisé. égoutté | D47: 100 | E47: 68.6 | F47: 82 | G47: 0.5 | H47: 15.9 | I47: 0.5 | J47: 15.9 | K47: 0 | L47: 1.6 | M47: 0 | N47: 0.25 | O47: 0 | P47: 0 | Q47: 0 | R47: 0 | S47: 0 | T47: < 0.006 | U47: 0 | V47: 0 | W47: 0 | X47: 0 | Y47: 0 | Z47: 0 | AA47: 0 | AB47: 0 | AC47: 0 | AD47: 0 | AE47: 0 | AF47: 0 | AG47: 0 | AH47: 0 | AI47: 0.0048 | AJ47: 6.4 | AK47: 13.1 | AL47: 0.04 | AM47: 0.13 | AN47: < 20 | AO47: 11 | AP47: 1.2 | AQ47: 4.8 | AR47: 95 | AS47: < 20 | AT47: 1.9 | AU47: 0.05 | AV47: 0 | AW47: 19.7 | AX47: 0 | AY47: 0 | AZ47: < 0.8 | BA47: 0 | BB47: 5.22 | BC47: 0.034 | BD47: < 0.01 | BE47: < 0.1 | BF47: 0.04 | BG47: 0.046 | BH47: 11.9 | BI47: 0
A48: 1137 | B48: fruits appertisés | C48: Ananas au sirop léger. appertisé. non égoutté | D48: 100 | E48: 65.2 | F48: 82.4 | G48: 0.5 | H48: 16 | I48: 0.078 | J48: 15.7 | K48: 0 | L48: 1.01 | M48: 0 | N48: 0.22 | O48: 0 | P48: 0 | Q48: 0.009 | R48: 0.013 | S48: 0.04 | T48: < 0.006 | U48: 0 | V48: 0 | W48: 0 | X48: 0 | Y48: 0 | Z48: 0.005 | AA48: 0.003 | AB48: 0 | AC48: 0 | AD48: 0 | AE48: 0 | AF48: 0 | AG48: 0 | AH48: 0 | AI48: 0.0047 | AJ48: 5.77 | AK48: 13.9 | AL48: 0.033 | AM48: 0.12 | AN48: < 20 | AO48: 11.4 | AP48: 1.16 | AQ48: 4.06 | AR48: 101 | AS48: < 20 | AT48: 1.86 | AU48: 0.031 | AV48: 0 | AW48: 12.4 | AX48: 0 | AY48: 0.01 | AZ48: < 0.8 | BA48: 0 | BB48: 5.11 | BC48: 0.037 | BD48: < 0.01 | BE48: < 0.1 | BF48: 0.03 | BG48: 0.029 | BH48: 11.8 | BI48: 0
A49: 1142 | B49: fruits crus | C49: Ananas. pulpe. cru | D49: 100 | E49: 53.2 | F49: 85.9 | G49: 0.52 | H49: 11 | I49: 0.24 | J49: 10.4 | K49: 0 | L49: 1.33 | M49: 0 | N49: 0.31 | O49: 0 | P49: 0.72 | Q49: 0.009 | R49: 0.013 | S49: 0.04 | T49: 0 | U49: 0 | V49: 0 | W49: 0 | X49: 0 | Y49: 0 | Z49: 0.005 | AA49: 0.003 | AB49: 0 | AC49: 0 | AD49: 0 | AE49: 0 | AF49: 0 | AG49: 0 | AH49: 0 | AI49: 0.0024 | AJ49: 21.5 | AK49: 0 | AL49: 0.067 | AM49: 0.25 | AN49: 1.4 | AO49: 20.3 | AP49: 3.61 | AQ49: 11 | AR49: 142 | AS49: < 2.2 | AT49: 0.97 | AU49: 0.073 | AV49: 0 | AW49: 35 | AX49: 0 | AY49: 0.06 | AZ49: 0.7 | BA49: 0 | BB49: 36.4 | BC49: 0.08 | BD49: 0.026 | BE49: 0.35 | BF49: 0.19 | BG49: 0.1 | BH49: 15.1 | BI49: 0
A50: 2483 | B50: produits à base de poissons et produits de la mer | C50: Anchois au sel (anchoité. semi-conserve) | D50: 100 | E50: 128 | F50: 0 | G50: 25 | H50: 0 | I50: 3.1 | J50: 0 | K50: 0 | L50: 0 | M50: 0 | N50: 10.3 | O50: 0 | P50: 0 | Q50: 0.82 | R50: 0.76 | S50: 1.05 | T50: 0 | U50: 0 | V50: 0 | W50: 0 | X50: 0 | Y50: 0 | Z50: 0 | AA50: 0 | AB50: 0 | AC50: 0 | AD50: 0 | AE50: 0 | AF50: 0 | AG50: 0 | AH50: 70 | AI50: 9.01 | AJ50: 542 | AK50: 0 | AL50: 0 | AM50: 6.9 | AN50: 0 | AO50: 0 | AP50: 0 | AQ50: 481 | AR50: 215 | AS50: 0 | AT50: 3600 | AU50: 1.7 | AV50: 55 | AW50: 0 | AX50: 4.6 | AY50: 0.29 | AZ50: 0 | BA50: 0 | BB50: 0 | BC50: 0.06 | BD50: 0.26 | BE50: 14 | BF50: 0 | BG50: 0.14 | BH50: 8 | BI50: 0
A51: 2191 | B51: poissons crus | C51: Anchois commun. cru | D51: 100 | E51: 129 | F51: 71.8 | G51: 18.6 | H51: 0 | I51: 6.07 | J51: 0 | K51: 0 | L51: 0 | M51: 0 | N51: 1.43 | O51: 0 | P51: 0 | Q51: 1.64 | R51: 1.11 | S51: 1.69 | T51: 0 | U51: 0 | V51: 0 | W51: 0 | X51: 0.011 | Y51: 0.32 | Z51: 1.04 | AA51: 0.27 | AB51: 0.89 | AC51: 0.17 | AD51: 0.073 | AE51: 0.035 | AF51: 0.48 | AG51: 0.93 | AH51: 124 | AI51: 0.18 | AJ51: 86.5 | AK51: 0 | AL51: 0.38 | AM51: 2.63 | AN51: 55 | AO51: 22.3 | AP51: 0.23 | AQ51: 162 | AR51: 294 | AS51: 21.3 | AT51: 73 | AU51: 1.86 | AV51: 65.7 | AW51: 0 | AX51: 11 | AY51: 0.57 | AZ51: 0.1 | BA51: 0 | BB51: 0 | BC51: 0.061 | BD51: 0.32 | BE51: 12.7 | BF51: 0.65 | BG51: 0.14 | BH51: 9 | BI51: 0.62
A52: 2487 | B52: produits à base de poissons et produits de la mer | C52: Anchois commun. mariné | D52: 100 | E52: 136 | F52: 60.2 | G52: 23.9 | H52: 2.7 | I52: 3.26 | J52: 0 | K52: 0 | L52: 0 | M52: 0 | N52: 8.85 | O52: 0 | P52: traces | Q52: 1.04 | R52: 0.69 | S52: 1.36 | T52: < 0.0016 | U52: < 0.0016 | V52: < 0.0016 | W52: < 0.0016 | X52: 0.004 | Y52: 0.11 | Z52: 0.67 | AA52: 0.12 | AB52: 0.57 | AC52: 0.33 | AD52: 0.026 | AE52: 0.015 | AF52: 0.35 | AG52: 0.54 | AH52: 105 | AI52: 5.58 | AJ52: 120 | AK52: 5310 | AL52: 0.17 | AM52: 2.8 | AN52: 8 | AO52: 102 | AP52: 0.14 | AQ52: 148 | AR52: 159 | AS52: 46 | AT52: 2230 | AU52: 1.95 | AV52: 11 | AW52: 0 | AX52: 2.4 | AY52: 1.1 | AZ52: 0 | BA52: 0 | BB52: 0 | BC52: < 0.04 | BD52: 0.2 | BE52: 2.75 | BF52: 0.41 | BG52: 0.18 | BH52: 37 | BI52: 15.3
A53: 2458 | B53: produits à base de poissons et produits de la mer | C53: Anchois. filets à l'huile. semi-conserve. égoutté | D53: 100 | E53: 182 | F53: 55.1 | G53: 26.4 | H53: 0.2 | I53: 8.45 | J53: 0 | K53: 0 | L53: < 0.25 | M53: 0 | N53: 12.2 | O53: 0 | P53: 0 | Q53: 3.08 | R53: 3.55 | S53: 1.4 | T53: < 0.0041 | U53: < 0.0041 | V53: < 0.0041 | W53: < 0.0041 | X53: 0.012 | Y53: 0.071 | Z53: 0.79 | AA53: 2.07 | AB53: 3.42 | AC53: 0.34 | AD53: 0.053 | AE53: 0.011 | AF53: 0.41 | AG53: 0.58 | AH53: 75.5 | AI53: 11.3 | AJ53: 189 | AK53: 6090 | AL53: 0.25 | AM53: 3.22 | AN53: 30 | AO53: 43.7 | AP53: 0.1 | AQ53: 231 | AR53: 355 | AS53: 8 | AT53: 4210 | AU53: 2.92 | AV53: 5 | AW53: 0 | AX53: 1.7 | AY53: 1.16 | AZ53: 12.1 | BA53: 0 | BB53: < 0.5 | BC53: < 0.04 | BD53: 0.25 | BE53: 3.9 | BF53: 0.63 | BG53: 0.37 | BH53: 14.5 | BI53: 20.9
A54: 2457 | B54: produits à base de poissons et produits de la mer | C54: Anchois. filets roulés aux câpres. semi-conserve. égoutté | D54: 100 | E54: 198 | F54: 0 | G54: 24.8 | H54: 1.48 | I54: 10.3 | J54: 0 | K54: 0 | L54: < 1 | M54: 0 | N54: 17.4 | O54: 0 | P54: 0 | Q54: 0.86 | R54: 2.09 | S54: 4.49 | T54: < 0.0073 | U54: < 0.0073 | V54: < 0.0073 | W54: < 0.0073 | X54: < 0.0073 | Y54: 0.0073 | Z54: 0.44 | AA54: 0.25 | AB54: 0 | AC54: 3.78 | AD54: 0.028 | AE54: < 0.0073 | AF54: < 0.0073 | AG54: 0.026 | AH54: 0 | AI54: 0 | AJ54: 0 | AK54: 0 | AL54: 0 | AM54: 0 | AN54: 0 | AO54: 0 | AP54: 0 | AQ54: 0 | AR54: 0 | AS54: 0 | AT54: 0 | AU54: 0 | AV54: 0 | AW54: 0 | AX54: 0 | AY54: 0 | AZ54: 0 | BA54: 0 | BB54: 0 | BC54: 0 | BD54: 0 | BE54: 0 | BF54: 0 | BG54: 0 | BH54: 0 | BI54: 0
A55: 179 | B55: autres spécialités charcutières | C55: Andouille | D55: 100 | E55: 211 | F55: 60.5 | G55: 18.4 | H55: 0.3 | I55: 15.1 | J55: 0 | K55: 0 | L55: traces | M55: 0 | N55: 2.55 | O55: 0 | P55: 0 | Q55: 0 | R55: 0 | S55: 0 | T55: 0 | U55: 0 | V55: 0 | W55: 0 | X55: 0 | Y55: 0 | Z55: 0 | AA55: 0 | AB55: 0 | AC55: 0 | AD55: 0 | AE55: 0 | AF55: 0 | AG55: 0 | AH55: 0 | AI55: 2.08 | AJ55: 0 | AK55: 1730 | AL55: 0 | AM55: 0 | AN55: 2 | AO55: 0 | AP55: 0 | AQ55: 0 | AR55: 0 | AS55: 0 | AT55: 820 | AU55: 0 | AV55: 0 | AW55: 0 | AX55: 0 | AY55: 0 | AZ55: 0 | BA55: 0 | BB55: 0 | BC55: 0 | BD55: 0 | BE55: 0 | BF55: 0 | BG55: 0 | BH55: 0 | BI55: 0
A56: 180 | B56: autres spécialités charcutières | C56: Andouille de Guéméné | D56: 100 | E56: 234 | F56: 0 | G56: 18 | H56: 0 | I56: 18 | J56: 0 | K56: 0 | L56: traces | M56: 0 | N56: 0 | O56: 0 | P56: 0 | Q56: 0 | R56: 0 | S56: 0 | T56: 0 | U56: 0 | V56: 0 | W56: 0 | X56: 0 | Y56: 0 | Z56: 0 | AA56: 0 | AB56: 0 | AC56: 0 | AD56: 0 | AE56: 0 | AF56: 0 | AG56: 0 | AH56: 0 | AI56: 0 | AJ56: 0 | AK56: 0 | AL56: 0 | AM56: 0 | AN56: 0 | AO56: 0 | AP56: 0 | AQ56: 0 | AR56: 0 | AS56: 0 | AT56: 0 | AU56: 0 | AV56: 0 | AW56: 0 | AX56: 0 | AY56: 0 | AZ56: 0 | BA56: 0 | BB56: 0 | BC56: 0 | BD56: 0 | BE56: 0 | BF56: 0 | BG56: 0 | BH56: 0 | BI56: 0
A57: 182 | B57: autres spécialités charcutières | C57: Andouille de Vire | D57: 100 | E57: 238 | F57: 0 | G57: 19 | H57: 0 | I57: 18 | J57: 0 | K57: 0 | L57: traces | M57: 0 | N57: 0 | O57: 0 | P57: 0 | Q57: 0 | R57: 0 | S57: 0 | T57: 0 | U57: 0 | V57: 0 | W57: 0 | X57: 0 | Y57: 0 | Z57: 0 | AA57: 0 | AB57: 0 | AC57: 0 | AD57: 0 | AE57: 0 | AF57: 0 | AG57: 0 | AH57: 0 | AI57: 0 | AJ57: 0 | AK57: 0 | AL57: 0 | AM57: 0 | AN57: 0 | AO57: 0 | AP57: 0 | AQ57: 0 | AR57: 0 | AS57: 0 | AT57: 0 | AU57: 0 | AV57: 0 | AW57: 0 | AX57: 0 | AY57: 0 | AZ57: 0 | BA57: 0 | BB57: 0 | BC57: 0 | BD57: 0 | BE57: 0 | BF57: 0 | BG57: 0 | BH57: 0 | BI57: 0
A58: 181 | B58: autres spécialités charcutières | C58: Andouille. réchauffée à la poêle | D58: 100 | E58: 271 | F58: 55.5 | G58: 22.5 | H58: 0 | I58: 20 | J58: < 0.2 | K58: < 1 | L58: < 1 | M58: 0 | N58: 3.35 | O58: 0 | P58: 0 | Q58: 9.29 | R58: 7.68 | S58: 2.06 | T58: < 0.019 | U58: < 0.019 | V58: < 0.019 | W58: 0.023 | X58: 0.029 | Y58: 0.3 | Z58: 4.88 | AA58: 3.79 | AB58: 7.25 | AC58: 1.37 | AD58: 0.087 | AE58: 0.43 | AF58: 0 | AG58: 0 | AH58: 330 | AI58: 2.82 | AJ58: 18 | AK58: 0 | AL58: 0.2 | AM58: 2.4 | AN58: 24 | AO58: 12.2 | AP58: < 0.1 | AQ58: 150 | AR58: 104 | AS58: 24 | AT58: 1130 | AU58: 3.4 | AV58: 11 | AW58: 16 | AX58: < 0.5 | AY58: 0.48 | AZ58: 0 | BA58: 0 | BB58: < 1 | BC58: 0.056 | BD58: 0.28 | BE58: 1.55 | BF58: 0.48 | BG58: 0.12 | BH58: < 20 | BI58: 1.35
A59: 185 | B59: autres spécialités charcutières | C59: Andouillette de Troyes. crue | D59: 100 | E59: 254 | F59: 59.9 | G59: 19.7 | H59: 0.5 | I59: 19 | J59: < 0.5 | K59: 0 | L59: 0.9 | M59: 0 | N59: 2.4 | O59: 0 | P59: 0 | Q59: 7.91 | R59: 6.93 | S59: 2.3 | T59: 0 | U59: 0 | V59: 0 | W59: 0.02 | X59: 0.02 | Y59: 0.26 | Z59: 4.44 | AA59: 3.08 | AB59: 0 | AC59: 1.75 | AD59: 0.12 | AE59: 0 | AF59: 0 | AG59: 0 | AH59: 310 | AI59: 1.97 | AJ59: 26.1 | AK59: 0 | AL59: 0.2 | AM59: 2.8 | AN59: 0 | AO59: 9.4 | AP59: < 0.2 | AQ59: 110 | AR59: 58.4 | AS59: 22 | AT59: 830 | AU59: 2.6 | AV59: 0 | AW59: 0 | AX59: < 0.25 | AY59: 0.55 | AZ59: 0 | BA59: 0 | BB59: 0 | BC59: 0.02 | BD59: 0 | BE59: 0.8 | BF59: 0 | BG59: < 0.1 | BH59: < 2 | BI59: 0.5
A60: 183 | B60: autres spécialités charcutières | C60: Andouillette. crue | D60: 100 | E60: 227 | F60: 63 | G60: 18.8 | H60: 1 | I60: 16.3 | J60: < 0.5 | K60: 0.33 | L60: 0.71 | M60: 0 | N60: 1.76 | O60: 0 | P60: 0 | Q60: 6.94 | R60: 6.22 | S60: 1.72 | T60: 0 | U60: 0 | V60: 0 | W60: 0.014 | X60: 0.02 | Y60: 0.22 | Z60: 3.84 | AA60: 2.71 | AB60: 0 | AC60: 1.26 | AD60: 0.12 | AE60: 0 | AF60: 0 | AG60: 0 | AH60: 284 | AI60: 1.46 | AJ60: 34.1 | AK60: 0 | AL60: 0.28 | AM60: 1.67 | AN60: 2 | AO60: 12.5 | AP60: 0.16 | AQ60: 112 | AR60: 55.6 | AS60: 18.3 | AT60: 584 | AU60: 2.6 | AV60: 0 | AW60: 0 | AX60: < 0.25 | AY60: 0.39 | AZ60: 0 | BA60: 0 | BB60: 0 | BC60: 0.028 | BD60: 0.15 | BE60: 0.81 | BF60: 0 | BG60: < 0.1 | BH60: 1.2 | BI60: 0.49
A61: 184 | B61: autres spécialités charcutières | C61: Andouillette. sautée/poêlée | D61: 100 | E61: 302 | F61: 48.7 | G61: 24.5 | H61: 0.54 | I61: 22.3 | J61: < 0.2 | K61: < 1 | L61: < 1 | M61: 0 | N61: 3.48 | O61: 0 | P61: 0 | Q61: 11.1 | R61: 8.37 | S61: 2.85 | T61: < 0.02 | U61: < 0.02 | V61: < 0.02 | W61: < 0.02 | X61: < 0.02 | Y61: 0.58 | Z61: 6.84 | AA61: 3.5 | AB61: 7.76 | AC61: 2.27 | AD61: 0.2 | AE61: 0.25 | AF61: 0 | AG61: 0 | AH61: 344 | AI61: 2.73 | AJ61: 35.6 | AK61: 0 | AL61: 0.2 | AM61: 2.3 | AN61: 15 | AO61: 9.6 | AP61: < 0.1 | AQ61: 98.3 | AR61: 64 | AS61: 19 | AT61: 1090 | AU61: 4.3 | AV61: 52 | AW61: < 30 | AX61: < 0.5 | AY61: 0.41 | AZ61: 0 | BA61: 0 | BB61: < 1 | BC61: 0.035 | BD61: 0.15 | BE61: 0.96 | BF61: 0.24 | BG61: 0.09 | BH61: < 20 | BI61: 0.91
A62: 1325 | B62: herbes fraîches | C62: Aneth. frais | D62: 100 | E62: 48.2 | F62: 86 | G62: 3.93 | H62: 3.9 | I62: 1.1 | J62: 1.2 | K62: 0 | L62: 3.5 | M62: 0 | N62: 2.5 | O62: 0 | P62: traces | Q62: 0.27 | R62: 0.54 | S62: 0.064 | T62: 0 | U62: 0 | V62: 0 | W62: 0 | X62: 0.001 | Y62: 0.001 | Z62: 0.046 | AA62: 0.008 | AB62: 0.54 | AC62: 0.056 | AD62: 0.0087 | AE62: 0 | AF62: 0 | AG62: 0 | AH62: 0 | AI62: 0.15 | AJ62: 202 | AK62: 0 | AL62: 0.22 | AM62: 5.5 | AN62: 3.9 | AO62: 28 | AP62: 2.7 | AQ62: 51.9 | AR62: 647 | AS62: 2.7 | AT62: 27 | AU62: 1.8 | AV62: 0 | AW62: 0 | AX62: 0 | AY62: 1.7 | AZ62: 0 | BA62: 0 | BB62: 70 | BC62: 0.19 | BD62: 0.43 | BE62: 2.4 | BF62: 0.3 | BG62: 0.3 | BH62: 116 | BI62: 0
A63: 2323 | B63: poissons cuits | C63: Anguille. bouillie/cuite à l'eau | D63: 100 | E63: 197 | F63: 62 | G63: 20.5 | H63: 0 | I63: 12.7 | J63: 0 | K63: 0 | L63: 0 | M63: 0 | N63: 0 | O63: 0 | P63: 0 | Q63: 3.28 | R63: 6.38 | S63: 1.8 | T63: 0 | U63: 0 | V63: 0 | W63: 0 | X63: 0 | Y63: 0 | Z63: 0 | AA63: 0 | AB63: 0 | AC63: 0 | AD63: 0 | AE63: 0 | AF63: 0.24 | AG63: 0.47 | AH63: 0 | AI63: 0 | AJ63: 0 | AK63: 0 | AL63: 0.029 | AM63: 0 | AN63: 8 | AO63: 0 | AP63: 0.04 | AQ63: 0 | AR63: 0 | AS63: 28 | AT63: 0 | AU63: 2.08 | AV63: 0 | AW63: 0 | AX63: 0 | AY63: 5.1 | AZ63: 0 | BA63: 0 | BB63: 0 | BC63: 0 | BD63: 0 | BE63: 0 | BF63: 0 | BG63: 0 | BH63: 0 | BI63: 0
A64: 2266 | B64: poissons crus | C64: Anguille. crue | D64: 100 | E64: 232 | F64: 62.1 | G64: 16.1 | H64: 0 | I64: 18.6 | J64: 0 | K64: 0 | L64: 0 | M64: 0 | N64: 1.09 | O64: 0 | P64: 0 | Q64: 3.89 | R64: 8.42 | S64: 2.39 | T64: 0 | U64: 0 | V64: 0 | W64: 0 | X64: 0 | Y64: 0.78 | Z64: 2.67 | AA64: 0.44 | AB64: 5.28 | AC64: 0.66 | AD64: 0.21 | AE64: 0.16 | AF64: 0.49 | AG64: 0.68 | AH64: 120 | AI64: 0.16 | AJ64: 23.6 | AK64: 57 | AL64: 0.041 | AM64: 0.71 | AN64: 36.3 | AO64: 18 | AP64: 0.078 | AQ64: 285 | AR64: 260 | AS64: 28.7 | AT64: 65.5 | AU64: 2.27 | AV64: 1280 | AW64: 0 | AX64: 16 | AY64: 6 | AZ64: 1.25 | BA64: 0 | BB64: 1.6 | BC64: 0.17 | BD64: 0.24 | BE64: 3.16 | BF64: 0.17 | BG64: 0.21 | BH64: 13.8 | BI64: 2.8
A65: 2321 | B65: poissons cuits | C65: Anguille. cuite (aliment moyen) | D65: 100 | E65: 213 | F65: 60.7 | G65: 22.1 | H65: 0 | I65: 13.8 | J65: 0 | K65: 0 | L65: 0 | M65: 0 | N65: 0 | O65: 0 | P65: 0 | Q65: 3.15 | R65: 7.8 | S65: 1.51 | T65: 0 | U65: 0 | V65: 0 | W65: 0 | X65: 0 | Y65: 0 | Z65: 0 | AA65: 0 | AB65: 0 | AC65: 0 | AD65: 0 | AE65: 0 | AF65: 0.2 | AG65: 0.37 | AH65: 0 | AI65: 0 | AJ65: 0 | AK65: 0 | AL65: 0.029 | AM65: 0 | AN65: 8 | AO65: 0 | AP65: 0.04 | AQ65: 0 | AR65: 0 | AS65: 0 | AT65: 0 | AU65: 2.08 | AV65: 0 | AW65: 0 | AX65: 0 | AY65: 0 | AZ65: 0 | BA65: 0 | BB65: 0 | BC65: 0 | BD65: 0 | BE65: 0 | BF65: 0 | BG65: 0 | BH65: 0 | BI65: 0
A66: 2322 | B66: poissons cuits | C66: Anguille. rôtie/cuite au four | D66: 100 | E66: 229 | F66: 59.3 | G66: 23.6 | H66: 0 | I66: 15 | J66: 0 | K66: 0 | L66: 0 | M66: 0 | N66: 1.8 | O66: 0 | P66: 0 | Q66: 3.02 | R66: 9.22 | S66: 1.21 | T66: 0 | U66: 0 | V66: 0 | W66: 0 | X66: 0 | Y66: 0.74 | Z66: 2.03 | AA66: 0.25 | AB66: 0 | AC66: 0 | AD66: 0 | AE66: 0 | AF66: 0.17 | AG66: 0.28 | AH66: 161 | AI66: 0.16 | AJ66: 26 | AK66: 0 | AL66: 0.029 | AM66: 0.64 | AN66: 8 | AO66: 26 | AP66: 0.04 | AQ66: 277 | AR66: 349 | AS66: 0 | AT66: 65 | AU66: 2.08 | AV66: 1140 | AW66: 0 | AX66: 0 | AY66: 0 | AZ66: 0 | BA66: 0 | BB66: 1.8 | BC66: 0.18 | BD66: 0.051 | BE66: 4.49 | BF66: 0.28 | BG66: 0.077 | BH66: 17 | BI66: 2.89
A67: 109 | B67: algues | C67: Ao-nori (Enteromorpha sp.). séchée ou déshydratée | D67: 100 | E67: 224 | F67: 7.65 | G67: 13.7 | H67: 18.8 | I67: 2.47 | J67: 0 | K67: 0 | L67: 36 | M67: 0 | N67: 21.4 | O67: 0 | P67: 0 | Q67: 0.23 | R67: 0.18 | S67: 0.25 | T67: 0 | U67: 0 | V67: 0 | W67: 0 | X67: 0 | Y67: 0 | Z67: 0 | AA67: 0 | AB67: 0 | AC67: 0 | AD67: 0 | AE67: 0 | AF67: 0 | AG67: 0 | AH67: 0 | AI67: 11.9 | AJ67: 1610 | AK67: 0 | AL67: 1.21 | AM67: 234 | AN67: 9390 | AO67: 2440 | AP67: 24.7 | AQ67: 1040 | AR67: 1850 | AS67: 10.7 | AT67: 4760 | AU67: 6.08 | AV67: 0 | AW67: 0 | AX67: 0 | AY67: 11 | AZ67: 0 | BA67: 0 | BB67: 35.4 | BC67: 0.29 | BD67: 1.1 | BE67: 4.77 | BF67: 0 | BG67: 0 | BH67: 39.6 | BI67: 30.6
A68: 654 | B68: cocktails | C68: Apéritif à base de vin ou vermouth | D68: 100 | E68: 137 | F68: 75.3 | G68: 0.013 | H68: 11.4 | I68: 0 | J68: 11.1 | K68: 0 | L68: 0 | M68: 0 | N68: 0.19 | O68: 13.1 | P68: 0 | Q68: 0 | R68: 0 | S68: 0 | T68: 0 | U68: 0 | V68: 0 | W68: 0 | X68: 0 | Y68: 0 | Z68: 0 | AA68: 0 | AB68: 0 | AC68: 0 | AD68: 0 | AE68: 0 | AF68: 0 | AG68: 0 | AH68: 0 | AI68: 0.038 | AJ68: 7.37 | AK68: 0 | AL68: 0.1 | AM68: 0.44 | AN68: 1.2 | AO68: 7 | AP68: traces | AQ68: 6.25 | AR68: 48 | AS68: traces | AT68: 15 | AU68: 0.035 | AV68: 0 | AW68: 0 | AX68: 0 | AY68: 0 | AZ68: 0 | BA68: 0 | BB68: 0 | BC68: traces | BD68: traces | BE68: 0.045 | BF68: 0 | BG68: 0.0075 | BH68: traces | BI68: 0.0033
A69: 656 | B69: cocktails | C69: Apéritif anisé sans alcool | D69: 100 | E69: 6 | F69: 0 | G69: 0 | H69: 1 | I69: 0 | J69: 0.03 | K69: 0 | L69: 1 | M69: 0 | N69: 0.044 | O69: 0 | P69: 0 | Q69: 0 | R69: 0 | S69: 0 | T69: 0 | U69: 0 | V69: 0 | W69: 0 | X69: 0 | Y69: 0 | Z69: 0 | AA69: 0 | AB69: 0 | AC69: 0 | AD69: 0 | AE69: 0 | AF69: 0 | AG69: 0 | AH69: 0 | AI69: 0.038 | AJ69: 1.83 | AK69: 0 | AL69: 0 | AM69: 0 | AN69: 1.2 | AO69: 0.33 | AP69: 0.004 | AQ69: 0 | AR69: 3.9 | AS69: 0 | AT69: 15 | AU69: 0.03 | AV69: 0 | AW69: 0 | AX69: 0 | AY69: 0 | AZ69: 0 | BA69: 0 | BB69: 0 | BC69: 0 | BD69: 0 | BE69: 0 | BF69: 0 | BG69: 0 | BH69: 0 | BI69: 0
A70: 1124 | B70: fruits à coque et graines oléagineuses | C70: Arachide. bouillie/cuite à l'eau. salée | D70: 100 | E70: 316 | F70: 41.8 | G70: 15.5 | H70: 9.54 | I70: 22 | J70: 2.47 | K70: 0 | L70: 8.8 | M70: 0 | N70: 2.42 | O70: 0 | P70: 0 | Q70: 3.06 | R70: 10.9 | S70: 6.96 | T70: 0 | U70: 0 | V70: 0 | W70: 0 | X70: 0 | Y70: 0.011 | Z70: 2.3 | AA70: 0.49 | AB70: 0 | AC70: 0 | AD70: 0 | AE70: 0 | AF70: 0 | AG70: 0 | AH70: 0 | AI70: 1.88 | AJ70: 55 | AK70: 0 | AL70: 0.5 | AM70: 1.01 | AN70: 0 | AO70: 102 | AP70: 1.02 | AQ70: 198 | AR70: 180 | AS70: 0 | AT70: 751 | AU70: 1.83 | AV70: 0 | AW70: 0 | AX70: 0 | AY70: 4.1 | AZ70: 0 | BA70: 0 | BB70: 0 | BC70: 0.26 | BD70: 0.063 | BE70: 5.26 | BF70: 0.83 | BG70: 0.15 | BH70: 75 | BI70: 0
A71: 1638 | B71: légumes cuits | C71: Artichaut. appertisé. égoutté | D71: 100 | E71: 39.8 | F71: 89.9 | G71: 1.5 | H71: 6.5 | I71: 0.2 | J71: 1.5 | K71: 0 | L71: 3 | M71: 0 | N71: 0.8 | O71: 0 | P71: 0 | Q71: 0 | R71: 0 | S71: 0 | T71: 0 | U71: 0 | V71: 0 | W71: 0 | X71: 0 | Y71: 0 | Z71: 0 | AA71: 0 | AB71: 0 | AC71: 0 | AD71: 0 | AE71: 0 | AF71: 0 | AG71: 0 | AH71: 0 | AI71: 0.8 | AJ71: 0 | AK71: 0 | AL71: 0 | AM71: 0 | AN71: 0 | AO71: 0 | AP71: 0 | AQ71: 0 | AR71: 0 | AS71: 0 | AT71: 320 | AU71: 0 | AV71: 0 | AW71: 0 | AX71: 0 | AY71: 0 | AZ71: 0 | BA71: 0 | BB71: 0 | BC71: 0 | BD71: 0 | BE71: 0 | BF71: 0 | BG71: 0 | BH71: 0 | BI71: 0
A72: 1661 | B72: légumes cuits | C72: Artichaut. coeur. appertisé. égoutté | D72: 100 | E72: 26 | F72: 90.5 | G72: 1.8 | H72: 2.31 | I72: 0.5 | J72: 1.2 | K72: < 0.35 | L72: 3.2 | M72: < 0.5 | N72: 1.5 | O72: 0 | P72: 0.44 | Q72: < 0.01 | R72: < 0.01 | S72: < 0.01 | T72: < 0.01 | U72: < 0.01 | V72: < 0.01 | W72: < 0.01 | X72: < 0.01 | Y72: < 0.01 | Z72: < 0.01 | AA72: < 0.01 | AB72: < 0.01 | AC72: < 0.01 | AD72: < 0.01 | AE72: < 0.01 | AF72: < 0.01 | AG72: < 0.01 | AH72: 0 | AI72: 0.78 | AJ72: 25 | AK72: 499 | AL72: 0.07 | AM72: 0.4 | AN72: < 20 | AO72: 18 | AP72: 0.13 | AQ72: 34 | AR72: 150 | AS72: < 20 | AT72: 310 | AU72: 0.28 | AV72: 0 | AW72: 24.6 | AX72: < 0.25 | AY72: 1.12 | AZ72: 6.29 | BA72: 0 | BB72: 12.2 | BC72: 0.021 | BD72: 0.03 | BE72: 0.39 | BF72: 0.13 | BG72: 0.026 | BH72: 54.3 | BI72: 0
A73: 1513 | B73: légumes crus | C73: Artichaut. cru | D73: 100 | E73: 45.7 | F73: 84.9 | G73: 3.1 | H73: 5.02 | I73: 0.18 | J73: 0.99 | K73: 0.6 | L73: 5.4 | M73: 0 | N73: 1.12 | O73: 0 | P73: 0.27 | Q73: 0.036 | R73: 0.005 | S73: 0.064 | T73: 0 | U73: 0 | V73: 0 | W73: 0 | X73: 0.002 | Y73: 0.002 | Z73: 0.029 | AA73: 0.003 | AB73: 0 | AC73: 0 | AD73: 0 | AE73: 0 | AF73: 0 | AG73: 0 | AH73: 0 | AI73: 0.15 | AJ73: 52 | AK73: 0 | AL73: 0.23 | AM73: 1.19 | AN73: 0.5 | AO73: 47.8 | AP73: 0.26 | AQ73: 81.2 | AR73: 387 | AS73: 0.23 | AT73: 60.5 | AU73: 0.49 | AV73: 0 | AW73: 8 | AX73: 0 | AY73: 0.27 | AZ73: 14.8 | BA73: 0 | BB73: 11.7 | BC73: 0.081 | BD73: 0.063 | BE73: 1.05 | BF73: 0.32 | BG73: 0.11 | BH73: 68 | BI73: 0
A74: 1605 | B74: légumes cuits | C74: Artichaut. cuit | D74: 100 | E74: 33.2 | F74: 85.8 | G74: 2.53 | H74: 0.99 | I74: 0.28 | J74: 0.99 | K74: 0 | L74: 8.3 | M74: 0 | N74: 1.21 | O74: 0 | P74: 0 | Q74: 0.069 | R74: 0.011 | S74: 0.14 | T74: 0 | U74: 0 | V74: 0 | W74: 0 | X74: 0.004 | Y74: 0.00045 | Z74: 0.055 | AA74: 0.0057 | AB74: 0.0029 | AC74: 0.11 | AD74: 0.025 | AE74: 0 | AF74: 0 | AG74: 0 | AH74: 0 | AI74: 0.14 | AJ74: 42.9 | AK74: 0 | AL74: 0.082 | AM74: 0.67 | AN74: < 5 | AO74: 44.6 | AP74: 0.14 | AQ74: 73 | AR74: 427 | AS74: < 10 | AT74: 60 | AU74: 0.29 | AV74: 0 | AW74: 8 | AX74: 0 | AY74: 0.19 | AZ74: 14.8 | BA74: 0 | BB74: 9.1 | BC74: 0.05 | BD74: 0.089 | BE74: 1.11 | BF74: 0.24 | BG74: 0.081 | BH74: 89 | BI74: 0
A75: 1662 | B75: légumes cuits | C75: Artichaut. fond. appertisé. égoutté | D75: 100 | E75: 25.2 | F75: 91.3 | G75: 1.2 | H75: 3.02 | I75: 0.5 | J75: 0.8 | K75: < 0.35 | L75: 2.6 | M75: < 0.5 | N75: 1.2 | O75: 0 | P75: 0.43 | Q75: < 0.01 | R75: < 0.01 | S75: < 0.01 | T75: < 0.01 | U75: < 0.01 | V75: < 0.01 | W75: < 0.01 | X75: < 0.01 | Y75: < 0.01 | Z75: < 0.01 | AA75: < 0.01 | AB75: < 0.01 | AC75: < 0.01 | AD75: < 0.01 | AE75: < 0.01 | AF75: < 0.01 | AG75: < 0.01 | AH75: 0 | AI75: 0.73 | AJ75: 36 | AK75: 464 | AL75: 0.06 | AM75: 0.36 | AN75: < 20 | AO75: 20 | AP75: 0.05 | AQ75: 26 | AR75: 140 | AS75: < 20 | AT75: 293 | AU75: 0.2 | AV75: 0 | AW75: 10.7 | AX75: < 0.25 | AY75: 0.42 | AZ75: 1.57 | BA75: 0 | BB75: 18 | BC75: 0.041 | BD75: < 0.01 | BE75: 0.2 | BF75: 0.09 | BG75: 0.22 | BH75: 53.6 | BI75: 0
A76: 1585 | B76: légumes crus | C76: Artichaut. fond. surgelé. cru | D76: 100 | E76: 59.7 | F76: 84.7 | G76: 2.08 | H76: 8.09 | I76: 0.43 | J76: 1.89 | K76: 0 | L76: 7.54 | M76: 0 | N76: 0.18 | O76: 0 | P76: 0 | Q76: 0.1 | R76: 0 | S76: 0 | T76: 0 | U76: 0 | V76: 0 | W76: 0 | X76: 0 | Y76: 0 | Z76: 0 | AA76: 0 | AB76: 0 | AC76: 0 | AD76: 0 | AE76: 0 | AF76: 0 | AG76: 0 | AH76: 0 | AI76: 0.18 | AJ76: 0 | AK76: 0 | AL76: 0 | AM76: 0 | AN76: 0 | AO76: 0 | AP76: 0 | AQ76: 0 | AR76: 0 | AS76: 0 | AT76: 45 | AU76: 0 | AV76: 0 | AW76: 0 | AX76: 0 | AY76: 0 | AZ76: 0 | BA76: 0 | BB76: 0 | BC76: 0 | BD76: 0 | BE76: 0 | BF76: 0 | BG76: 0 | BH76: 0 | BI76: 0
A77: 111 | B77: algues | C77: Ascophylle noueux ou goémon noir (Ascophyllum nodosum). séché ou déshydraté | D77: 100 | E77: 211 | F77: 10.8 | G77: 7.22 | H77: 18.5 | I77: 2.78 | J77: 0 | K77: 0 | L77: 41.8 | M77: 0 | N77: 18.9 | O77: 0 | P77: 0 | Q77: 0 | R77: 0 | S77: 0 | T77: 0 | U77: 0 | V77: 0 | W77: 0 | X77: 0 | Y77: 0 | Z77: 0 | AA77: 0 | AB77: 0 | AC77: 0 | AD77: 0 | AE77: 0 | AF77: 0 | AG77: 0 | AH77: 0 | AI77: 7.15 | AJ77: 1650 | AK77: 0 | AL77: 0.72 | AM77: 21.8 | AN77: 68200 | AO77: 836 | AP77: 2.52 | AQ77: 162 | AR77: 2270 | AS77: 6.69 | AT77: 2860 | AU77: 6.45 | AV77: 0 | AW77: 3730 | AX77: 0.89 | AY77: 14 | AZ77: 1020 | BA77: 0 | BB77: 94.8 | BC77: 0.31 | BD77: 0.96 | BE77: 2.74 | BF77: 0.018 | BG77: 5.61 | BH77: 22.7 | BI77: 2.11
A78: 1060 | B78: fromages à pâte pressée | C78: Asiago | D78: 100 | E78: 356 | F78: 0 | G78: 32.1 | H78: 0 | I78: 25.6 | J78: 0 | K78: 0 | L78: 0 | M78: 0 | N78: 3.3 | O78: 0 | P78: 0 | Q78: 15.9 | R78: 8.28 | S78: 0.9 | T78: 0 | U78: 0 | V78: 0 | W78: 0 | X78: 0 | Y78: 0 | Z78: 0 | AA78: 0 | AB78: 0 | AC78: 0 | AD78: 0 | AE78: 0 | AF78: 0 | AG78: 0 | AH78: 90 | AI78: 1.9 | AJ78: 770 | AK78: 0 | AL78: 0 | AM78: 0.7 | AN78: 0 | AO78: 0 | AP78: 0 | AQ78: 530 | AR78: 97 | AS78: 0 | AT78: 760 | AU78: 2.2 | AV78: 175 | AW78: 150 | AX78: 0.19 | AY78: 0.48 | AZ78: 0 | BA78: 0 | BB78: 0 | BC78: 0.03 | BD78: 0.35 | BE78: 0.1 | BF78: 0 | BG78: 0.09 | BH78: 40 | BI78: 0
A79: 1641 | B79: légumes cuits | C79: Asperge. appertisée. égouttée | D79: 100 | E79: 18.3 | F79: 94.2 | G79: 1.79 | H79: 1.43 | I79: 0.27 | J79: 1.23 | K79: 0 | L79: 1.5 | M79: 0 | N79: 0.96 | O79: 0 | P79: 0 | Q79: 0.085 | R79: 0.012 | S79: 0.17 | T79: 0 | U79: 0 | V79: 0 | W79: 0 | X79: 0.0019 | Y79: 0.0039 | Z79: 0.074 | AA79: 0.0048 | AB79: 0.002 | AC79: 0.05 | AD79: 0.004 | AE79: 0 | AF79: 0 | AG79: 0 | AH79: 0 | AI79: 0.7 | AJ79: 15.8 | AK79: 0 | AL79: 0.076 | AM79: 1.09 | AN79: 0.7 | AO79: 8.5 | AP79: 0.16 | AQ79: 35 | AR79: 142 | AS79: 0.2 | AT79: 291 | AU79: 0.42 | AV79: 0 | AW79: 493 | AX79: 0 | AY79: 0.74 | AZ79: 41.3 | BA79: 0 | BB79: 18.4 | BC79: 0.046 | BD79: 0.07 | BE79: 0.63 | BF79: 0.1 | BG79: 0.11 | BH79: 72 | BI79: 0
A80: 1600 | B80: légumes crus | C80: Asperge. blanche ou violette. pelée. crue | D80: 100 | E80: 26.3 | F80: 92.4 | G80: 2.5 | H80: 2.5 | I80: 0.3 | J80: 0 | K80: 0 | L80: 1.8 | M80: 0 | N80: 0.6 | O80: 0 | P80: 0 | Q80: 0.07 | R80: 0.006 | S80: 0.17 | T80: 0 | U80: 0 | V80: 0 | W80: 0 | X80: 0 | Y80: 0 | Z80: 0.068 | AA80: 0.002 | AB80: 0.005 | AC80: 0.15 | AD80: 0.014 | AE80: 0 | AF80: 0 | AG80: 0 | AH80: 0 | AI80: 0.019 | AJ80: 16.6 | AK80: 0 | AL80: 0 | AM80: 0 | AN80: 0 | AO80: 7.3 | AP80: 0 | AQ80: 42.5 | AR80: 169 | AS80: 0 | AT80: 7.7 | AU80: 0 | AV80: 0 | AW80: 0 | AX80: 0 | AY80: 0 | AZ80: 0 | BA80: 0 | BB80: 18 | BC80: 0 | BD80: 0 | BE80: 0 | BF80: 0 | BG80: 0.072 | BH80: 150 | BI80: 0
A81: 1606 | B81: légumes cuits | C81: Asperge. bouillie/cuite à l'eau | D81: 100 | E81: 19.8 | F81: 93 | G81: 2.53 | H81: 0.81 | I81: 0.32 | J81: 0.81 | K81: 0 | L81: 1.8 | M81: 0 | N81: 0.62 | O81: 0 | P81: 0 | Q81: 0.072 | R81: 0.013 | S81: 0.15 | T81: 0 | U81: 0 | V81: 0 | W81: 0 | X81: 0.00094 | Y81: 0.0028 | Z81: 0.063 | AA81: 0.0056 | AB81: 0 | AC81: 0 | AD81: 0 | AE81: 0 | AF81: 0 | AG81: 0 | AH81: 0 | AI81: 0.028 | AJ81: 19.9 | AK81: 0 | AL81: 0.074 | AM81: 0.74 | AN81: 0.25 | AO81: 6.31 | AP81: 0.049 | AQ81: 51.5 | AR81: 198 | AS81: < 3.35 | AT81: 8.5 | AU81: 0.2 | AV81: 0 | AW81: 544 | AX81: 0 | AY81: 1.35 | AZ81: 65.3 | BA81: 0 | BB81: 16.1 | BC81: 0.11 | BD81: 0.12 | BE81: 1.06 | BF81: 0.19 | BG81: 0.05 | BH81: 142 | BI81: 0
A82: 1527 | B82: légumes crus | C82: Asperge. pelée. crue | D82: 100 | E82: 23.5 | F82: 93.3 | G82: 2.04 | H82: 2.4 | I82: 0.21 | J82: 1.88 | K82: 0 | L82: 1.95 | M82: 0 | N82: 0.54 | O82: 0 | P82: 0 | Q82: 0.051 | R82: 0.005 | S82: 0.098 | T82: 0 | U82: 0 | V82: 0 | W82: 0 | X82: 0 | Y82: 0 | Z82: 0.049 | AA82: 0.002 | AB82: 0.004 | AC82: 0.09 | AD82: 0.0081 | AE82: 0 | AF82: 0 | AG82: 0 | AH82: 0 | AI82: 0.011 | AJ82: 22 | AK82: 0 | AL82: 0.12 | AM82: 1.32 | AN82: 0.15 | AO82: 11.5 | AP82: 0.16 | AQ82: 52 | AR82: 202 | AS82: 1 | AT82: 4.2 | AU82: 0.49 | AV82: 0 | AW82: 449 | AX82: 0 | AY82: 0.72 | AZ82: 40.3 | BA82: 0 | BB82: 8.8 | BC82: 0.13 | BD82: 0.12 | BE82: 0.99 | BF82: 0.17 | BG82: 0.076 | BH82: 101 | BI82: 0
A83: 1598 | B83: légumes crus | C83: Asperge. verte. crue | D83: 100 | E83: 24.7 | F83: 92.5 | G83: 2.46 | H83: 2.03 | I83: 0.27 | J83: 1.5 | K83: 0 | L83: 2.15 | M83: 0 | N83: 0.5 | O83: 0 | P83: 0 | Q83: 0.069 | R83: 0.007 | S83: 0.16 | T83: 0 | U83: 0 | V83: 0 | W83: 0 | X83: 0 | Y83: 0 | Z83: 0.067 | AA83: 0.002 | AB83: 0.005 | AC83: 0.15 | AD83: 0.013 | AE83: 0 | AF83: 0 | AG83: 0 | AH83: 0 | AI83: 0.014 | AJ83: 22.4 | AK83: 0 | AL83: 0 | AM83: 1 | AN83: 0 | AO83: 12.2 | AP83: 0 | AQ83: 85.5 | AR83: 267 | AS83: 0 | AT83: 3.85 | AU83: 0 | AV83: 0 | AW83: 0 | AX83: 0 | AY83: 0 | AZ83: 0 | BA83: 0 | BB83: 15.5 | BC83: 0 | BD83: 0 | BE83: 0 | BF83: 0 | BG83: 0.15 | BH83: 150 | BI83: 0
A84: 1514 | B84: légumes crus | C84: Aubergine. crue | D84: 100 | E84: 21.2 | F84: 92.9 | G84: 1.12 | H84: 2.39 | I84: 0.14 | J84: 2.39 | K84: 0 | L84: 2.7 | M84: 0 | N84: 0.58 | O84: 0 | P84: 0.18 | Q84: 0.034 | R84: 0.016 | S84: 0.076 | T84: 0 | U84: 0 | V84: 0 | W84: 0 | X84: 0 | Y84: 0 | Z84: 0.025 | AA84: 0.009 | AB84: 0.011 | AC84: 0.067 | AD84: 0.0091 | AE84: 0 | AF84: 0 | AG84: 0 | AH84: 0 | AI84: 0.0063 | AJ84: 8.7 | AK84: 0 | AL84: 0.081 | AM84: 0.32 | AN84: 0.15 | AO84: 12 | AP84: 0.24 | AQ84: 27.2 | AR84: 235 | AS84: 0.2 | AT84: 2.5 | AU84: 0.16 | AV84: 0 | AW84: 14 | AX84: 0 | AY84: 0.17 | AZ84: 3.5 | BA84: 0 | BB84: 2.1 | BC84: 0.045 | BD84: 0.034 | BE84: 0.72 | BF84: 0.25 | BG84: 0.082 | BH84: 24.5 | BI84: 0
A85: 1607 | B85: légumes cuits | C85: Aubergine. cuite | D85: 100 | E85: 32.7 | F85: 89.7 | G85: 1.23 | H85: 4.17 | I85: 0.28 | J85: 3.41 | K85: 0 | L85: 4.3 | M85: 0 | N85: 0.67 | O85: 0 | P85: 0 | Q85: 0.052 | R85: 0.07 | S85: 0.12 | T85: 0 | U85: 0 | V85: 0 | W85: 0 | X85: 0 | Y85: 0.001 | Z85: 0.032 | AA85: 0.012 | AB85: 0.012 | AC85: 0.12 | AD85: 0 | AE85: 0 | AF85: 0 | AG85: 0 | AH85: 0 | AI85: 0.015 | AJ85: 20.1 | AK85: 0 | AL85: 0.058 | AM85: 0.25 | AN85: 1 | AO85: 15 | AP85: 0.12 | AQ85: 15 | AR85: 123 | AS85: < 3.35 | AT85: 5.95 | AU85: 0.098 | AV85: 0 | AW85: 22 | AX85: 0 | AY85: 0.41 | AZ85: 2.9 | BA85: 0 | BB85: 1.3 | BC85: 0.076 | BD85: 0.02 | BE85: 0.6 | BF85: 0.075 | BG85: 0.086 | BH85: 14 | BI85: 0
A86: 266 | B86: autres viandes | C86: Autruche. viande crue | D86: 100 | E86: 159 | F86: 71.1 | G86: 20.2 | H86: 0 | I86: 8.7 | J86: 0 | K86: 0 | L86: 0 | M86: 0 | N86: 0.73 | O86: 0 | P86: 0 | Q86: 0 | R86: 0 | S86: 0 | T86: 0 | U86: 0 | V86: 0 | W86: 0 | X86: 0 | Y86: 0 | Z86: 0 | AA86: 0 | AB86: 0 | AC86: 0 | AD86: 0 | AE86: 0 | AF86: 0 | AG86: 0 | AH86: 71 | AI86: 0.18 | AJ86: 7 | AK86: 0 | AL86: 0.13 | AM86: 2.91 | AN86: 0 | AO86: 20 | AP86: 0.017 | AQ86: 199 | AR86: 291 | AS86: 0 | AT86: 72 | AU86: 3.51 | AV86: 0 | AW86: 0 | AX86: 0 | AY86: 0.24 | AZ86: 0 | BA86: 0 | BB86: 0 | BC86: 0.18 | BD86: 0.27 | BE86: 4.38 | BF86: 1.08 | BG86: 0.48 | BH86: 7 | BI86: 4.61
A87: 241 | B87: autres viandes | C87: Autruche. viande cuite | D87: 100 | E87: 168 | F87: 67.1 | G87: 26.2 | H87: 0 | I87: 7.07 | J87: 0 | K87: 0 | L87: 0 | M87: 0 | N87: 0.83 | O87: 0 | P87: 0 | Q87: 0 | R87: 0 | S87: 0 | T87: 0 | U87: 0 | V87: 0 | W87: 0 | X87: 0 | Y87: 0 | Z87: 0 | AA87: 0 | AB87: 0 | AC87: 0 | AD87: 0 | AE87: 0 | AF87: 0 | AG87: 0 | AH87: 83 | AI87: 0.2 | AJ87: 8 | AK87: 0 | AL87: 0.14 | AM87: 3.43 | AN87: 0 | AO87: 23 | AP87: 0.017 | AQ87: 224 | AR87: 323 | AS87: 0 | AT87: 80 | AU87: 4.33 | AV87: 0 | AW87: 0 | AX87: 0.1 | AY87: 0.24 | AZ87: 3.5 | BA87: 0 | BB87: 0 | BC87: 0.21 | BD87: 0.27 | BE87: 6.56 | BF87: 1.21 | BG87: 0.5 | BH87: 14 | BI87: 5.74
A88: 1492 | B88: légumes crus | C88: Avocat. pulpe. cru | D88: 100 | E88: 155 | F88: 75.7 | G88: 1.61 | H88: 3.67 | I88: 13.8 | J88: 1 | K88: 2.1 | L88: 4 | M88: 0 | N88: 0.92 | O88: 0 | P88: 0.3 | Q88: 2.17 | R88: 7.67 | S88: 1.57 | T88: 0 | U88: 0 | V88: 0.00099 | W88: 0 | X88: 0 | Y88: 0.013 | Z88: 2.08 | AA88: 0.077 | AB88: 7.67 | AC88: 1.35 | AD88: 0.081 | AE88: 0.016 | AF88: 0 | AG88: 0 | AH88: < 0.5 | AI88: 0.063 | AJ88: 11.2 | AK88: < 10 | AL88: 0.25 | AM88: 0.34 | AN88: < 10 | AO88: 25.2 | AP88: 0.24 | AQ88: 44.4 | AR88: 343 | AS88: < 2.58 | AT88: 25 | AU88: 0.46 | AV88: 0 | AW88: 60 | AX88: 0 | AY88: 1.77 | AZ88: 14.5 | BA88: 0 | BB88: 4.07 | BC88: 0.05 | BD88: 0.13 | BE88: 1.2 | BF88: 0.77 | BG88: 0.12 | BH88: 79.9 | BI88: 0
A89: 1918 | B89: pâtes. riz et céréales crus | C89: Avoine. crue | D89: 100 | E89: 378 | F89: 8.22 | G89: 16.9 | H89: 55.7 | I89: 6.9 | J89: 1.2 | K89: 52.6 | L89: 10.6 | M89: 0 | N89: 1.72 | O89: 0 | P89: 0 | Q89: 1.22 | R89: 2.18 | S89: 2.54 | T89: 0 | U89: 0 | V89: 0 | W89: 0 | X89: 0.024 | Y89: 0.015 | Z89: 1.03 | AA89: 0.065 | AB89: 2.17 | AC89: 1.65 | AD89: 0.073 | AE89: 0 | AF89: 0 | AG89: 0 | AH89: 0 | AI89: 0.005 | AJ89: 54 | AK89: 70 | AL89: 0.63 | AM89: 4.72 | AN89: 0 | AO89: 177 | AP89: 4.92 | AQ89: 523 | AR89: 429 | AS89: 9 | AT89: 2 | AU89: 3.97 | AV89: 0 | AW89: 0 | AX89: 0 | AY89: 1.09 | AZ89: 0 | BA89: 0 | BB89: 0 | BC89: 0.76 | BD89: 0.14 | BE89: 0.96 | BF89: 1.35 | BG89: 0.12 | BH89: 56 | BI89: 0
A90: 1216 | B90: gâteaux et pâtisseries | C90: Baba au rhum. préemballé | D90: 100 | E90: 175 | F90: 64.5 | G90: 3.05 | H90: 21.3 | I90: 5.3 | J90: 17.9 | K90: 0 | L90: 1.46 | M90: 0 | N90: 0.65 | O90: 3.8 | P90: 0 | Q90: 3.31 | R90: 1.2 | S90: 0.28 | T90: 0 | U90: 0 | V90: 0 | W90: 0 | X90: 0 | Y90: 0 | Z90: 0 | AA90: 0 | AB90: 0 | AC90: 0.25 | AD90: 0.02 | AE90: 0 | AF90: 0 | AG90: 0 | AH90: 0 | AI90: 0.28 | AJ90: 0 | AK90: 0 | AL90: 0 | AM90: 0 | AN90: 0 | AO90: 0 | AP90: 0 | AQ90: 0 | AR90: 0 | AS90: 0 | AT90: 130 | AU90: 0 | AV90: 0 | AW90: 0 | AX90: 0 | AY90: 0 | AZ90: 0 | BA90: 0 | BB90: 0 | BC90: 0 | BD90: 0 | BE90: 0 | BF90: 0 | BG90: 0 | BH90: 0 | BI90: 0
A91: 1855 | B91: pains | C91: Bagel | D91: 100 | E91: 272 | F91: 34.3 | G91: 9.26 | H91: 47.3 | I91: 3.98 | J91: 5.36 | K91: 0 | L91: 3.42 | M91: 0 | N91: 1.81 | O91: 0 | P91: 0 | Q91: 1.02 | R91: 0.18 | S91: 0.78 | T91: 0 | U91: 0 | V91: 0 | W91: 0 | X91: 0 | Y91: 0 | Z91: 0.21 | AA91: 0.012 | AB91: 0 | AC91: 0 | AD91: 0 | AE91: 0 | AF91: 0 | AG91: 0 | AH91: 0 | AI91: 1.08 | AJ91: 37.3 | AK91: 0 | AL91: 0.17 | AM91: 1.83 | AN91: 0 | AO91: 36.3 | AP91: 0.84 | AQ91: 111 | AR91: 122 | AS91: 0 | AT91: 410 | AU91: 0.95 | AV91: 0 | AW91: 2 | AX91: 0 | AY91: 0.32 | AZ91: 1.5 | BA91: 0 | BB91: 0 | BC91: 0.24 | BD91: 0.1 | BE91: 2.3 | BF91: 0.37 | BG91: 0.083 | BH91: 25 | BI91: 0
A92: 1228 | B92: gâteaux et pâtisseries | C92: Baklava ou Baklawa (pâtisserie orientale aux amandes et sirop) | D92: 100 | E92: 463 | F92: 13.5 | G92: 10.4 | H92: 50 | I92: 24.5 | J92: 39.6 | K92: 9.6 | L92: < 1 | M92: 0 | N92: 1.04 | O92: 0 | P92: 0 | Q92: 4.7 | R92: 13.9 | S92: 5.34 | T92: 0.057 | U92: 0.041 | V92: 0.023 | W92: 0.065 | X92: 0.093 | Y92: 0.22 | Z92: 3.22 | AA92: 0.79 | AB92: 13.8 | AC92: 5.26 | AD92: 0.077 | AE92: < 0.012 | AF92: 0 | AG92: 0 | AH92: 37 | AI92: 0.075 | AJ92: 98.3 | AK92: 46 | AL92: 0.4 | AM92: 1.5 | AN92: 20 | AO92: 95 | AP92: 0.9 | AQ92: 125 | AR92: 255 | AS92: < 5 | AT92: 29.8 | AU92: 1.12 | AV92: 92 | AW92: 26 | AX92: 0.18 | AY92: 6.55 | AZ92: 0 | BA92: 0 | BB92: 0.4 | BC92: 0.062 | BD92: 0.3 | BE92: 1.2 | BF92: 0.16 | BG92: 0.18 | BH92: 24 | BI92: 0.02
A93: 1570 | B93: légumes crus | C93: Bambou. pousse. crue | D93: 100 | E93: 35.1 | F93: 89.8 | G93: 2.52 | H93: 5.08 | I93: 0.2 | J93: 3 | K93: 0 | L93: 1.45 | M93: 0 | N93: 0.95 | O93: 0 | P93: 0 | Q93: 0.053 | R93: 0.0053 | S93: 0.1 | T93: 0 | U93: 0 | V93: 0 | W93: 0 | X93: 0.0017 | Y93: 0.0017 | Z93: 0.044 | AA93: 0.0052 | AB93: 0 | AC93: 0 | AD93: 0 | AE93: 0 | AF93: 0 | AG93: 0 | AH93: 0 | AI93: 0.01 | AJ93: 15.5 | AK93: 0 | AL93: 0.19 | AM93: 0.4 | AN93: 0 | AO93: 3 | AP93: 0.26 | AQ93: 54.5 | AR93: 517 | AS93: 0 | AT93: 4 | AU93: 1.1 | AV93: 0 | AW93: 12 | AX93: 0 | AY93: 1 | AZ93: 0 | BA93: 0 | BB93: 7.5 | BC93: 0.095 | BD93: 0.095 | BE93: 0.55 | BF93: 0.16 | BG93: 0.24 | BH93: 7 | BI93: 0
A94: 1667 | B94: légumes cuits | C94: Bambou. pousses. appertisées. égouttées | D94: 100 | E94: 17.9 | F94: 95 | G94: 1.61 | H94: 1.9 | I94: 0.15 | J94: 1.15 | K94: 0 | L94: 1.25 | M94: 0 | N94: 0.43 | O94: 0 | P94: 0 | Q94: 0.041 | R94: 0.004 | S94: 0.078 | T94: 0 | U94: 0 | V94: 0 | W94: 0 | X94: 0.0013 | Y94: 0.0016 | Z94: 0.034 | AA94: 0.0038 | AB94: 0 | AC94: 0 | AD94: 0 | AE94: 0 | AF94: 0 | AG94: 0 | AH94: 0 | AI94: 0.19 | AJ94: 17 | AK94: 0 | AL94: 0.098 | AM94: 0.24 | AN94: 0 | AO94: 3.5 | AP94: 0.14 | AQ94: 26.8 | AR94: 196 | AS94: 0 | AT94: 74.1 | AU94: 0.56 | AV94: 0 | AW94: 8 | AX94: 0 | AY94: 0.63 | AZ94: 0 | BA94: 0 | BB94: 1.1 | BC94: 0.017 | BD94: 0.039 | BE94: 0.16 | BF94: 0.079 | BG94: 0.12 | BH94: 2.5 | BI94: 0
A95: 1604 | B95: légumes crus | C95: Banane plantain. crue | D95: 100 | E95: 132 | F95: 65.3 | G95: 1.28 | H95: 29.6 | I95: 0.39 | J95: 0 | K95: 23.7 | L95: 2.3 | M95: 0 | N95: 1.19 | O95: 0 | P95: 0 | Q95: 0.14 | R95: 0.032 | S95: 0.069 | T95: 0 | U95: 0 | V95: 0 | W95: 0.001 | X95: 0.002 | Y95: 0.002 | Z95: 0.096 | AA95: 0.005 | AB95: 0 | AC95: 0 | AD95: 0 | AE95: 0 | AF95: 0 | AG95: 0 | AH95: 0 | AI95: 0.01 | AJ95: 3 | AK95: 0 | AL95: 0.081 | AM95: 0.6 | AN95: 2.5 | AO95: 37 | AP95: traces | AQ95: 34 | AR95: 499 | AS95: 0 | AT95: 4 | AU95: 0.14 | AV95: 0 | AW95: 457 | AX95: 0 | AY95: 0.14 | AZ95: 0.7 | BA95: 0 | BB95: 18.4 | BC95: 0.052 | BD95: 0.054 | BE95: 0.69 | BF95: 0.26 | BG95: 0.3 | BH95: 22 | BI95: 0
A96: 2376 | B96: pommes de terre et autres tubercules | C96: Banane plantain. cuite | D96: 100 | E96: 125 | F96: 67.3 | G96: 0.79 | H96: 28.9 | I96: 0.18 | J96: 14 | K96: 0 | L96: 2.3 | M96: 0 | N96: 0.58 | O96: 0 | P96: traces | Q96: 0.069 | R96: 0.015 | S96: 0.033 | T96: 0 | U96: 0 | V96: 0 | W96: 0 | X96: 0.001 | Y96: 0.001 | Z96: 0.047 | AA96: 0.002 | AB96: 0 | AC96: 0 | AD96: 0 | AE96: 0 | AF96: 0 | AG96: 0 | AH96: 0 | AI96: 0.013 | AJ96: 2 | AK96: 0 | AL96: 0.066 | AM96: 0.58 | AN96: 0 | AO96: 32 | AP96: 0 | AQ96: 28 | AR96: 465 | AS96: 0 | AT96: 5 | AU96: 0.13 | AV96: 0 | AW96: 369 | AX96: 0 | AY96: 0.13 | AZ96: 0.7 | BA96: 0 | BB96: 10.9 | BC96: 0.046 | BD96: 0.052 | BE96: 0.76 | BF96: 0.23 | BG96: 0.24 | BH96: 26 | BI96: 0
A97: 1143 | B97: fruits crus | C97: Banane. pulpe. crue | D97: 100 | E97: 90 | F97: 75.8 | G97: 0.98 | H97: 19.6 | I97: 0.25 | J97: 14.8 | K97: 2.1 | L97: 1.9 | M97: 0 | N97: 0.97 | O97: 0 | P97: 0.56 | Q97: 0.099 | R97: 0.035 | S97: 0.078 | T97: 0 | U97: 0 | V97: 0 | W97: 0 | X97: 0 | Y97: 0.0014 | Z97: 0.087 | AA97: 0.01 | AB97: 0.026 | AC97: 0.032 | AD97: 0.035 | AE97: 0 | AF97: 0 | AG97: 0 | AH97: 0 | AI97: 0.0038 | AJ97: 4.12 | AK97: 0 | AL97: 0.082 | AM97: 0.26 | AN97: 0.4 | AO97: 34.9 | AP97: 0.37 | AQ97: 24.7 | AR97: 360 | AS97: < 10 | AT97: < 1.11 | AU97: 0.15 | AV97: 0 | AW97: 26 | AX97: 0 | AY97: 0.33 | AZ97: 0.5 | BA97: 0 | BB97: 2.07 | BC97: 0.035 | BD97: 0.049 | BE97: 0.68 | BF97: 0.3 | BG97: 0.38 | BH97: 29 | BI97: 0
A98: 1207 | B98: fruits séchés | C98: Banane. pulpe. sèche | D98: 100 | E98: 333.8 | F98: 3 | G98: 3.89 | H98: 78.4 | I98: 1.81 | J98: 47.3 | K98: 0 | L98: 9.9 | M98: 0 | N98: 3.02 | O98: 0 | P98: 0 | Q98: 0.7 | R98: 0.15 | S98: 0.34 | T98: 0 | U98: 0 | V98: 0.001 | W98: 0 | X98: 0.006 | Y98: 0.013 | Z98: 0.47 | AA98: 0.023 | AB98: 0 | AC98: 0 | AD98: 0 | AE98: 0 | AF98: 0 | AG98: 0 | AH98: 0 | AI98: 0.0075 | AJ98: 22 | AK98: 0 | AL98: 0.39 | AM98: 1.15 | AN98: 3 | AO98: 108 | AP98: 0.57 | AQ98: 74 | AR98: 1490 | AS98: 0 | AT98: 3 | AU98: 0.61 | AV98: 0 | AW98: 101 | AX98: 0 | AY98: 0.39 | AZ98: 2 | BA98: 0 | BB98: 7 | BC98: 0.18 | BD98: 0.24 | BE98: 2.8 | BF98: 0 | BG98: 0.44 | BH98: 14 | BI98: 0
A99: 2247 | B99: poissons crus | C99: Bar commun ou loup (Méditerranée). cru. élevage | D99: 100 | E99: 124 | F99: 72.8 | G99: 21.4 | H99: 0 | I99: 4.25 | J99: 0 | K99: 0 | L99: 0 | M99: 0 | N99: 1.49 | O99: 0 | P99: 0 | Q99: 1.04 | R99: 1.09 | S99: 1.56 | T99: 0 | U99: 0 | V99: 0 | W99: 0 | X99: 0.001 | Y99: 0.17 | Z99: 0.68 | AA99: 0.14 | AB99: 0.57 | AC99: 0.24 | AD99: 0.038 | AE99: 0.035 | AF99: 0.4 | AG99: 0.54 | AH99: 56.8 | AI99: 0.12 | AJ99: 5.6 | AK99: 0 | AL99: < 0.1 | AM99: 0.39 | AN99: 9.36 | AO99: 32.3 | AP99: < 0.1 | AQ99: 209 | AR99: 430 | AS99: 7.57 | AT99: 46.6 | AU99: 0.41 | AV99: 14.7 | AW99: < 0.0063 | AX99: 2.31 | AY99: 1.35 | AZ99: 0 | BA99: 0 | BB99: 0 | BC99: 0.18 | BD99: 0.09 | BE99: 6.79 | BF99: 0.53 | BG99: 0.39 | BH99: 0 | BI99: 4.33
A100: 2246 | B100: poissons crus | C100: Bar commun ou loup (Méditerranée). cru. sauvage | D100: 100 | E100: 97.9 | F100: 76.8 | G100: 20.1 | H100: 0 | I100: 1.94 | J100: 0 | K100: 0 | L100: 0 | M100: 0 | N100: 1.18 | O100: 0 | P100: 0 | Q100: 0.49 | R100: 0.55 | S100: 0.59 | T100: 0 | U100: 0 | V100: 0 | W100: 0 | X100: 0.001 | Y100: 0.041 | Z100: 0.33 | AA100: 0.084 | AB100: 0.26 | AC100: 0.015 | AD100: 0.008 | AE100: 0.059 | AF100: 0.13 | AG100: 0.28 | AH100: 58.1 | AI100: 0.18 | AJ100: 1.56 | AK100: 0 | AL100: < 0.1 | AM100: 0.4 | AN100: 23.3 | AO100: 28.3 | AP100: < 0.1 | AQ100: 191 | AR100: 371 | AS100: 25.4 | AT100: 71.4 | AU100: 0.43 | AV100: 5.6 | AW100: 0 | AX100: 3.65 | AY100: 0.71 | AZ100: 0 | BA100: 0 | BB100: 0 | BC100: 0.064 | BD100: 0.098 | BE100: 3.72 | BF100: 0.33 | BG100: 0.39 | BH100: 0 | BI100: 4.16
A101: 2187 | B101: poissons crus | C101: Bar commun ou loup. cru. sans précision | D101: 100 | E101: 82.5 | F101: 78.1 | G101: 19.1 | H101: 0 | I101: 0.7 | J101: 0 | K101: 0 | L101: 0 | M101: 0 | N101: 1.27 | O101: 0 | P101: 0 | Q101: 0.2 | R101: 0.21 | S101: 0.19 | T101: < 0.01 | U101: < 0.01 | V101: < 0.01 | W101: < 0.01 | X101: < 0.01 | Y101: 0.02 | Z101: 0.14 | AA101: 0.04 | AB101: 0.14 | AC101: 0.02 | AD101: < 0.01 | AE101: < 0.01 | AF101: 0.04 | AG101: 0.12 | AH101: 47.6 | AI101: 0.23 | AJ101: 10 | AK101: 119 | AL101: 0.04 | AM101: 0.26 | AN101: 21.9 | AO101: 27 | AP101: < 0.01 | AQ101: 207 | AR101: 390 | AS101: 30 | AT101: 92.3 | AU101: 0.3 | AV101: < 21 | AW101: 0 | AX101: 5.59 | AY101: 0.79 | AZ101: < 0.8 | BA101: 0 | BB101: 0.66 | BC101: 0.025 | BD101: 0.058 | BE101: 3.67 | BF101: 0.55 | BG101: 0.34 | BH101: 22.2 | BI101: 3.12
A102: 2333 | B102: poissons cuits | C102: Bar commun ou loup. rôti/cuit au four | D102: 100 | E102: 147 | F102: 69.1 | G102: 22.2 | H102: 0 | I102: 6.51 | J102: 0 | K102: 0 | L102: 0 | M102: 0 | N102: 1.26 | O102: 0 | P102: 0 | Q102: 1.27 | R102: 2.36 | S102: 2.14 | T102: < 0.0029 | U102: < 0.0029 | V102: < 0.0029 | W102: < 0.0029 | X102: 0.003 | Y102: 0.16 | Z102: 0.85 | AA102: 0.19 | AB102: 1.45 | AC102: 0.56 | AD102: 0.15 | AE102: 0.042 | AF102: 0.35 | AG102: 0.5 | AH102: 63.3 | AI102: 0.17 | AJ102: 11 | AK102: 119 | AL102: 0.05 | AM102: 0.28 | AN102: 13.4 | AO102: 30.3 | AP102: 0.01 | AQ102: 183 | AR102: 410 | AS102: < 50 | AT102: 68.8 | AU102: 0.42 | AV102: < 21 | AW102: 0 | AX102: 4.15 | AY102: 0.97 | AZ102: < 0.8 | BA102: 0 | BB102: 0 | BC102: 0.17 | BD102: 0.08 | BE102: 3.49 | BF102: 0.53 | BG102: 0.26 | BH102: 12.6 | BI102: 3.7
A103: 2189 | B103: poissons crus | C103: Bar ou loup de l'Atlantique. cru | D103: 100 | E103: 89.9 | F103: 79.6 | G103: 16.6 | H103: 0 | I103: 2.61 | J103: 0 | K103: 0 | L103: 0 | M103: 0 | N103: 1.12 | O103: 0 | P103: 0 | Q103: 0.42 | R103: 0.81 | S103: 0.9 | T103: 0 | U103: 0 | V103: 0 | W103: 0 | X103: 0 | Y103: 0.05 | Z103: 0.29 | AA103: 0.085 | AB103: 0.47 | AC103: 0.036 | AD103: 0.015 | AE103: 0.11 | AF103: 0.38 | AG103: 0.29 | AH103: 50 | AI103: 0.25 | AJ103: 20.3 | AK103: 0 | AL103: 0.04 | AM103: 0.72 | AN103: 60 | AO103: 26.4 | AP103: 0.013 | AQ103: 185 | AR103: 286 | AS103: 57.5 | AT103: 99 | AU103: 0.74 | AV103: 49.7 | AW103: 0 | AX103: 0.77 | AY103: 2.4 | AZ103: 0 | BA103: 0 | BB103: traces | BC103: 0.19 | BD103: 0.064 | BE103: 2.33 | BF103: 0.57 | BG103: 0.37 | BH103: 3 | BI103: 2.08
A104: 2165 | B104: poissons crus | C104: Bar rayé ou bar d'Amérique. cru | D104: 100 | E104: 113 | F104: 74.6 | G104: 20.3 | H104: 0 | I104: 3.58 | J104: 0 | K104: 0 | L104: 0 | M104: 0 | N104: 1.5 | O104: 0 | P104: 0 | Q104: 0.76 | R104: 1.31 | S104: 1.07 | T104: 0 | U104: 0 | V104: 0 | W104: 0 | X104: 0 | Y104: 0.08 | Z104: 0.58 | AA104: 0.1 | AB104: 0 | AC104: 0 | AD104: 0 | AE104: 0 | AF104: 0.24 | AG104: 0.47 | AH104: 78.3 | AI104: 0.19 | AJ104: 66 | AK104: 0 | AL104: 0.081 | AM104: 1.41 | AN104: 60 | AO104: 36 | AP104: 0.68 | AQ104: 218 | AR104: 356 | AS104: 0 | AT104: 76.3 | AU104: 0.63 | AV104: 30.7 | AW104: 0 | AX104: 0 | AY104: 0 | AZ104: 0 | BA104: 0 | BB104: 2.05 | BC104: 0.087 | BD104: 0.065 | BE104: 1.62 | BF104: 0.79 | BG104: 0.19 | BH104: 13.7 | BI104: 2.71
A105: 619 | B105: chocolats et produits à base de chocolat | C105: Barre à la noix de coco. enrobée de chocolat | D105: 100 | E105: 475 | F105: 7.83 | G105: 3.88 | H105: 60.2 | I105: 23.8 | J105: 53 | K105: 3.9 | L105: 3 | M105: 0.81 | N105: 1.31 | O105: 0 | P105: 7.2e-05 | Q105: 18.4 | R105: 3.81 | S105: 0.51 | T105: 0 | U105: 0.092 | V105: 1.03 | W105: 0.88 | X105: 6.85 | Y105: 2.72 | Z105: 3.59 | AA105: 3.28 | AB105: 3.81 | AC105: 0.48 | AD105: 0.023 | AE105: 0 | AF105: 0 | AG105: 0 | AH105: 5.5 | AI105: 0.5 | AJ105: 78.8 | AK105: 155 | AL105: 0.3 | AM105: 1.8 | AN105: 11 | AO105: 46.8 | AP105: 0.6 | AQ105: 103 | AR105: 331 | AS105: 1 | AT105: 200 | AU105: 0.8 | AV105: 8 | AW105: 11 | AX105: < 0.5 | AY105: 0.18 | AZ105: 0 | BA105: 0 | BB105: < 0.5 | BC105: 0.042 | BD105: 0.18 | BE105: 0.47 | BF105: 0.27 | BG105: 0.21 | BH105: 25 | BI105: 0.17
A106: 364 | B106: biscuits sucrés | C106: Barre biscuitée fourrée aux fruits. allégée en matière grasse | D106: 100 | E106: 370.2 | F106: 10.5 | G106: 3.31 | H106: 75.7 | I106: 7.12 | J106: 41.9 | K106: 20.9 | L106: 3 | M106: 0 | N106: 0.42 | O106: 0 | P106: 0 | Q106: 2.64 | R106: 3.56 | S106: 0.72 | T106: < 0.005 | U106: 0.0047 | V106: 0.032 | W106: 0.02 | X106: 0.15 | Y106: 0.096 | Z106: 2.03 | AA106: 0.26 | AB106: 3.39 | AC106: 0.7 | AD106: 0.015 | AE106: < 0.005 | AF106: 0.0043 | AG106: < 0.005 | AH106: 0 | AI106: 0.42 | AJ106: 0 | AK106: 0 | AL106: 0 | AM106: 0 | AN106: 0 | AO106: 0 | AP106: 0 | AQ106: 0 | AR106: 0 | AS106: 0 | AT106: 167 | AU106: 0 | AV106: 0 | AW106: 0 | AX106: 0 | AY106: 2.8 | AZ106: 0 | BA106: 0 | BB106: 0 | BC106: 0.29 | BD106: 0 | BE106: 0 | BF106: 0 | BG106: 0 | BH106: 0 | BI106: 0
A107: 268 | B107: barres céréalières | C107: Barre céréalière "équilibre" aux fruits. enrichie en vitamines et minéraux | D107: 100 | E107: 381 | F107: 8 | G107: 6.13 | H107: 73.2 | I107: 6.53 | J107: 30.4 | K107: 40.8 | L107: 4.13 | M107: 1.99 | N107: 2 | O107: 0 | P107: 0 | Q107: 3.5 | R107: 0.53 | S107: 0.73 | T107: 0 | U107: 0 | V107: 0 | W107: 0 | X107: 0 | Y107: 0 | Z107: 0 | AA107: 0 | AB107: 0 | AC107: 0 | AD107: 0 | AE107: 0 | AF107: 0 | AG107: 0 | AH107: traces | AI107: 0.75 | AJ107: 511 | AK107: 0 | AL107: 0 | AM107: 8.05 | AN107: 20 | AO107: 20 | AP107: 0 | AQ107: 85 | AR107: 140 | AS107: 15 | AT107: 297 | AU107: 0.85 | AV107: 0 | AW107: 0 | AX107: traces | AY107: 2.8 | AZ107: 0 | BA107: 0 | BB107: 50 | BC107: 1.07 | BD107: 1.25 | BE107: 14.4 | BF107: 5.1 | BG107: 1.45 | BH107: 169 | BI107: 1.47
A108: 269 | B108: barres céréalières | C108: Barre céréalière "équilibre" chocolatée. enrichie en vitamines et minéraux | D108: 100 | E108: 418 | F108: 4.48 | G108: 5.99 | H108: 72.9 | I108: 10.9 | J108: 32.4 | K108: 36.3 | L108: 3.7 | M108: 1.75 | N108: 2.01 | O108: 0 | P108: 0 | Q108: 6.65 | R108: 1 | S108: 1 | T108: 0 | U108: 0 | V108: 0 | W108: 0 | X108: 0 | Y108: 0 | Z108: 0 | AA108: 0 | AB108: 0 | AC108: 0 | AD108: 0 | AE108: 0 | AF108: 0 | AG108: 0 | AH108: 0 | AI108: 0.7 | AJ108: 607 | AK108: 432 | AL108: 0 | AM108: 6.94 | AN108: 0 | AO108: 35 | AP108: 0 | AQ108: 105 | AR108: 180 | AS108: 0 | AT108: 277 | AU108: 1 | AV108: 0 | AW108: 0 | AX108: 1.1 | AY108: 10 | AZ108: 0 | BA108: 0 | BB108: 56.7 | BC108: 0.91 | BD108: 1.07 | BE108: 12.1 | BF108: 4.8 | BG108: 1.26 | BH108: 140 | BI108: 1.01
A109: 273 | B109: barres céréalières | C109: Barre céréalière aux amandes ou noisettes | D109: 100 | E109: 451 | F109: 5.3 | G109: 7.75 | H109: 63.9 | I109: 17.3 | J109: 25.9 | K109: 38 | L109: 4.36 | M109: 0 | N109: 1.4 | O109: 0 | P109: 0 | Q109: 6.58 | R109: 6.63 | S109: 2.17 | T109: 0 | U109: 0 | V109: 0 | W109: 0 | X109: 0.023 | Y109: 0.11 | Z109: 4.36 | AA109: 0.6 | AB109: 6.63 | AC109: 1.18 | AD109: 0.03 | AE109: 0.0024 | AF109: 0.01 | AG109: 0.048 | AH109: 0 | AI109: 0.54 | AJ109: 100 | AK109: 0 | AL109: 0 | AM109: 4.9 | AN109: 7 | AO109: 40 | AP109: 0 | AQ109: 140 | AR109: 180 | AS109: 0 | AT109: 216 | AU109: 0.8 | AV109: 0 | AW109: 0 | AX109: traces | AY109: 0.16 | AZ109: 0 | BA109: 0 | BB109: 0 | BC109: 1 | BD109: 1.1 | BE109: 12.6 | BF109: 0 | BG109: 1.4 | BH109: 140 | BI109: 0.7
A110: 272 | B110: barres céréalières | C110: Barre céréalière aux fruits | D110: 100 | E110: 377 | F110: 8.68 | G110: 5.49 | H110: 73.5 | I110: 7.07 | J110: 29.6 | K110: 37.1 | L110: 3.8 | M110: 6.45 | N110: 1.44 | O110: 0 | P110: 0 | Q110: 3.44 | R110: 2.3 | S110: 1.02 | T110: 0.0039 | U110: 0.023 | V110: 0.25 | W110: 0.2 | X110: 0.75 | Y110: 0.31 | Z110: 1.59 | AA110: 0.3 | AB110: 2.3 | AC110: 0.89 | AD110: 0.12 | AE110: < 0.0051 | AF110: < 0.0051 | AG110: < 0.0072 | AH110: traces | AI110: 0.63 | AJ110: 84 | AK110: 306 | AL110: 0.38 | AM110: 2.18 | AN110: 20 | AO110: 91 | AP110: 1.2 | AQ110: 241 | AR110: 392 | AS110: 0 | AT110: 249 | AU110: 1.6 | AV110: 0 | AW110: 0 | AX110: traces | AY110: 2.5 | AZ110: 0 | BA110: 0 | BB110: 0.3 | BC110: 0.25 | BD110: 0.24 | BE110: 2.36 | BF110: 0.52 | BG110: 0.6 | BH110: 63.5 | BI110: 0.14
A111: 271 | B111: barres céréalières | C111: Barre céréalière chocolatée | D111: 100 | E111: 451 | F111: 2.54 | G111: 6.55 | H111: 73 | I111: 14.9 | J111: 32.9 | K111: 33.5 | L111: 4.5 | M111: 6.6 | N111: 1.49 | O111: 0 | P111: 0 | Q111: 7.37 | R111: 3.45 | S111: 0.98 | T111: 0.017 | U111: 0.028 | V111: 0.084 | W111: 0.11 | X111: 0.78 | Y111: 0.36 | Z111: 3.49 | AA111: 2.49 | AB111: 3.39 | AC111: 0.88 | AD111: 0.1 | AE111: < 0.013 | AF111: < 0.0049 | AG111: < 0.0049 | AH111: 3.3 | AI111: 0.51 | AJ111: 260 | AK111: 249 | AL111: 0.28 | AM111: 3.1 | AN111: 4 | AO111: 45 | AP111: 0.6 | AQ111: 280 | AR111: 217 | AS111: < 5 | AT111: 201 | AU111: 1 | AV111: 6 | AW111: 11 | AX111: 0.62 | AY111: 1.45 | AZ111: 16.4 | BA111: 0 | BB111: < 0.5 | BC111: 0.58 | BD111: 0.56 | BE111: 6.8 | BF111: 0.33 | BG111: 0.81 | BH111: 74 | BI111: 0.2
A112: 270 | B112: barres céréalières | C112: Barre céréalière diététique hypocalorique | D112: 100 | E112: 386 | F112: 9.5 | G112: 5.9 | H112: 65.3 | I112: 11.2 | J112: 8.5 | K112: 28 | L112: 5.8 | M112: 7.13 | N112: 2.26 | O112: 0 | P112: 0 | Q112: 9.6 | R112: 0.73 | S112: 0.2 | T112: 0 | U112: 0 | V112: 0 | W112: 0 | X112: 0 | Y112: 0 | Z112: 0 | AA112: 0 | AB112: 0 | AC112: 0.2 | AD112: 0 | AE112: 0 | AF112: 0 | AG112: 0 | AH112: 0 | AI112: 0.75 | AJ112: 281 | AK112: 0 | AL112: 0.57 | AM112: 6.55 | AN112: 43 | AO112: 95.1 | AP112: 0.58 | AQ112: 354 | AR112: 763 | AS112: 25.5 | AT112: 300 | AU112: 5.54 | AV112: 0 | AW112: 0 | AX112: 2.3 | AY112: 4.04 | AZ112: 0 | BA112: 0 | BB112: 22.4 | BC112: 0.55 | BD112: 0.73 | BE112: 8.18 | BF112: 2.01 | BG112: 0.79 | BH112: 73 | BI112: 0.65
A113: 267 | B113: barres céréalières | C113: Barre céréalière pour petit déjeuner au lait. chocolatée ou non. enrichie en vitamines et minéraux | D113: 100 | E113: 423 | F113: 5.5 | G113: 6.7 | H113: 72.2 | I113: 11.9 | J113: 31.4 | K113: 38 | L113: 1.6 | M113: 1.5 | N113: 2.14 | O113: 0 | P113: 0 | Q113: 7.15 | R113: 0.85 | S113: 0.75 | T113: 0 | U113: 0 | V113: 0 | W113: 0 | X113: 0 | Y113: 0 | Z113: 0 | AA113: 0 | AB113: 0 | AC113: 0 | AD113: 0 | AE113: 0 | AF113: 0 | AG113: 0 | AH113: 0 | AI113: 0.88 | AJ113: 752 | AK113: 0 | AL113: 0 | AM113: 9.65 | AN113: 7 | AO113: 30 | AP113: 0 | AQ113: 150 | AR113: 320 | AS113: 0 | AT113: 350 | AU113: 0.97 | AV113: 0 | AW113: 0 | AX113: 0 | AY113: 0 | AZ113: 0 | BA113: 0 | BB113: 0 | BC113: 0.99 | BD113: 1.11 | BE113: 12.4 | BF113: 4.2 | BG113: 1.4 | BH113: 138 | BI113: 0.69
A114: 645 | B114: chocolats et produits à base de chocolat | C114: Barre chocolat au lait avec nougat | D114: 100 | E114: 532 | F114: 0.6 | G114: 5.8 | H114: 60.5 | I114: 29 | J114: 60.1 | K114: 0.39 | L114: 2.9 | M114: < 0.5 | N114: 1.33 | O114: 0 | P114: 0 | Q114: 17.4 | R114: 8.89 | S114: 1.1 | T114: 0.22 | U114: 0.14 | V114: 0.09 | W114: 0.19 | X114: 0.24 | Y114: 0.76 | Z114: 7.38 | AA114: 7.93 | AB114: 8.51 | AC114: 1.01 | AD114: 0.09 | AE114: < 0.01 | AF114: < 0.01 | AG114: < 0.01 | AH114: 25.3 | AI114: 0.11 | AJ114: 150 | AK114: 110 | AL114: 0.28 | AM114: 2.3 | AN114: < 20 | AO114: 50 | AP114: 0.36 | AQ114: 160 | AR114: 260 | AS114: < 20 | AT114: 45.3 | AU114: 0.97 | AV114: 55.6 | AW114: 31.5 | AX114: < 0.25 | AY114: 0.84 | AZ114: 3.32 | BA114: 0 | BB114: < 0.5 | BC114: 0.073 | BD114: 0.21 | BE114: 0.11 | BF114: 0.71 | BG114: 0.07 | BH114: 19.2 | BI114: 0.37
A115: 636 | B115: chocolats et produits à base de chocolat | C115: Barre chocolatée aux fruits secs | D115: 100 | E115: 494 | F115: 4.42 | G115: 7.23 | H115: 57.6 | I115: 26 | J115: 45.1 | K115: 10.9 | L115: 1.53 | M115: 1.69 | N115: 1.3 | O115: 0 | P115: traces | Q115: 9.53 | R115: 9.88 | S115: 1.94 | T115: 0 | U115: 0 | V115: 0 | W115: 0.12 | X115: 0.16 | Y115: 0.47 | Z115: 5.2 | AA115: 3.58 | AB115: 5.76 | AC115: 0.92 | AD115: 0.057 | AE115: 0.0037 | AF115: 0 | AG115: 0 | AH115: 5.55 | AI115: 0.38 | AJ115: 122 | AK115: 0 | AL115: 0.4 | AM115: 1.3 | AN115: 4.96 | AO115: 13.6 | AP115: 0 | AQ115: 198 | AR115: 47.3 | AS115: 2.8 | AT115: 151 | AU115: 0.64 | AV115: 1 | AW115: 0 | AX115: 0.03 | AY115: 4.34 | AZ115: 0 | BA115: 0 | BB115: 0 | BC115: 0.036 | BD115: 0.19 | BE115: 0.084 | BF115: 0.47 | BG115: 0.035 | BH115: 0.11 | BI115: 0.3
A116: 617 | B116: chocolats et produits à base de chocolat | C116: Barre chocolatée biscuitée | D116: 100 | E116: 518 | F116: 2.98 | G116: 6.14 | H116: 59.5 | I116: 28.1 | J116: 46.9 | K116: 7.3 | L116: 1.93 | M116: 0.48 | N116: 1.36 | O116: 0 | P116: 0.026 | Q116: 16 | R116: 7.81 | S116: 1.39 | T116: 0.14 | U116: 0.048 | V116: 0.024 | W116: 0.072 | X116: 0.24 | Y116: 0.7 | Z116: 7.68 | AA116: 4.6 | AB116: 7.62 | AC116: 1.08 | AD116: 0.11 | AE116: 0.0014 | AF116: 0 | AG116: < 0.01 | AH116: 5.89 | AI116: 0.39 | AJ116: 263 | AK116: 0 | AL116: 0.18 | AM116: 1.76 | AN116: 5.84 | AO116: 45 | AP116: 0.3 | AQ116: 234 | AR116: 356 | AS116: < 10 | AT116: 155 | AU116: 0.63 | AV116: 188 | AW116: 0 | AX116: 0.058 | AY116: 3.74 | AZ116: 0 | BA116: 0 | BB116: 0.62 | BC116: 0.089 | BD116: 0.2 | BE116: 0.97 | BF116: 0.46 | BG116: 0.09 | BH116: 2.31 | BI116: 0.32
A117: 618 | B117: chocolats et produits à base de chocolat | C117: Barre chocolatée non biscuitée enrobée | D117: 100 | E117: 496 | F117: 3.83 | G117: 3.7 | H117: 66.4 | I117: 24.1 | J117: 60.5 | K117: 4.49 | L117: 0.6 | M117: 1.46 | N117: 1.32 | O117: 0 | P117: 0.014 | Q117: 12.8 | R117: 7.13 | S117: 1.22 | T117: 0.046 | U117: 0.046 | V117: 0.046 | W117: 0.092 | X117: 1.02 | Y117: 0.69 | Z117: 5.38 | AA117: 4.98 | AB117: 7.13 | AC117: 1.15 | AD117: 0.078 | AE117: < 0.014 | AF117: < 0.014 | AG117: < 0.011 | AH117: 24.6 | AI117: 0.5 | AJ117: 99.8 | AK117: 0 | AL117: 0.15 | AM117: 3.59 | AN117: 15.6 | AO117: 50.9 | AP117: 0.13 | AQ117: 155 | AR117: 42 | AS117: < 2.2 | AT117: 200 | AU117: 0.56 | AV117: 200 | AW117: 0 | AX117: 0.046 | AY117: 11.2 | AZ117: 0 | BA117: 0 | BB117: 0.54 | BC117: 0.049 | BD117: 0.22 | BE117: 0.14 | BF117: 0.31 | BG117: 0.037 | BH117: 0.47 | BI117: 0.33
A118: 1302 | B118: glaces | C118: Barre glacée chocolatée | D118: 100 | E118: 359 | F118: 35.2 | G118: 5.12 | H118: 35.8 | I118: 21.4 | J118: 27.7 | K118: 8.13 | L118: 1.31 | M118: 0.016 | N118: 1.2 | O118: 0 | P118: 0.037 | Q118: 15.2 | R118: 4.41 | S118: 1.35 | T118: 0.18 | U118: 0.14 | V118: 0.4 | W118: 0.35 | X118: 1.72 | Y118: 1.12 | Z118: 4.6 | AA118: 2.37 | AB118: 4.25 | AC118: 1.26 | AD118: 0.07 | AE118: < 0.017 | AF118: 0 | AG118: 0 | AH118: 8.8 | AI118: 0.29 | AJ118: 145 | AK118: 153 | AL118: 0.2 | AM118: 1.1 | AN118: 16 | AO118: 40.3 | AP118: 0.2 | AQ118: 48 | AR118: 251 | AS118: < 5 | AT118: 115 | AU118: 1.1 | AV118: 58 | AW118: 42 | AX118: < 0.5 | AY118: 1.5 | AZ118: 0 | BA118: 0 | BB118: < 1 | BC118: 0.067 | BD118: 0.32 | BE118: 0.82 | BF118: 0.56 | BG118: 0.13 | BH118: 0.87 | BI118: 0.26
A119: 638 | B119: chocolats et produits à base de chocolat | C119: Barre goûter frais au lait et chocolat | D119: 100 | E119: 554 | F119: 0 | G119: 10 | H119: 52 | I119: 34 | J119: 0 | K119: 0 | L119: traces | M119: traces | N119: 0 | O119: 0 | P119: traces | Q119: 0 | R119: 0 | S119: 0 | T119: 0 | U119: 0 | V119: 0 | W119: 0 | X119: 0 | Y119: 0 | Z119: 0 | AA119: 0 | AB119: 0 | AC119: 0 | AD119: 0 | AE119: 0 | AF119: 0 | AG119: 0 | AH119: 0 | AI119: 0 | AJ119: 323 | AK119: 0 | AL119: 0 | AM119: 0 | AN119: 0 | AO119: 45 | AP119: 0 | AQ119: 270 | AR119: 0 | AS119: 0 | AT119: 0 | AU119: 0 | AV119: 0 | AW119: 0 | AX119: 0 | AY119: 0 | AZ119: 0 | BA119: 0 | BB119: 0 | BC119: 0 | BD119: 0 | BE119: 0 | BF119: 0 | BG119: 0 | BH119: 0 | BI119: 0
A120: 646 | B120: chocolats et produits à base de chocolat | C120: Barre goûter frais au lait et chocolat avec génoise | D120: 100 | E120: 499 | F120: 10.5 | G120: 6.68 | H120: 39 | I120: 34.2 | J120: 33.3 | K120: 5.5 | L120: 4.3 | M120: traces | N120: 1.47 | O120: 0 | P120: traces | Q120: 19.7 | R120: 10.9 | S120: 1.89 | T120: 0.16 | U120: 0.11 | V120: 0.098 | W120: 0.11 | X120: 0.17 | Y120: 0.48 | Z120: 11.1 | AA120: 6.64 | AB120: 10.7 | AC120: 1.63 | AD120: 0.16 | AE120: < 0.032 | AF120: 0 | AG120: 0 | AH120: 22.9 | AI120: 0.13 | AJ120: 174 | AK120: 0 | AL120: 0.3 | AM120: 0.9 | AN120: 10 | AO120: 47.3 | AP120: 0.3 | AQ120: 157 | AR120: 296 | AS120: < 5 | AT120: 50.3 | AU120: 1.15 | AV120: 30.5 | AW120: 23 | AX120: 0.53 | AY120: 2.45 | AZ120: 0 | BA120: 0 | BB120: < 0.5 | BC120: 0.07 | BD120: 0.28 | BE120: 0.37 | BF120: 0.63 | BG120: 0.28 | BH120: 26.9 | BI120: 0.39
A121: 624 | B121: chocolats et produits à base de chocolat | C121: Barres ou confiserie chocolatées au lait | D121: 100 | E121: 534 | F121: 1.45 | G121: 4.11 | H121: 59 | I121: 30.7 | J121: 50.2 | K121: 8.78 | L121: 2.71 | M121: 0 | N121: 1.97 | O121: 0 | P121: 0.05 | Q121: 20.4 | R121: 9.31 | S121: 0.96 | T121: 0 | U121: 0 | V121: 0 | W121: 0 | X121: 0 | Y121: 0 | Z121: 0 | AA121: 0 | AB121: 0 | AC121: 0 | AD121: 0 | AE121: 0 | AF121: 0 | AG121: 0 | AH121: 9.46 | AI121: 0.44 | AJ121: 116 | AK121: 0 | AL121: 0 | AM121: 0.63 | AN121: 9.33 | AO121: 187 | AP121: 0 | AQ121: 183 | AR121: 147 | AS121: 0 | AT121: 174 | AU121: 5.26 | AV121: 166 | AW121: 0 | AX121: 0.045 | AY121: 5.75 | AZ121: 0 | BA121: 0 | BB121: 1.52 | BC121: 0.08 | BD121: 0.28 | BE121: 0.32 | BF121: 0.71 | BG121: 0.077 | BH121: 6.8 | BI121: 0.68
A122: 1389 | B122: ingrédients divers | C122: Base de pizza à la crème | D122: 100 | E122: 261 | F122: 0 | G122: 7.7 | H122: 51.1 | I122: 2.6 | J122: 1.8 | K122: 0 | L122: 1 | M122: 0 | N122: 1.76 | O122: 0 | P122: traces | Q122: 0.8 | R122: 0 | S122: 0 | T122: 0 | U122: 0 | V122: 0 | W122: 0 | X122: 0 | Y122: 0 | Z122: 0 | AA122: 0 | AB122: 0 | AC122: 0 | AD122: 0 | AE122: 0 | AF122: 0 | AG122: 0 | AH122: 0 | AI122: 1.75 | AJ122: 9 | AK122: 0 | AL122: 0 | AM122: 0 | AN122: 0 | AO122: 0 | AP122: 0 | AQ122: 0 | AR122: 0 | AS122: 0 | AT122: 700 | AU122: 0 | AV122: 0 | AW122: 0 | AX122: 0 | AY122: 0 | AZ122: 0 | BA122: 0 | BB122: 0 | BC122: 0 | BD122: 0 | BE122: 0 | BF122: 0 | BG122: 0 | BH122: 0 | BI122: 0
A123: 1390 | B123: ingrédients divers | C123: Base de pizza tomatée | D123: 100 | E123: 232 | F123: 0 | G123: 6.9 | H123: 44.6 | I123: 2.7 | J123: 1.5 | K123: 0 | L123: 1 | M123: 0 | N123: 1.76 | O123: 0 | P123: traces | Q123: 0.8 | R123: 0 | S123: 0 | T123: 0 | U123: 0 | V123: 0 | W123: 0 | X123: 0 | Y123: 0 | Z123: 0 | AA123: 0 | AB123: 0 | AC123: 0 | AD123: 0 | AE123: 0 | AF123: 0 | AG123: 0 | AH123: 0 | AI123: 1.75 | AJ123: 12 | AK123: 0 | AL123: 0 | AM123: 0 | AN123: 0 | AO123: 0 | AP123: 0 | AQ123: 0 | AR123: 0 | AS123: 0 | AT123: 700 | AU123: 0 | AV123: 0 | AW123: 0 | AX123: 0 | AY123: 0 | AZ123: 0 | BA123: 0 | BB123: 0 | BC123: 0 | BD123: 0 | BE123: 0 | BF123: 0 | BG123: 0 | BH123: 0 | BI123: 0
A124: 1319 | B124: herbes fraîches | C124: Basilic. frais | D124: 100 | E124: 34.2 | F124: 90.8 | G124: 3.22 | H124: 2.55 | I124: 0.47 | J124: 0.37 | K124: 0 | L124: 3.47 | M124: 0 | N124: 1.49 | O124: 0 | P124: traces | Q124: 0.13 | R124: 0.046 | S124: 0.2 | T124: 0 | U124: 0 | V124: 0 | W124: 0 | X124: 0 | Y124: 0 | Z124: 0.036 | AA124: 0.005 | AB124: 0 | AC124: 0 | AD124: 0 | AE124: 0 | AF124: 0 | AG124: 0 | AH124: 0 | AI124: 0.028 | AJ124: 273 | AK124: 0 | AL124: 0.39 | AM124: 5.24 | AN124: 0 | AO124: 64 | AP124: 1.15 | AQ124: 56 | AR124: 295 | AS124: 0 | AT124: 12 | AU124: 0.81 | AV124: 0 | AW124: 3140 | AX124: 0 | AY124: 0.8 | AZ124: 415 | BA124: 0 | BB124: 14.5 | BC124: 0.034 | BD124: 0.076 | BE124: 0.9 | BF124: 0.21 | BG124: 0.16 | BH124: 68 | BI124: 0
A125: 1330 | B125: herbes séchées | C125: Basilic. séché | D125: 100 | E125: 244 | F125: 10.4 | G125: 23 | H125: 10.1 | I125: 4.07 | J125: 1.71 | K125: 0 | L125: 37.7 | M125: 0 | N125: 14.9 | O125: 0 | P125: traces | Q125: 2.16 | R125: 1.24 | S125: 0.5 | T125: 0 | U125: 0 | V125: 0 | W125: 0 | X125: 0 | Y125: 0.046 | Z125: 1.04 | AA125: 1.08 | AB125: 1.07 | AC125: 0 | AD125: 0.3 | AE125: 0 | AF125: 0 | AG125: 0 | AH125: 0 | AI125: 0.19 | AJ125: 2240 | AK125: 0 | AL125: 2.1 | AM125: 89.8 | AN125: 0 | AO125: 711 | AP125: 9.8 | AQ125: 274 | AR125: 2630 | AS125: 0 | AT125: 76 | AU125: 7.1 | AV125: 0 | AW125: 378 | AX125: 0 | AY125: 10.7 | AZ125: 1710 | BA125: 0 | BB125: 0.8 | BC125: 0.08 | BD125: 1.2 | BE125: 4.9 | BF125: 0.84 | BG125: 1.34 | BH125: 310 | BI125: 0
A126: 1024 | B126: fromages à pâte pressée | C126: Beaufort | D126: 100 | E126: 410 | F126: 34.3 | G126: 26.6 | H126: 0 | I126: 34 | J126: 0 | K126: 0 | L126: 0 | M126: 0 | N126: 4.6 | O126: 0 | P126: 0 | Q126: 19.2 | R126: 5.84 | S126: 0 | T126: 0.97 | U126: 0.64 | V126: 0.4 | W126: 0.93 | X126: 1.07 | Y126: 3.56 | Z126: 8.63 | AA126: 3.04 | AB126: 5.84 | AC126: 0.61 | AD126: 0.33 | AE126: 0 | AF126: 0.024 | AG126: 0 | AH126: 0 | AI126: 1.27 | AJ126: 745 | AK126: 0 | AL126: 0.09 | AM126: 0.24 | AN126: 37.3 | AO126: 0 | AP126: 0.03 | AQ126: 788 | AR126: 118 | AS126: 7.22 | AT126: 506 | AU126: 4.75 | AV126: 0 | AW126: 100 | AX126: 0 | AY126: 0 | AZ126: 0 | BA126: 0 | BB126: 0 | BC126: 0 | BD126: 0 | BE126: 0 | BF126: 0 | BG126: 0 | BH126: 0 | BI126: 0
A127: 1269 | B127: gâteaux et pâtisseries | C127: Beignet à la confiture | D127: 100 | E127: 378 | F127: 27.6 | G127: 6.23 | H127: 45.7 | I127: 18.7 | J127: 19.9 | K127: 25.8 | L127: 0.9 | M127: 0 | N127: 0.92 | O127: 0 | P127: 0 | Q127: 4.84 | R127: 10.2 | S127: 2.38 | T127: 0 | U127: 0 | V127: 0 | W127: 0 | X127: 0 | Y127: 0.087 | Z127: 2.64 | AA127: 2.11 | AB127: 0 | AC127: 0 | AD127: 0 | AE127: 0 | AF127: 0.008 | AG127: 0.01 | AH127: 26 | AI127: 0.71 | AJ127: 30.8 | AK127: 0 | AL127: 0.081 | AM127: 1.76 | AN127: 15 | AO127: 12.7 | AP127: 0.31 | AQ127: 85 | AR127: 79 | AS127: < 2.2 | AT127: 283 | AU127: 0.53 | AV127: 16 | AW127: 8 | AX127: 0 | AY127: 0.43 | AZ127: 7.1 | BA127: 0 | BB127: 0 | BC127: 0.31 | BD127: 0.14 | BE127: 2.14 | BF127: 0.88 | BG127: 0.1 | BH127: 17 | BI127: 0.22
A128: 2451 | B128: produits à base de poissons et produits de la mer | C128: Beignet de crevette | D128: 100 | E128: 222 | F128: 54.2 | G128: 6.5 | H128: 26 | I128: 10 | J128: 11 | K128: 0 | L128: 1 | M128: 0 | N128: 2.38 | O128: 0 | P128: 0 | Q128: 0.5 | R128: 7.09 | S128: 0.79 | T128: 0 | U128: 0 | V128: 0 | W128: 0 | X128: 0 | Y128: 0 | Z128: 0 | AA128: 0 | AB128: 0 | AC128: 0 | AD128: 0 | AE128: 0 | AF128: 0.06 | AG128: 0.051 | AH128: 0 | AI128: 1.9 | AJ128: 77 | AK128: 1000 | AL128: 0 | AM128: 1 | AN128: 22 | AO128: 18.1 | AP128: 0 | AQ128: 0 | AR128: 102 | AS128: 41.7 | AT128: 770 | AU128: 0.5 | AV128: traces | AW128: 0 | AX128: 0 | AY128: 0 | AZ128: 0 | BA128: 0 | BB128: 0 | BC128: 0 | BD128: 0 | BE128: 0 | BF128: 0 | BG128: 0 | BH128: 0 | BI128: 0
A129: 2090 | B129: plats de légumes/légumineuses | C129: Beignet de légumes | D129: 100 | E129: 156 | F129: 69.9 | G129: 3.74 | H129: 14.2 | I129: 8.98 | J129: 2.75 | K129: 0 | L129: 1.94 | M129: 0 | N129: 1.23 | O129: 0 | P129: 0 | Q129: 1.18 | R129: 4.96 | S129: 2.44 | T129: 0 | U129: 0 | V129: 0 | W129: 0 | X129: 0 | Y129: 0 | Z129: 0 | AA129: 0 | AB129: 0 | AC129: 0 | AD129: 0 | AE129: 0 | AF129: 0 | AG129: 0 | AH129: 34 | AI129: 0.64 | AJ129: 52.4 | AK129: 0 | AL129: 0.078 | AM129: 0.72 | AN129: 6.62 | AO129: 17.7 | AP129: 0.18 | AQ129: 68.1 | AR129: 209 | AS129: 2.55 | AT129: 258 | AU129: 0.4 | AV129: 20.1 | AW129: 197 | AX129: 0.16 | AY129: 2.86 | AZ129: 0 | BA129: 0 | BB129: 13.2 | BC129: 0.058 | BD129: 0.14 | BE129: 0.42 | BF129: 0.39 | BG129: 0.12 | BH129: 43 | BI129: 0.14
A130: 941 | B130: feuilletées et autres entrées | C130: Beignet de viande. volaille ou poisson. fait maison | D130: 100 | E130: 237 | F130: 55.9 | G130: 18.7 | H130: 9.79 | I130: 13.5 | J130: 0.91 | K130: 8.88 | L130: 0.41 | M130: 0 | N130: 1.64 | O130: 0 | P130: 0 | Q130: 2.88 | R130: 6.79 | S130: 2.96 | T130: 0 | U130: 0 | V130: 0 | W130: 0 | X130: 0 | Y130: 0 | Z130: 0 | AA130: 0 | AB130: 0 | AC130: 0 | AD130: 0 | AE130: 0 | AF130: 0.037 | AG130: 0.12 | AH130: 85.2 | AI130: 0.71 | AJ130: 36.6 | AK130: 0 | AL130: 0.073 | AM130: 1.23 | AN130: 34.3 | AO130: 25.4 | AP130: 0.082 | AQ130: 180 | AR130: 272 | AS130: 13.9 | AT130: 285 | AU130: 1.61 | AV130: 22.3 | AW130: 2.48 | AX130: 0.29 | AY130: 2.91 | AZ130: 0 | BA130: 0 | BB130: 0.27 | BC130: 0.1 | BD130: 0.18 | BE130: 3.43 | BF130: 0.62 | BG130: 0.24 | BH130: 15.8 | BI130: 1.13
A131: 1270 | B131: gâteaux et pâtisseries | C131: Beignet fourré aux fruits. préemballé | D131: 100 | E131: 362 | F131: 27.7 | G131: 5.65 | H131: 47.6 | I131: 16 | J131: 14.5 | K131: 0 | L131: 2.15 | M131: 0 | N131: 0.82 | O131: 0 | P131: 0 | Q131: 6.05 | R131: 7.69 | S131: 1.59 | T131: 0 | U131: 0 | V131: 0 | W131: 0 | X131: 0 | Y131: 0 | Z131: 0 | AA131: 0 | AB131: 0 | AC131: 0 | AD131: 0 | AE131: 0 | AF131: 0 | AG131: 0 | AH131: 0 | AI131: 0.78 | AJ131: 39 | AK131: 0 | AL131: 0 | AM131: 0.6 | AN131: 0 | AO131: 0 | AP131: 0 | AQ131: 0 | AR131: 0 | AS131: 0 | AT131: 338 | AU131: 0 | AV131: 0 | AW131: 0 | AX131: 0 | AY131: 0 | AZ131: 0 | BA131: 0 | BB131: 0 | BC131: 0 | BD131: 0 | BE131: 0 | BF131: 0 | BG131: 0 | BH131: 0 | BI131: 0
A132: 1271 | B132: gâteaux et pâtisseries | C132: Beignet fourré goût chocolat. préemballé | D132: 100 | E132: 420 | F132: 20.3 | G132: 7.31 | H132: 45.9 | I132: 22.5 | J132: 18.6 | K132: 22.7 | L132: 2.6 | M132: 0 | N132: 1.42 | O132: 0 | P132: 0 | Q132: 8.41 | R132: 8.26 | S132: 4.84 | T132: 0.03 | U132: 0.02 | V132: 0.04 | W132: 0.03 | X132: 0.17 | Y132: 0.21 | Z132: 3.9 | AA132: 1.11 | AB132: 8.26 | AC132: 4.19 | AD132: 0.65 | AE132: < 0.01 | AF132: < 0.01 | AG132: < 0.01 | AH132: 45.2 | AI132: 0.7 | AJ132: 80 | AK132: 472 | AL132: 0.19 | AM132: 2 | AN132: < 20 | AO132: 32 | AP132: 0.44 | AQ132: 110 | AR132: 180 | AS132: < 20 | AT132: 280 | AU132: 0.83 | AV132: < 21 | AW132: 49.5 | AX132: < 0.25 | AY132: 3.18 | AZ132: 10.4 | BA132: 0 | BB132: < 0.5 | BC132: 0.15 | BD132: 0.075 | BE132: 0.4 | BF132: 0.49 | BG132: 0.048 | BH132: 24.5 | BI132: 0.28
A133: 1268 | B133: gâteaux et pâtisseries | C133: Beignet rond moelleux. sans fourrage. saupoudré de sucre | D133: 100 | E133: 404 | F133: 26 | G133: 7.25 | H133: 39.4 | I133: 23.7 | J133: 10.7 | K133: 26.3 | L133: 2 | M133: 0 | N133: 1.53 | O133: 0 | P133: 0.076 | Q133: 9.46 | R133: 9.42 | S133: 3.71 | T133: < 0.01 | U133: < 0.01 | V133: 0.02 | W133: < 0.01 | X133: 0.04 | Y133: 0.2 | Z133: 7.99 | AA133: 1 | AB133: 9.12 | AC133: 3.5 | AD133: 0.21 | AE133: < 0.01 | AF133: < 0.01 | AG133: < 0.01 | AH133: 19 | AI133: 1.11 | AJ133: 24 | AK133: 578 | AL133: 0.09 | AM133: 0.68 | AN133: < 20 | AO133: 18 | AP133: 0.31 | AQ133: 140 | AR133: 93 | AS133: < 20 | AT133: 444 | AU133: 0.62 | AV133: < 21 | AW133: 55.5 | AX133: < 0.25 | AY133: 4.28 | AZ133: 5.43 | BA133: 0 | BB133: 0 | BC133: 0.14 | BD133: < 0.01 | BE133: < 0.1 | BF133: 0.42 | BG133: 0.043 | BH133: 30.4 | BI133: 0.089
A134: 1493 | B134: légumes crus | C134: Bette ou blette. crue | D134: 100 | E134: 12.3 | F134: 95.4 | G134: 1 | H134: 0.5 | I134: 0.5 | J134: 0.5 | K134: < 0.35 | L134: 1.8 | M134: < 0.5 | N134: 1.22 | O134: 0 | P134: 0.13 | Q134: < 0.01 | R134: < 0.01 | S134: < 0.01 | T134: < 0.01 | U134: < 0.01 | V134: < 0.01 | W134: < 0.01 | X134: < 0.01 | Y134: < 0.01 | Z134: < 0.01 | AA134: < 0.01 | AB134: < 0.01 | AC134: < 0.01 | AD134: < 0.01 | AE134: < 0.01 | AF134: < 0.01 | AG134: < 0.01 | AH134: 0 | AI134: 0.57 | AJ134: 25 | AK134: 221 | AL134: 0.03 | AM134: 0.85 | AN134: < 20 | AO134: 17 | AP134: 0.16 | AQ134: 10 | AR134: 300 | AS134: < 20 | AT134: 53.2 | AU134: 0.07 | AV134: 0 | AW134: 25.9 | AX134: < 0.25 | AY134: 0.25 | AZ134: < 0.8 | BA134: 0 | BB134: 3.08 | BC134: < 0.015 | BD134: 0.015 | BE134: < 0.1 | BF134: 0.2 | BG134: 0.036 | BH134: 24.7 | BI134: 0
A135: 1609 | B135: légumes cuits | C135: Bette ou blette. cuite | D135: 100 | E135: 12.1 | F135: 95.3 | G135: 0.7 | H135: 0.46 | I135: 0.5 | J135: 0.46 | K135: < 0.35 | L135: 2.5 | M135: < 0.5 | N135: 0.73 | O135: 0 | P135: 0.065 | Q135: < 0.01 | R135: < 0.01 | S135: < 0.01 | T135: < 0.01 | U135: < 0.01 | V135: < 0.01 | W135: < 0.01 | X135: < 0.01 | Y135: < 0.01 | Z135: < 0.01 | AA135: < 0.01 | AB135: < 0.01 | AC135: < 0.01 | AD135: < 0.01 | AE135: < 0.01 | AF135: < 0.01 | AG135: < 0.01 | AH135: 0 | AI135: 0.25 | AJ135: 56 | AK135: 114 | AL135: 0.04 | AM135: 0.35 | AN135: < 20 | AO135: 18 | AP135: 0.16 | AQ135: 11 | AR135: 240 | AS135: < 20 | AT135: 99.6 | AU135: 0.08 | AV135: 0 | AW135: 89.2 | AX135: < 0.25 | AY135: 0.41 | AZ135: < 0.8 | BA135: 0 | BB135: < 0.5 | BC135: < 0.015 | BD135: < 0.01 | BE135: < 0.1 | BF135: 0.17 | BG135: 0.024 | BH135: 43.2 | BI135: 0
A136: 1535 | B136: légumes crus | C136: Betterave rouge. crue | D136: 100 | E136: 50.6 | F136: 86.7 | G136: 1.74 | H136: 9.1 | I136: 0.24 | J136: 6.76 | K136: 0 | L136: 2.55 | M136: 0 | N136: 0.94 | O136: 0 | P136: 0 | Q136: 0.038 | R136: 0.029 | S136: 0.094 | T136: 0 | U136: 0 | V136: 0 | W136: 0 | X136: 0 | Y136: 0 | Z136: 0.036 | AA136: 0.0015 | AB136: 0.026 | AC136: 0.078 | AD136: 0.016 | AE136: 0 | AF136: 0 | AG136: 0 | AH136: 0 | AI136: 0.15 | AJ136: 22.1 | AK136: 0 | AL136: 0.098 | AM136: 0.7 | AN136: 0.5 | AO136: 19 | AP136: 0.46 | AQ136: 38.1 | AR136: 328 | AS136: 0.2 | AT136: 60.5 | AU136: 0.54 | AV136: 0 | AW136: 20 | AX136: 0 | AY136: 0.06 | AZ136: 0.2 | BA136: 0 | BB136: 6.45 | BC136: 0.028 | BD136: 0.043 | BE136: 0.27 | BF136: 0.15 | BG136: 0.059 | BH136: 100 | BI136: 0
A137: 1608 | B137: légumes cuits | C137: Betterave rouge. cuite | D137: 100 | E137: 47.2 | F137: 87.1 | G137: 1.84 | H137: 8.56 | I137: 0.18 | J137: 7.96 | K137: 0.6 | L137: 2 | M137: 0 | N137: 1.12 | O137: 0 | P137: 0 | Q137: 0.028 | R137: 0.035 | S137: 0.064 | T137: 0 | U137: 0 | V137: 0 | W137: 0 | X137: 0 | Y137: 0 | Z137: 0.027 | AA137: 0.001 | AB137: 0 | AC137: 0 | AD137: 0 | AE137: 0 | AF137: 0 | AG137: 0 | AH137: 0 | AI137: 0.13 | AJ137: 19.1 | AK137: 0 | AL137: 0.053 | AM137: 0.79 | AN137: 0.31 | AO137: 16.8 | AP137: 0.45 | AQ137: 38 | AR137: 305 | AS137: < 2.2 | AT137: 77 | AU137: 0.27 | AV137: 0 | AW137: 21 | AX137: 0 | AY137: 0.04 | AZ137: 0.2 | BA137: 0 | BB137: 3.6 | BC137: 0.027 | BD137: 0.04 | BE137: 0.33 | BF137: 0.15 | BG137: 0.067 | BH137: 80 | BI137: 0
A138: 284 | B138: beurres | C138: Beurre à 39-41% MG. léger. doux | D138: 100 | E138: 380 | F138: 56.7 | G138: 1.1 | H138: 4 | I138: 40 | J138: 1.5 | K138: 0 | L138: 0 | M138: 0 | N138: 0.53 | O138: 0 | P138: 0 | Q138: 24.8 | R138: 9.37 | S138: 0 | T138: 1.29 | U138: 0.89 | V138: 0.58 | W138: 1.24 | X138: 1.44 | Y138: 4.12 | Z138: 10.1 | AA138: 3 | AB138: 7.91 | AC138: 0.63 | AD138: 0.23 | AE138: 0 | AF138: 0 | AG138: 0 | AH138: 84.5 | AI138: 0.45 | AJ138: 0 | AK138: 0 | AL138: 0 | AM138: 0.1 | AN138: 2 | AO138: 0 | AP138: 0 | AQ138: 0 | AR138: 0 | AS138: 0 | AT138: 180 | AU138: 0 | AV138: 0 | AW138: 0 | AX138: 0 | AY138: 1.22 | AZ138: 0 | BA138: 0 | BB138: 0 | BC138: 0 | BD138: 0 | BE138: 0 | BF138: 0 | BG138: 0 | BH138: 0 | BI138: 0
A139: 280 | B139: beurres | C139: Beurre à 60-62% MG. à teneur réduite en matière grasse. demi-sel | D139: 100 | E139: 555 | F139: 37 | G139: 0.9 | H139: 0.5 | I139: 61 | J139: 0.5 | K139: 0 | L139: 0 | M139: 0 | N139: 1.24 | O139: 0 | P139: 0 | Q139: 37 | R139: 15.2 | S139: 1.97 | T139: 1.79 | U139: 1.06 | V139: 0.62 | W139: 1.38 | X139: 1.55 | Y139: 5.55 | Z139: 14.5 | AA139: 6.68 | AB139: 0 | AC139: 0 | AD139: 0 | AE139: 0 | AF139: 0 | AG139: 0 | AH139: 120 | AI139: 1.13 | AJ139: 33.4 | AK139: 0 | AL139: 0 | AM139: 0.6 | AN139: 2 | AO139: 3.45 | AP139: 0 | AQ139: 34 | AR139: 42.3 | AS139: 0 | AT139: 450 | AU139: 0.26 | AV139: 456 | AW139: 107 | AX139: 1 | AY139: 1.58 | AZ139: 4.8 | BA139: 0 | BB139: 0 | BC139: 0.01 | BD139: 0.045 | BE139: 0.02 | BF139: 0 | BG139: 0.01 | BH139: 1.65 | BI139: 0.13
A140: 279 | B140: beurres | C140: Beurre à 60-62% MG. à teneur réduite en matière grasse. doux | D140: 100 | E140: 550 | F140: 37.7 | G140: 0.56 | H140: 0.7 | I140: 60.6 | J140: < 0.2 | K140: 0 | L140: 0 | M140: 0 | N140: < 0.25 | O140: 0 | P140: 0.039 | Q140: 40.1 | R140: 14 | S140: 1.5 | T140: 2.05 | U140: 1.34 | V140: 0.85 | W140: 1.91 | X140: 2.24 | Y140: 6.97 | Z140: 17.3 | AA140: 6.08 | AB140: 11.8 | AC140: 0.91 | AD140: 0.33 | AE140: 0.07 | AF140: 0.03 | AG140: < 0.01 | AH140: 181 | AI140: 0.045 | AJ140: 18 | AK140: 80.3 | AL140: < 0.01 | AM140: < 0.05 | AN140: < 20 | AO140: 1.8 | AP140: < 0.01 | AQ140: 20 | AR140: 27 | AS140: < 20 | AT140: 18 | AU140: 0.13 | AV140: 660 | AW140: 304 | AX140: < 0.25 | AY140: 1.38 | AZ140: 0 | BA140: 0 | BB140: < 1 | BC140: < 0.015 | BD140: < 0.01 | BE140: < 0.1 | BF140: 0.091 | BG140: < 0.01 | BH140: < 5 | BI140: 0.1
A141: 276 | B141: beurres | C141: Beurre à 80% MG. demi-sel | D141: 100 | E141: 736 | F141: 15.5 | G141: 0.76 | H141: 0.55 | I141: 81.2 | J141: 0.39 | K141: 0 | L141: 0 | M141: 0 | N141: 2.05 | O141: 0 | P141: 0 | Q141: 54.5 | R141: 21.5 | S141: 2.6 | T141: 3.06 | U141: 2.6 | V141: 1.3 | W141: 2.38 | X141: 2.59 | Y141: 6.44 | Z141: 21.9 | AA141: 9.65 | AB141: 18.6 | AC141: 1.61 | AD141: 0.45 | AE141: 0 | AF141: 0 | AG141: 0 | AH141: 218 | AI141: 1.9 | AJ141: 17.8 | AK141: 1200 | AL141: 0.0092 | AM141: 0.13 | AN141: 1.5 | AO141: 4.94 | AP141: 0.0047 | AQ141: 24 | AR141: 39 | AS141: < 10 | AT141: 762 | AU141: 0.052 | AV141: 697 | AW141: 158 | AX141: 1.13 | AY141: 2.11 | AZ141: 7 | BA141: 0 | BB141: 0 | BC141: 0.006 | BD141: 0.035 | BE141: 0.071 | BF141: 0.11 | BG141: 0.003 | BH141: 3 | BI141: 0.17
A142: 277 | B142: beurres | C142: Beurre à 80% MG. salé | D142: 100 | E142: 748 | F142: 12.5 | G142: 0.61 | H142: 0.68 | I142: 82.5 | J142: 0.31 | K142: 0 | L142: 0 | M142: 0 | N142: 2.5 | O142: 0 | P142: 0 | Q142: 52.3 | R142: 0 | S142: 0 | T142: 2.68 | U142: 1.73 | V142: 1.06 | W142: 2.47 | X142: 2.6 | Y142: 9.21 | Z142: 24.1 | AA142: 8.47 | AB142: 0 | AC142: 0 | AD142: 0 | AE142: 0 | AF142: 0 | AG142: 0 | AH142: 0 | AI142: 2.5 | AJ142: 0 | AK142: 0 | AL142: 0 | AM142: 0 | AN142: 0 | AO142: 0 | AP142: 0 | AQ142: 0 | AR142: 0 | AS142: 0 | AT142: 1000 | AU142: 0 | AV142: 0 | AW142: 0 | AX142: 0 | AY142: 0 | AZ142: 0 | BA142: 0 | BB142: 0 | BC142: 0 | BD142: 0 | BE142: 0 | BF142: 0 | BG142: 0 | BH142: 0 | BI142: 0
A143: 274 | B143: beurres | C143: Beurre à 82% MG. doux | D143: 100 | E143: 744 | F143: 15.8 | G143: 0.75 | H143: 0.68 | I143: 82 | J143: 0.5 | K143: 0 | L143: 0 | M143: 0 | N143: 0.25 | O143: 0 | P143: 0 | Q143: 54.4 | R143: 21.8 | S143: 2.78 | T143: 2.96 | U143: 1.88 | V143: 1.2 | W143: 2.49 | X143: 2.94 | Y143: 8.83 | Z143: 23.2 | AA143: 6.97 | AB143: 18.1 | AC143: 1.29 | AD143: 0.39 | AE143: 0 | AF143: 0 | AG143: 0 | AH143: 218 | AI143: 0.039 | AJ143: 17.8 | AK143: 0 | AL143: 0.026 | AM143: 0.026 | AN143: 1.5 | AO143: 2.05 | AP143: 0.0018 | AQ143: 24 | AR143: 28 | AS143: < 10 | AT143: 15.5 | AU143: 0.083 | AV143: 675 | AW143: 158 | AX143: 1.12 | AY143: 2.11 | AZ143: 7 | BA143: 15 | BB143: 0 | BC143: 0.006 | BD143: 0.035 | BE143: 0.071 | BF143: 0.11 | BG143: 0.0035 | BH143: 3 | BI143: 0.17
A144: 278 | B144: beurres | C144: Beurre à 82% MG. doux. tendre | D144: 100 | E144: 755 | F144: 15.6 | G144: 0.7 | H144: 0.5 | I144: 83.4 | J144: 0 | K144: 0 | L144: 0 | M144: 0 | N144: 1 | O144: 0 | P144: 0 | Q144: 0 | R144: 0 | S144: 0 | T144: 0 | U144: 0 | V144: 0 | W144: 0 | X144: 0 | Y144: 0 | Z144: 0 | AA144: 0 | AB144: 0 | AC144: 0 | AD144: 0 | AE144: 0 | AF144: 0 | AG144: 0 | AH144: 0 | AI144: 0.055 | AJ144: 0 | AK144: 0 | AL144: 0 | AM144: 0 | AN144: 0 | AO144: 0 | AP144: 0 | AQ144: 0 | AR144: 0 | AS144: 0 | AT144: 0 | AU144: 0 | AV144: 0 | AW144: 0 | AX144: 0 | AY144: 0 | AZ144: 0 | BA144: 0 | BB144: 0 | BC144: 0 | BD144: 0 | BE144: 0 | BF144: 0 | BG144: 0 | BH144: 0 | BI144: 0
A145: 282 | B145: beurres | C145: Beurre à teneur en matière grasse inconnue (allégé ou non). demi-sel (aliment moyen) | D145: 100 | E145: 730 | F145: 16.2 | G145: 0.77 | H145: 0.55 | I145: 80.5 | J145: 0.4 | K145: 0 | L145: 0 | M145: 0 | N145: 2.02 | O145: 0 | P145: 0 | Q145: 53.9 | R145: 21.3 | S145: 2.58 | T145: 3.02 | U145: 2.55 | V145: 1.27 | W145: 2.34 | X145: 2.56 | Y145: 6.41 | Z145: 21.7 | AA145: 9.54 | AB145: 18.6 | AC145: 1.61 | AD145: 0.45 | AE145: 0 | AF145: 0 | AG145: 0 | AH145: 214 | AI145: 1.88 | AJ145: 18.4 | AK145: 1200 | AL145: 0.0089 | AM145: 0.15 | AN145: 1.52 | AO145: 4.89 | AP145: 0.0047 | AQ145: 24.4 | AR145: 39.1 | AS145: 5 | AT145: 750 | AU145: 0.059 | AV145: 688 | AW145: 156 | AX145: 1.13 | AY145: 2.09 | AZ145: 6.92 | BA145: 0 | BB145: 0 | BC145: 0.0061 | BD145: 0.035 | BE145: 0.069 | BF145: 0.11 | BG145: 0.0032 | BH145: 2.95 | BI145: 0.17
A146: 1122 | B146: fruits à coque et graines oléagineuses | C146: Beurre de cacahuète ou Pâte d'arachide | D146: 100 | E146: 648 | F146: 1.37 | G146: 22.2 | H146: 16 | I146: 52.5 | J146: 10.5 | K146: 3.56 | L146: 5 | M146: 0 | N146: 2.89 | O146: 0 | P146: 0 | Q146: 10.4 | R146: 26.4 | S146: 12.9 | T146: 0 | U146: 0 | V146: 0 | W146: 0 | X146: 0 | Y146: 0.02 | Z146: 5.29 | AA146: 2.51 | AB146: 25.7 | AC146: 12.9 | AD146: 0.027 | AE146: 0 | AF146: 0 | AG146: 0 | AH146: 0 | AI146: 0.99 | AJ146: 43 | AK146: 0 | AL146: 0.56 | AM146: 1.92 | AN146: 0.5 | AO146: 174 | AP146: 1.59 | AQ146: 333 | AR146: 629 | AS146: 6.9 | AT146: 388 | AU146: 2.76 | AV146: 0 | AW146: 0 | AX146: 0 | AY146: 6.9 | AZ146: 0.3 | BA146: 0 | BB146: 0 | BC146: 0.16 | BD146: 0.15 | BE146: 14.1 | BF146: 1.09 | BG146: 0.47 | BH146: 70 | BI146: 0
A147: 1343 | B147: huiles et graisses végétales | C147: Beurre de cacao | D147: 100 | E147: 900 | F147: 0 | G147: 0 | H147: 0 | I147: 100 | J147: 0 | K147: 0 | L147: 0 | M147: 0 | N147: 0 | O147: 0 | P147: 0 | Q147: 59.7 | R147: 32.9 | S147: 3 | T147: 0 | U147: 0 | V147: 0 | W147: 0 | X147: 0 | Y147: 0.1 | Z147: 25.4 | AA147: 33.2 | AB147: 32.6 | AC147: 2.8 | AD147: 0.1 | AE147: 0 | AF147: 0 | AG147: 0 | AH147: 0 | AI147: 0 | AJ147: 0 | AK147: 0 | AL147: 0 | AM147: 0 | AN147: 0 | AO147: 0 | AP147: 0 | AQ147: 0 | AR147: 0 | AS147: 0 | AT147: 0 | AU147: 0 | AV147: 0 | AW147: 0 | AX147: 0 | AY147: 1.8 | AZ147: 24.7 | BA147: 0 | BB147: 0 | BC147: 0 | BD147: 0 | BE147: 0 | BF147: 0 | BG147: 0 | BH147: 0 | BI147: 0
A148: 283 | B148: beurres | C148: Beurre ou assimilé à teneur en matière grasse inconnue. doux (aliment moyen) | D148: 100 | E148: 731 | F148: 17.3 | G148: 0.75 | H148: 0.79 | I148: 80.5 | J148: 0.52 | K148: 0.048 | L148: 0 | M148: 0 | N148: 0.26 | O148: 0 | P148: 0.00037 | Q148: 53.4 | R148: 21.4 | S148: 2.74 | T148: 2.9 | U148: 1.84 | V148: 1.18 | W148: 2.44 | X148: 2.89 | Y148: 8.67 | Z148: 22.7 | AA148: 6.84 | AB148: 17.7 | AC148: 1.27 | AD148: 0.38 | AE148: 0 | AF148: 0.0004 | AG148: 4.8e-05 | AH148: 213 | AI148: 0.051 | AJ148: 17.8 | AK148: 0 | AL148: 0.031 | AM148: 0.033 | AN148: 1.63 | AO148: 2.05 | AP148: 0.0074 | AQ148: 23.9 | AR148: 28.2 | AS148: 5.06 | AT148: 20.4 | AU148: 0.088 | AV148: 672 | AW148: 166 | AX148: 1.1 | AY148: 2.09 | AZ148: 7 | BA148: 15 | BB148: 0.01 | BC148: 0.0062 | BD148: 0.034 | BE148: 0.07 | BF148: 0.11 | BG148: 0.0038 | BH148: 2.99 | BI148: 0.17
A149: 281 | B149: beurres | C149: Beurre ou assimilé allégé (léger ou à teneur reduite en matière grasse). doux (aliment moyen) | D149: 100 | E149: 374 | F149: 56.4 | G149: 0.73 | H149: 3.75 | I149: 39.6 | J149: 1.2 | K149: 0 | L149: 0 | M149: 0 | N149: 0.49 | O149: 0 | P149: 0.01 | Q149: 24.5 | R149: 9.12 | S149: 0 | T149: 1.28 | U149: 0.85 | V149: 0.54 | W149: 1.18 | X149: 1.4 | Y149: 4.15 | Z149: 10.3 | AA149: 3.36 | AB149: 7.71 | AC149: 0.74 | AD149: 0.22 | AE149: 0 | AF149: 0 | AG149: 0 | AH149: 102 | AI149: 0.38 | AJ149: 0 | AK149: 0 | AL149: 0 | AM149: 0.2 | AN149: 4.99 | AO149: 0 | AP149: 0 | AQ149: 0 | AR149: 0 | AS149: 0 | AT149: 152 | AU149: 0 | AV149: 0 | AW149: 0 | AX149: 0 | AY149: 1.5 | AZ149: 0 | BA149: 0 | BB149: 0 | BC149: 0 | BD149: 0 | BE149: 0 | BF149: 0 | BG149: 0 | BH149: 0 | BI149: 0
A150: 1380 | B150: ingrédients divers | C150: Bicarbonate de soude | D150: 100 | E150: 0.4 | F150: 0.2 | G150: 0.1 | H150: 0 | I150: 0 | J150: 0 | K150: 0 | L150: 0 | M150: 0 | N150: 68.4 | O150: 0 | P150: traces | Q150: 0 | R150: 0 | S150: 0 | T150: 0 | U150: 0 | V150: 0 | W150: 0 | X150: 0 | Y150: 0 | Z150: 0 | AA150: 0 | AB150: 0 | AC150: 0 | AD150: 0 | AE150: 0 | AF150: 0 | AG150: 0 | AH150: 0 | AI150: 68.4 | AJ150: 0 | AK150: 0 | AL150: 0 | AM150: 0 | AN150: 0 | AO150: 0 | AP150: 0 | AQ150: 0 | AR150: 0 | AS150: 0 | AT150: 27400 | AU150: 0 | AV150: 0 | AW150: 0 | AX150: 0 | AY150: 0 | AZ150: 0 | BA150: 0 | BB150: 0 | BC150: 0 | BD150: 0 | BE150: 0 | BF150: 0 | BG150: 0 | BH150: 0 | BI150: 0
A151: 289 | B151: bières et cidres | C151: Bière "coeur de marché" (4-5° alcool) | D151: 100 | E151: 37.3 | F151: 92.7 | G151: 0.39 | H151: 2.7 | I151: 0 | J151: 0 | K151: 0 | L151: 0 | M151: 0 | N151: 0.17 | O151: 3.57 | P151: traces | Q151: 0 | R151: 0 | S151: 0 | T151: 0 | U151: 0 | V151: 0 | W151: 0 | X151: 0 | Y151: 0 | Z151: 0 | AA151: 0 | AB151: 0 | AC151: 0 | AD151: 0 | AE151: 0 | AF151: 0 | AG151: 0 | AH151: 0 | AI151: 0.0047 | AJ151: 6.05 | AK151: 22.8 | AL151: 0.003 | AM151: 0.01 | AN151: 4.1 | AO151: 7.2 | AP151: 0.0057 | AQ151: 11.5 | AR151: 36.6 | AS151: < 2.2 | AT151: 1.88 | AU151: 0 | AV151: 0 | AW151: 0 | AX151: 0 | AY151: 0 | AZ151: 0 | BA151: 0 | BB151: 0 | BC151: 0.005 | BD151: 0.028 | BE151: 0.74 | BF151: 0.053 | BG151: 0.05 | BH151: 5.64 | BI151: 0.02
A152: 295 | B152: bières et cidres | C152: Bière "de spécialités" ou d'abbaye. régionales ou d'une brasserie (degré d'alcool variable) | D152: 100 | E152: 47.1 | F152: 91.3 | G152: 0.51 | H152: 3.2 | I152: 0 | J152: 0 | K152: 0 | L152: 0 | M152: 0 | N152: 0.2 | O152: 4.6 | P152: traces | Q152: 0 | R152: 0 | S152: 0 | T152: 0 | U152: 0 | V152: 0 | W152: 0 | X152: 0 | Y152: 0 | Z152: 0 | AA152: 0 | AB152: 0 | AC152: 0 | AD152: 0 | AE152: 0 | AF152: 0 | AG152: 0 | AH152: 0 | AI152: 0.0093 | AJ152: 4.9 | AK152: 0 | AL152: 0.006 | AM152: 0.012 | AN152: 1.5 | AO152: 7.9 | AP152: 0.008 | AQ152: 21.5 | AR152: 41.6 | AS152: 0.11 | AT152: 3.7 | AU152: 0.018 | AV152: 0 | AW152: 0 | AX152: 0 | AY152: 0 | AZ152: 0 | BA152: 0 | BB152: 0 | BC152: 0.006 | BD152: 0.019 | BE152: 0.65 | BF152: 0.14 | BG152: 0.045 | BH152: 2.6 | BI152: 0.02
A153: 294 | B153: bières et cidres | C153: Bière "spéciale" (5-6° alcool) | D153: 100 | E153: 56.3 | F153: 90.8 | G153: 0.48 | H153: 4.55 | I153: 0.05 | J153: 4 | K153: 0 | L153: 0 | M153: 0 | N153: 0.23 | O153: 5.13 | P153: traces | Q153: 0 | R153: 0 | S153: 0 | T153: 0 | U153: 0 | V153: 0 | W153: 0 | X153: 0 | Y153: 0 | Z153: 0 | AA153: 0 | AB153: 0 | AC153: 0 | AD153: 0 | AE153: 0 | AF153: 0 | AG153: 0 | AH153: 0 | AI153: 0.0048 | AJ153: 5.89 | AK153: 24 | AL153: 0.004 | AM153: 0.006 | AN153: 1.9 | AO153: 9.84 | AP153: 0.005 | AQ153: 25 | AR153: 48.8 | AS153: 0.9 | AT153: 1.92 | AU153: 0 | AV153: 0 | AW153: 0 | AX153: 0 | AY153: 0 | AZ153: 0 | BA153: 0 | BB153: 0 | BC153: 0.04 | BD153: 0.3 | BE153: 0.8 | BF153: 1 | BG153: 0.05 | BH153: 7.98 | BI153: 0
A154: 288 | B154: bières et cidres | C154: Bière brune | D154: 100 | E154: 40.7 | F154: 92.7 | G154: 0.48 | H154: 4.1 | I154: 0 | J154: 4.1 | K154: 0 | L154: 0 | M154: 0 | N154: 0.1 | O154: 3.19 | P154: traces | Q154: traces | R154: traces | S154: traces | T154: 0 | U154: 0 | V154: 0 | W154: 0 | X154: 0 | Y154: 0 | Z154: 0 | AA154: 0 | AB154: 0 | AC154: 0 | AD154: 0 | AE154: 0 | AF154: 0 | AG154: 0 | AH154: 0 | AI154: 0.029 | AJ154: 6.91 | AK154: 0 | AL154: 0.07 | AM154: 0.02 | AN154: 4.1 | AO154: 9.55 | AP154: traces | AQ154: 14 | AR154: 45 | AS154: traces | AT154: 11.6 | AU154: 0.17 | AV154: 0 | AW154: 0 | AX154: 0 | AY154: 0 | AZ154: 0 | BA154: 0 | BB154: 0 | BC154: 0.005 | BD154: 0.03 | BE154: 0.59 | BF154: 0.11 | BG154: 0.03 | BH154: 8.5 | BI154: 0
A155: 293 | B155: bières et cidres | C155: Bière faiblement alcoolisée (3° alcool) | D155: 100 | E155: 35.5 | F155: 93.6 | G155: 0.31 | H155: 4.62 | I155: 0.05 | J155: 0.09 | K155: 0 | L155: 0 | M155: 0 | N155: 0.16 | O155: 2.23 | P155: traces | Q155: 0 | R155: 0 | S155: 0 | T155: 0 | U155: 0 | V155: 0 | W155: 0 | X155: 0 | Y155: 0 | Z155: 0 | AA155: 0 | AB155: 0 | AC155: 0 | AD155: 0 | AE155: 0 | AF155: 0 | AG155: 0 | AH155: 0 | AI155: 0.0048 | AJ155: 7.08 | AK155: 23.9 | AL155: 0.004 | AM155: 0.007 | AN155: 1.25 | AO155: 5.97 | AP155: 0.006 | AQ155: 11.3 | AR155: 34.1 | AS155: 0.13 | AT155: 1.9 | AU155: 0 | AV155: 0 | AW155: 0 | AX155: 0 | AY155: 0 | AZ155: 0 | BA155: 0 | BB155: 0 | BC155: 0.005 | BD155: 0.021 | BE155: 0.74 | BF155: 0.043 | BG155: 0.05 | BH155: 5.64 | BI155: 0.02
A156: 290 | B156: bières et cidres | C156: Bière forte (>8° alcool) | D156: 100 | E156: 62.5 | F156: 88.8 | G156: 0.51 | H156: 4.6 | I156: 0 | J156: 0 | K156: 0 | L156: 0 | M156: 0 | N156: 0.2 | O156: 6 | P156: traces | Q156: 0 | R156: 0 | S156: 0 | T156: 0 | U156: 0 | V156: 0 | W156: 0 | X156: 0 | Y156: 0 | Z156: 0 | AA156: 0 | AB156: 0 | AC156: 0 | AD156: 0 | AE156: 0 | AF156: 0 | AG156: 0 | AH156: 0 | AI156: 0.017 | AJ156: 4.3 | AK156: 0 | AL156: 0.009 | AM156: 0.02 | AN156: 1.5 | AO156: 9 | AP156: 0.018 | AQ156: 18.4 | AR156: 64.2 | AS156: 0.11 | AT156: 6.8 | AU156: 0.013 | AV156: 0 | AW156: 0 | AX156: 0 | AY156: 0 | AZ156: 0 | BA156: 0 | BB156: 0 | BC156: 0.007 | BD156: 0.03 | BE156: 0.47 | BF156: 0.085 | BG156: 0.045 | BH156: 2.6 | BI156: 0.02
A157: 299 | B157: bières et cidres | C157: Bière sans alcool (<1.2° alcool) | D157: 100 | E157: 25.3 | F157: 94 | G157: 0.31 | H157: 4.89 | I157: 0.05 | J157: 2.55 | K157: 0 | L157: 0 | M157: 0.01 | N157: 0.14 | O157: 0.62 | P157: traces | Q157: 0 | R157: 0 | S157: 0 | T157: 0 | U157: 0 | V157: 0 | W157: 0 | X157: 0 | Y157: 0 | Z157: 0 | AA157: 0 | AB157: 0 | AC157: 0 | AD157: 0 | AE157: 0 | AF157: 0 | AG157: 0 | AH157: 0 | AI157: 0.0038 | AJ157: 4.75 | AK157: 18.8 | AL157: 0.003 | AM157: 0.011 | AN157: 1 | AO157: 6.2 | AP157: 0.0075 | AQ157: 9.85 | AR157: 29.3 | AS157: < 2.2 | AT157: 1.53 | AU157: 0 | AV157: 0 | AW157: 0 | AX157: 0 | AY157: 0 | AZ157: 0 | BA157: 0 | BB157: 0 | BC157: 0.0028 | BD157: 0.013 | BE157: 0.65 | BF157: 0.047 | BG157: 0.04 | BH157: 5 | BI157: 0.0089
A158: 302 | B158: biscottes et pains grillés | C158: Biscotte briochée | D158: 100 | E158: 417 | F158: 0 | G158: 10.9 | H158: 69 | I158: 9.28 | J158: 9.01 | K158: 59.4 | L158: 4.85 | M158: 0 | N158: 0.99 | O158: 0 | P158: 0 | Q158: 6.17 | R158: 0 | S158: 0 | T158: 0 | U158: 0 | V158: 0 | W158: 0 | X158: 0 | Y158: 0 | Z158: 0 | AA158: 0 | AB158: 0 | AC158: 0 | AD158: 0 | AE158: 0 | AF158: 0 | AG158: 0 | AH158: 0 | AI158: 0.99 | AJ158: 0 | AK158: 0 | AL158: 0 | AM158: 0 | AN158: 0 | AO158: 0 | AP158: 0 | AQ158: 0 | AR158: 0 | AS158: 0 | AT158: 394 | AU158: 0 | AV158: 0 | AW158: 0 | AX158: 0 | AY158: 0 | AZ158: 0 | BA158: 0 | BB158: 0 | BC158: 0 | BD158: 0 | BE158: 0 | BF158: 0 | BG158: 0 | BH158: 0 | BI158: 0
A159: 301 | B159: biscottes et pains grillés | C159: Biscotte classique | D159: 100 | E159: 417 | F159: 0.3 | G159: 9.24 | H159: 77.1 | I159: 6.53 | J159: 6.55 | K159: 66.2 | L159: 4.86 | M159: 0 | N159: 1.97 | O159: 0 | P159: 0 | Q159: 2.85 | R159: 1.05 | S159: 0.47 | T159: 0.025 | U159: 0.02 | V159: 0.015 | W159: 0.04 | X159: 0.12 | Y159: 0.15 | Z159: 1.74 | AA159: 0.3 | AB159: 1.05 | AC159: 0.42 | AD159: 0.048 | AE159: 0.0013 | AF159: 0 | AG159: < 0.005 | AH159: 0 | AI159: 1.5 | AJ159: 23.4 | AK159: 0 | AL159: 0.14 | AM159: 1.37 | AN159: 9.13 | AO159: 43.2 | AP159: 0.67 | AQ159: 153 | AR159: 250 | AS159: < 10 | AT159: 589 | AU159: 0.79 | AV159: 53 | AW159: 0 | AX159: 0.35 | AY159: 0.77 | AZ159: 0 | BA159: 0 | BB159: 0 | BC159: 0.26 | BD159: 0.12 | BE159: 3.05 | BF159: 0 | BG159: 0.23 | BH159: 128 | BI159: 0
A160: 305 | B160: biscottes et pains grillés | C160: Biscotte complète ou riche en fibres | D160: 100 | E160: 393 | F160: 4.2 | G160: 11.7 | H160: 67 | I160: 6.17 | J160: 4.32 | K160: 60.8 | L160: 8.84 | M160: 0 | N160: 2.1 | O160: 0 | P160: 0 | Q160: 2.61 | R160: 1.17 | S160: 0.67 | T160: < 0.01 | U160: < 0.01 | V160: 0.069 | W160: 0.054 | X160: 0.0085 | Y160: 0.03 | Z160: 1.33 | AA160: 0.25 | AB160: 1.17 | AC160: 0.64 | AD160: 0.032 | AE160: 0 | AF160: 0 | AG160: < 0.01 | AH160: traces | AI160: 1.25 | AJ160: 40.6 | AK160: 813 | AL160: < 1 | AM160: 3.1 | AN160: < 10 | AO160: 115 | AP160: 2 | AQ160: 260 | AR160: 350 | AS160: < 5 | AT160: 492 | AU160: 1.9 | AV160: 0 | AW160: < 50 | AX160: 0 | AY160: 0.68 | AZ160: 0 | BA160: 0 | BB160: 0 | BC160: 0.15 | BD160: 0.13 | BE160: 1.9 | BF160: 0.74 | BG160: 0.14 | BH160: 26 | BI160: 0
A161: 304 | B161: biscottes et pains grillés | C161: Biscotte multicéréale | D161: 100 | E161: 398 | F161: 5.1 | G161: 11.8 | H161: 66.7 | I161: 7.22 | J161: 5.4 | K161: 61.3 | L161: 7.08 | M161: 0 | N161: 2.11 | O161: 0 | P161: 0 | Q161: 2.51 | R161: 2.34 | S161: 2 | T161: < 0.01 | U161: < 0.01 | V161: < 0.01 | W161: < 0.01 | X161: 0.0067 | Y161: 0.047 | Z161: 2.07 | AA161: 0.28 | AB161: 2.34 | AC161: 1.68 | AD161: 0.047 | AE161: 0 | AF161: 0 | AG161: < 0.01 | AH161: 0 | AI161: 1.51 | AJ161: 39.5 | AK161: 947 | AL161: < 1 | AM161: 2.3 | AN161: < 10 | AO161: 57 | AP161: 1.1 | AQ161: 233 | AR161: 233 | AS161: < 5 | AT161: 597 | AU161: 1.5 | AV161: 0 | AW161: < 50 | AX161: 0 | AY161: 0.66 | AZ161: 0 | BA161: 0 | BB161: 0 | BC161: 0.16 | BD161: 0.12 | BE161: 1.6 | BF161: 0.58 | BG161: 0.16 | BH161: 29 | BI161: 0
A162: 303 | B162: biscottes et pains grillés | C162: Biscotte sans adjonction de sel | D162: 100 | E162: 402 | F162: 4.5 | G162: 10.4 | H162: 73.3 | I162: 5.88 | J162: 5.67 | K162: 67.5 | L162: 5.16 | M162: 0 | N162: 0.8 | O162: 0 | P162: 0 | Q162: 2.63 | R162: 2.24 | S162: 0.96 | T162: < 0.01 | U162: < 0.01 | V162: < 0.01 | W162: < 0.01 | X162: 0.013 | Y162: 0.033 | Z162: 1.41 | AA162: 0.21 | AB162: 2.24 | AC162: 0.84 | AD162: 0.038 | AE162: 0 | AF162: 0 | AG162: < 0.01 | AH162: 0.02 | AI162: 0.046 | AJ162: 23.5 | AK162: 0 | AL162: 0.18 | AM162: 1.3 | AN162: 6.3 | AO162: 22.5 | AP162: 0.7 | AQ162: 121 | AR162: 161 | AS162: < 3.35 | AT162: 18.1 | AU162: 7 | AV162: 0 | AW162: 0 | AX162: 0 | AY162: 4.7 | AZ162: 0 | BA162: 0 | BB162: 0 | BC162: 0.66 | BD162: 0.22 | BE162: 8.5 | BF162: 0 | BG162: 0.94 | BH162: 94 | BI162: 0
A163: 331 | B163: biscuits apéritifs | C163: Biscuit apéritif (aliment moyen) | D163: 100 | E163: 486 | F163: 1.75 | G163: 9.23 | H163: 60.4 | I163: 22.3 | J163: 3.84 | K163: 56.2 | L163: 3.41 | M163: 0 | N163: 2.92 | O163: 0 | P163: 0 | Q163: 9.53 | R163: 7.92 | S163: 2.4 | T163: 0 | U163: 0.031 | V163: 0.25 | W163: 0.2 | X163: 1.02 | Y163: 0.51 | Z163: 5.08 | AA163: 0.75 | AB163: 6.54 | AC163: 2.57 | AD163: 0.059 | AE163: 0.0022 | AF163: 0.0039 | AG163: 0.0063 | AH163: 11.8 | AI163: 2.44 | AJ163: 35.2 | AK163: 934 | AL163: 0 | AM163: 2.21 | AN163: 7.42 | AO163: 31.6 | AP163: 0 | AQ163: 100 | AR163: 244 | AS163: 0 | AT163: 1000 | AU163: 0.76 | AV163: 0 | AW163: 0 | AX163: 0 | AY163: 2.8 | AZ163: 0 | BA163: 0 | BB163: 0 | BC163: 0.34 | BD163: 0.065 | BE163: 1.59 | BF163: 0 | BG163: 0.46 | BH163: 0 | BI163: 0
A164: 337 | B164: biscuits apéritifs | C164: Biscuit apéritif à base de pomme de terre. type tuile salée | D164: 100 | E164: 521 | F164: 1.85 | G164: 4.63 | H164: 59.1 | I164: 28.8 | J164: 2.86 | K164: 56.2 | L164: 3.31 | M164: 0 | N164: 2.32 | O164: 0 | P164: 0 | Q164: 9.02 | R164: 11.4 | S164: 0 | T164: 0 | U164: 0 | V164: 0.044 | W164: 0.033 | X164: 0.066 | Y164: 0.2 | Z164: 7.79 | AA164: 0.88 | AB164: 11.4 | AC164: 5.34 | AD164: 0.088 | AE164: 0 | AF164: 0 | AG164: 0 | AH164: 37.7 | AI164: 1.62 | AJ164: 0 | AK164: 607 | AL164: 0 | AM164: 0 | AN164: 0 | AO164: 0 | AP164: 0 | AQ164: 0 | AR164: 0 | AS164: 0 | AT164: 651 | AU164: 0 | AV164: 0 | AW164: 0 | AX164: 0 | AY164: 0 | AZ164: 0 | BA164: 0 | BB164: 0 | BC164: 0 | BD164: 0 | BE164: 0 | BF164: 0 | BG164: 0 | BH164: 0 | BI164: 0
A165: 339 | B165: biscuits apéritifs | C165: Biscuit apéritif feuilleté | D165: 100 | E165: 509 | F165: 2.15 | G165: 12.3 | H165: 53.7 | I165: 26.5 | J165: 1.86 | K165: 49.6 | L165: 2.69 | M165: 0 | N165: 2.54 | O165: 0 | P165: 0 | Q165: 17.5 | R165: 6.33 | S165: 1.47 | T165: 0 | U165: 0 | V165: 0 | W165: 0.68 | X165: 0 | Y165: 0 | Z165: 0 | AA165: 0 | AB165: 0 | AC165: 1.37 | AD165: 0.097 | AE165: 0 | AF165: 0 | AG165: 0 | AH165: 0 | AI165: 2.54 | AJ165: 0 | AK165: 0 | AL165: 0 | AM165: 0 | AN165: 0 | AO165: 0 | AP165: 0 | AQ165: 0 | AR165: 0 | AS165: 0 | AT165: 1010 | AU165: 0 | AV165: 0 | AW165: 0 | AX165: 0 | AY165: 0 | AZ165: 0 | BA165: 0 | BB165: 0 | BC165: 0 | BD165: 0 | BE165: 0 | BF165: 0 | BG165: 0 | BH165: 0 | BI165: 0
A166: 336 | B166: biscuits apéritifs | C166: Biscuit apéritif soufflé. à base de maïs. à la cacahuète | D166: 100 | E166: 487 | F166: 2.33 | G166: 13.3 | H166: 54.8 | I166: 22.9 | J166: 3.13 | K166: 51.6 | L166: 3.99 | M166: 0 | N166: 2.67 | O166: 0 | P166: 0 | Q166: 5.94 | R166: 10.3 | S166: 6 | T166: 0 | U166: 0 | V166: 0 | W166: 0 | X166: 0.019 | Y166: 0.071 | Z166: 3.92 | AA166: 0.58 | AB166: 7.81 | AC166: 4.7 | AD166: 0.053 | AE166: 0 | AF166: 0.0076 | AG166: 0.0015 | AH166: 0 | AI166: 1.88 | AJ166: 0 | AK166: 0 | AL166: 0 | AM166: 0 | AN166: 0 | AO166: 0 | AP166: 0 | AQ166: 0 | AR166: 0 | AS166: 0 | AT166: 749 | AU166: 0 | AV166: 0 | AW166: 0 | AX166: 0 | AY166: 0 | AZ166: 0 | BA166: 0 | BB166: 0 | BC166: 0 | BD166: 0 | BE166: 0 | BF166: 0 | BG166: 0 | BH166: 0 | BI166: 0
A167: 332 | B167: biscuits apéritifs | C167: Biscuit apéritif soufflé. à base de maïs. sans cacahuète | D167: 100 | E167: 489 | F167: 1.81 | G167: 6.96 | H167: 62.1 | I167: 23 | J167: 2.79 | K167: 57.1 | L167: 3.1 | M167: 0 | N167: 3.05 | O167: 0 | P167: 0 | Q167: 9.66 | R167: 7.52 | S167: 3.64 | T167: < 0.024 | U167: 0.04 | V167: 0.36 | W167: 0.25 | X167: 1.62 | Y167: 0.79 | Z167: 5.9 | AA167: 0.7 | AB167: 7.47 | AC167: 3.48 | AD167: 0.068 | AE167: < 0.024 | AF167: 0.0057 | AG167: 0.0021 | AH167: 5.6 | AI167: 2.48 | AJ167: 55.4 | AK167: 0 | AL167: 0.2 | AM167: 1.2 | AN167: 11 | AO167: 38.5 | AP167: 0.42 | AQ167: 95.8 | AR167: 371 | AS167: 7 | AT167: 990 | AU167: 0.5 | AV167: < 2 | AW167: 33 | AX167: < 0.5 | AY167: 3.7 | AZ167: 0 | BA167: 0 | BB167: 0 | BC167: 0.17 | BD167: 0.14 | BE167: 3.4 | BF167: 0.62 | BG167: 0.26 | BH167: 42 | BI167: 0.15
A168: 328 | B168: biscuits apéritifs | C168: Biscuit apéritif soufflé. à base de pomme de terre | D168: 100 | E168: 486 | F168: 2.74 | G168: 4.25 | H168: 61 | I168: 24.1 | J168: 1.61 | K168: 59.1 | L168: 3.81 | M168: 0 | N168: 4.09 | O168: 0 | P168: 0 | Q168: 6.34 | R168: 10.4 | S168: 2.66 | T168: 0 | U168: 0 | V168: 0 | W168: 0 | X168: 0 | Y168: 0.16 | Z168: 5.52 | AA168: 0.67 | AB168: 9.98 | AC168: 2.49 | AD168: 0.11 | AE168: 0.0027 | AF168: 0.014 | AG168: 0.041 | AH168: 0 | AI168: 3.14 | AJ168: 31 | AK168: 0 | AL168: 0.18 | AM168: 1.37 | AN168: 0 | AO168: 36 | AP168: 0.27 | AQ168: 129 | AR168: 630 | AS168: 0.8 | AT168: 1250 | AU168: 0.69 | AV168: 0 | AW168: 0 | AX168: 0 | AY168: 0 | AZ168: 0 | BA168: 0 | BB168: 0 | BC168: 0.25 | BD168: 0.082 | BE168: 2.8 | BF168: 0.53 | BG168: 0.33 | BH168: 69 | BI168: 0
A169: 330 | B169: biscuits apéritifs | C169: Biscuit apéritif soufflé. à base de pomme de terre et de soja | D169: 100 | E169: 409 | F169: 0 | G169: 19 | H169: 58.3 | I169: 9.33 | J169: 7.17 | K169: 0 | L169: 7.67 | M169: 0 | N169: 2.08 | O169: 0 | P169: 0 | Q169: 0.9 | R169: 0 | S169: 0 | T169: 0 | U169: 0 | V169: 0 | W169: 0 | X169: 0 | Y169: 0 | Z169: 0 | AA169: 0 | AB169: 0 | AC169: 0 | AD169: 0 | AE169: 0 | AF169: 0 | AG169: 0 | AH169: 0 | AI169: 2.08 | AJ169: 0 | AK169: 0 | AL169: 0 | AM169: 0 | AN169: 0 | AO169: 0 | AP169: 0 | AQ169: 0 | AR169: 0 | AS169: 0 | AT169: 833 | AU169: 0 | AV169: 0 | AW169: 0 | AX169: 0 | AY169: 0 | AZ169: 0 | BA169: 0 | BB169: 0 | BC169: 0 | BD169: 0 | BE169: 0 | BF169: 0 | BG169: 0 | BH169: 0 | BI169: 0
A170: 333 | B170: biscuits apéritifs | C170: Biscuit apéritif. crackers. garni ou fourré. au fromage | D170: 100 | E170: 535 | F170: 2.1 | G170: 13.8 | H170: 46 | I170: 32.2 | J170: 5.33 | K170: 40.6 | L170: 3.37 | M170: 0 | N170: 2.64 | O170: 0 | P170: 0 | Q170: 19.9 | R170: 7.71 | S170: 2.67 | T170: 0.1 | U170: 0.068 | V170: 0.05 | W170: 0.38 | X170: 0.56 | Y170: 0.76 | Z170: 12.5 | AA170: 1.39 | AB170: 7.71 | AC170: 2.59 | AD170: 0.058 | AE170: 0.012 | AF170: 0.0015 | AG170: 0.0049 | AH170: 0 | AI170: 1.89 | AJ170: 236 | AK170: 0 | AL170: 0 | AM170: 3.3 | AN170: 8 | AO170: 26.5 | AP170: 0 | AQ170: 0 | AR170: 148 | AS170: 0 | AT170: 755 | AU170: 1.4 | AV170: 40 | AW170: 20 | AX170: 0 | AY170: 4 | AZ170: 0 | BA170: 0 | BB170: 0 | BC170: 0.62 | BD170: 0 | BE170: 0 | BF170: 0 | BG170: 0.62 | BH170: 100 | BI170: 0
A171: 334 | B171: biscuits apéritifs | C171: Biscuit apéritif. crackers. nature | D171: 100 | E171: 499 | F171: 0.89 | G171: 10.5 | H171: 59 | I171: 23.9 | J171: 5.44 | K171: 53.5 | L171: 3.14 | M171: 0 | N171: 2.61 | O171: 0 | P171: 0 | Q171: 12.1 | R171: 7.78 | S171: 1.91 | T171: 0 | U171: 0.035 | V171: 0.42 | W171: 0.35 | X171: 1.98 | Y171: 0.87 | Z171: 5.28 | AA171: 0.93 | AB171: 5.18 | AC171: 1.87 | AD171: 0.044 | AE171: 0 | AF171: 0 | AG171: 0 | AH171: 5.9 | AI171: 2.3 | AJ171: 28 | AK171: 911 | AL171: 0 | AM171: 2.75 | AN171: 8 | AO171: 30.5 | AP171: 0 | AQ171: 89 | AR171: 152 | AS171: 0 | AT171: 919 | AU171: 0.8 | AV171: 0 | AW171: 0 | AX171: 0 | AY171: 3 | AZ171: 0 | BA171: 0 | BB171: 0 | BC171: 0.42 | BD171: 0.05 | BE171: 1 | BF171: 0 | BG171: 0.6 | BH171: 0 | BI171: 0
A172: 335 | B172: biscuits apéritifs | C172: Biscuit apéritif. crackers. nature. allégé en matière grasse | D172: 100 | E172: 410 | F172: 4.05 | G172: 6.53 | H172: 73.1 | I172: 9.33 | J172: 3.97 | K172: 67 | L172: 3.67 | M172: 0 | N172: 3.37 | O172: 0 | P172: 0 | Q172: 4.67 | R172: 3.15 | S172: 1.1 | T172: 0 | U172: 0 | V172: 0 | W172: 0.0032 | X172: 0.065 | Y172: 0.12 | Z172: 4.02 | AA172: 0.46 | AB172: 3.15 | AC172: 1.07 | AD172: 0.037 | AE172: 0 | AF172: 0 | AG172: 0 | AH172: 0 | AI172: 3 | AJ172: 72 | AK172: 0 | AL172: 0.2 | AM172: 2.9 | AN172: 8 | AO172: 29 | AP172: 0.7 | AQ172: 108 | AR172: 152 | AS172: 0 | AT172: 1200 | AU172: 0.75 | AV172: 0 | AW172: 0 | AX172: 0 | AY172: 3.2 | AZ172: 0 | BA172: 0 | BB172: 0 | BC172: 0.44 | BD172: 0.27 | BE172: 3.5 | BF172: 1.9 | BG172: 0.56 | BH172: 80 | BI172: 0
A173: 329 | B173: biscuits apéritifs | C173: Biscuit apéritif. mini bretzel ou sticks | D173: 100 | E173: 379 | F173: 2.9 | G173: 11.2 | H173: 74.4 | I173: 3.13 | J173: 2.02 | K173: 72.3 | L173: 4.32 | M173: 0 | N173: 4.06 | O173: 0 | P173: 0 | Q173: 1.4 | R173: 1.27 | S173: 0.31 | T173: traces | U173: < 0.01 | V173: 0.01 | W173: < 0.01 | X173: < 0.01 | Y173: < 0.01 | Z173: 0.32 | AA173: 0.12 | AB173: 1.27 | AC173: 0.3 | AD173: 0.016 | AE173: < 0.01 | AF173: < 0.01 | AG173: < 0.01 | AH173: 0 | AI173: 3.73 | AJ173: 21 | AK173: 1420 | AL173: 0.16 | AM173: 1.3 | AN173: < 20 | AO173: 28 | AP173: 0.83 | AQ173: 120 | AR173: 160 | AS173: < 20 | AT173: 1770 | AU173: 0.77 | AV173: 0 | AW173: 0 | AX173: 0 | AY173: 1.09 | AZ173: 0.88 | BA173: 0 | BB173: 0 | BC173: 0.18 | BD173: 0.013 | BE173: 1.03 | BF173: 0.51 | BG173: 0.11 | BH173: 44 | BI173: 0.038
A174: 366 | B174: biscuits sucrés | C174: Biscuit aux céréales pour petit déjeuner. enrichis en vitamines et minéraux | D174: 100 | E174: 454 | F174: 0 | G174: 7.6 | H174: 65.8 | I174: 17.5 | J174: 23.8 | K174: 37.2 | L174: 5.4 | M174: 4.72 | N174: 1.29 | O174: 0 | P174: 0 | Q174: 7.26 | R174: 0 | S174: 0 | T174: 0 | U174: 0 | V174: 0 | W174: 0 | X174: 0 | Y174: 0 | Z174: 0 | AA174: 0 | AB174: 0 | AC174: 0 | AD174: 0 | AE174: 0 | AF174: 0 | AG174: 0 | AH174: 0 | AI174: 0.78 | AJ174: 211 | AK174: 0 | AL174: 0 | AM174: 4.84 | AN174: 0 | AO174: 80.7 | AP174: 0 | AQ174: 223 | AR174: 0 | AS174: 0 | AT174: 309 | AU174: 0 | AV174: 0 | AW174: 0 | AX174: 0 | AY174: 4.27 | AZ174: 0 | BA174: 0 | BB174: 0 | BC174: 0.32 | BD174: 0.41 | BE174: 4.01 | BF174: 1.39 | BG174: 0.46 | BH174: 58.2 | BI174: 0.22
A175: 1222 | B175: gâteaux et pâtisseries | C175: Biscuit de Savoie | D175: 100 | E175: 260 | F175: 33.2 | G175: 5.9 | H175: 56.3 | I175: 0.8 | J175: 0 | K175: 0 | L175: 1.5 | M175: 0 | N175: 2.44 | O175: 0 | P175: 0 | Q175: 0.12 | R175: 0.071 | S175: 0.37 | T175: 0 | U175: 0 | V175: 0 | W175: 0 | X175: 0 | Y175: 0.001 | Z175: 0.11 | AA175: 0.005 | AB175: 0 | AC175: 0 | AD175: 0 | AE175: 0 | AF175: 0 | AG175: 0 | AH175: 0 | AI175: 1.87 | AJ175: 140 | AK175: 0 | AL175: 0.064 | AM175: 0.52 | AN175: 25 | AO175: 12 | AP175: 0.29 | AQ175: 324 | AR175: 93 | AS175: 0 | AT175: 749 | AU175: 0.41 | AV175: 0 | AW175: 20 | AX175: 0 | AY175: 0 | AZ175: 0 | BA175: 0 | BB175: 0 | BC175: 0.1 | BD175: 0.49 | BE175: 0.88 | BF175: 0.2 | BG175: 0.031 | BH175: 3 | BI175: 0.06
A176: 400 | B176: biscuits sucrés | C176: Biscuit moelleux fourré à l'orange et enrobé de sucre glace | D176: 100 | E176: 354 | F176: 13.3 | G176: 4.25 | H176: 79.3 | I176: 1.92 | J176: 52.9 | K176: 25.9 | L176: 1 | M176: 0 | N176: 0.24 | O176: 0 | P176: 0 | Q176: 0.86 | R176: 0.55 | S176: 0.33 | T176: < 0.016 | U176: < 0.002 | V176: < 0.005 | W176: < 0.01 | X176: 0.02 | Y176: 0.041 | Z176: 0.43 | AA176: 0.17 | AB176: 0.54 | AC176: 0.26 | AD176: 0.049 | AE176: < 0.014 | AF176: 0 | AG176: 0 | AH176: 18.4 | AI176: 0.015 | AJ176: 0 | AK176: 0 | AL176: 0.11 | AM176: 0.7 | AN176: 11 | AO176: 10.1 | AP176: 0.25 | AQ176: 55 | AR176: 81 | AS176: < 5 | AT176: 5.9 | AU176: 0.4 | AV176: < 2 | AW176: < 30 | AX176: < 0.5 | AY176: 0.7 | AZ176: 0 | BA176: 0 | BB176: < 1 | BC176: 0.096 | BD176: 0.051 | BE176: 0.59 | BF176: 0.28 | BG176: 0.52 | BH176: 26 | BI176: < 0.08
A177: 375 | B177: biscuits sucrés | C177: Biscuit pâtissier meringué | D177: 100 | E177: 537 | F177: 0 | G177: 7.42 | H177: 56 | I177: 30.7 | J177: 46.1 | K177: 0 | L177: 3.62 | M177: 0 | N177: 0.3 | O177: 0 | P177: 0 | Q177: 18.9 | R177: 0 | S177: 0 | T177: 0 | U177: 0 | V177: 0 | W177: 0 | X177: 0 | Y177: 0 | Z177: 0 | AA177: 0 | AB177: 0 | AC177: 0 | AD177: 0 | AE177: 0 | AF177: 0 | AG177: 0 | AH177: 0 | AI177: 0.3 | AJ177: 0 | AK177: 0 | AL177: 0 | AM177: 0 | AN177: 0 | AO177: 0 | AP177: 0 | AQ177: 0 | AR177: 0 | AS177: 0 | AT177: 122 | AU177: 0 | AV177: 0 | AW177: 0 | AX177: 0 | AY177: 0 | AZ177: 0 | BA177: 0 | BB177: 0 | BC177: 0 | BD177: 0 | BE177: 0 | BF177: 0 | BG177: 0 | BH177: 0 | BI177: 0
A178: 614 | B178: céréales et biscuits infantiles | C178: Biscuit pour bébé | D178: 100 | E178: 437 | F178: 3.46 | G178: 7.99 | H178: 72.7 | I178: 12.2 | J178: 27.6 | K178: 39.1 | L178: 2.33 | M178: 0 | N178: 1.38 | O178: 0 | P178: traces | Q178: 3.33 | R178: 5.33 | S178: 2.7 | T178: < 0.0002 | U178: < 0.0002 | V178: 0.0035 | W178: 0.0035 | X178: 0.036 | Y178: 0.069 | Z178: 2.66 | AA178: 0.46 | AB178: 5.19 | AC178: 2.39 | AD178: 0.29 | AE178: 0.0045 | AF178: 0.0071 | AG178: 0.0023 | AH178: 23.5 | AI178: 0.38 | AJ178: 145 | AK178: 150 | AL178: 0.16 | AM178: 3.39 | AN178: < 20 | AO178: 31.5 | AP178: 0.44 | AQ178: 47 | AR178: 227 | AS178: 6.3 | AT178: 153 | AU178: 0.78 | AV178: < 21 | AW178: < 10 | AX178: < 0.5 | AY178: 2.92 | AZ178: 0 | BA178: 0 | BB178: < 0.5 | BC178: 0.63 | BD178: 0.62 | BE178: 5.9 | BF178: 4.69 | BG178: 0.66 | BH178: 31.1 | BI178: 0.28
A179: 398 | B179: biscuits sucrés | C179: Biscuit sec (génoise) nappage aux fruits. type barquette | D179: 100 | E179: 359 | F179: 12.8 | G179: 4.54 | H179: 77.1 | I179: 3.24 | J179: 54.2 | K179: 21.5 | L179: 1.48 | M179: 0 | N179: 0.84 | O179: 0 | P179: 0 | Q179: 0.78 | R179: 1.3 | S179: 1.01 | T179: 0.0016 | U179: 0.0018 | V179: 0.012 | W179: 0.0083 | X179: 0.058 | Y179: 0.031 | Z179: 0.55 | AA179: 0.11 | AB179: 1.3 | AC179: 0.88 | AD179: 0.12 | AE179: 0.01 | AF179: < 0.005 | AG179: 0.0045 | AH179: 64.3 | AI179: 0.28 | AJ179: 51.3 | AK179: 0 | AL179: 0.17 | AM179: 1.65 | AN179: 5 | AO179: 49.1 | AP179: 0.58 | AQ179: 65.8 | AR179: 395 | AS179: < 10 | AT179: 111 | AU179: 0.61 | AV179: 14 | AW179: 37 | AX179: < 0.5 | AY179: 0.9 | AZ179: 0 | BA179: 0 | BB179: < 1 | BC179: 0.044 | BD179: 0.077 | BE179: 0.26 | BF179: 0.5 | BG179: 0.077 | BH179: 26 | BI179: 0.22
A180: 346 | B180: biscuits sucrés | C180: Biscuit sec à teneur garantie en vitamines | D180: 100 | E180: 458 | F180: 1.8 | G180: 9.63 | H180: 72.6 | I180: 14.2 | J180: 23.3 | K180: 49 | L180: 0.75 | M180: 0 | N180: 1.03 | O180: 0 | P180: 0 | Q180: 6.07 | R180: 3.98 | S180: 3.26 | T180: < 0.013 | U180: < 0.013 | V180: 0.044 | W180: < 0.013 | X180: < 0.013 | Y180: 0.14 | Z180: 5.4 | AA180: 0.49 | AB180: 3.95 | AC180: 3.02 | AD180: 0.25 | AE180: < 0.013 | AF180: 0 | AG180: 0 | AH180: 15.5 | AI180: 0.16 | AJ180: 0 | AK180: 0 | AL180: 0.28 | AM180: 2 | AN180: 13 | AO180: 54 | AP180: 1.59 | AQ180: 149 | AR180: 275 | AS180: 6 | AT180: 62.3 | AU180: 1.5 | AV180: < 2 | AW180: < 30 | AX180: 0.55 | AY180: 6.3 | AZ180: 0 | BA180: 0 | BB180: 3 | BC180: 2.6 | BD180: 1.8 | BE180: 20.1 | BF180: 0.82 | BG180: 3.35 | BH180: 212 | BI180: < 0.08
A181: 347 | B181: biscuits sucrés | C181: Biscuit sec à teneur garantie en vitamines et minéraux | D181: 100 | E181: 476 | F181: 1.28 | G181: 10.8 | H181: 61.9 | I181: 19.8 | J181: 22.1 | K181: 39 | L181: 3.5 | M181: 0 | N181: 2.78 | O181: 0 | P181: 0 | Q181: 8.44 | R181: 6.75 | S181: 3.32 | T181: < 0.019 | U181: < 0.019 | V181: < 0.019 | W181: < 0.019 | X181: < 0.019 | Y181: 0.17 | Z181: 6.76 | AA181: 1.39 | AB181: 6.71 | AC181: 3.16 | AD181: 0.12 | AE181: < 0.019 | AF181: 0 | AG181: 0 | AH181: 1.7 | AI181: 0.44 | AJ181: 0 | AK181: 0 | AL181: 0.35 | AM181: 6.4 | AN181: 11 | AO181: 195 | AP181: 5.69 | AQ181: 213 | AR181: 256 | AS181: 8 | AT181: 177 | AU181: 1.9 | AV181: 0.68 | AW181: < 30 | AX181: < 0.5 | AY181: 31.2 | AZ181: 0 | BA181: 0 | BB181: < 1 | BC181: 1.7 | BD181: 1.95 | BE181: 2.1 | BF181: 0.61 | BG181: 3.7 | BH181: 157 | BI181: < 0.08
A182: 367 | B182: biscuits sucrés | C182: Biscuit sec au beurre. sablé. galette ou palet | D182: 100 | E182: 493 | F182: 2.89 | G182: 6.4 | H182: 64.8 | I182: 22.7 | J182: 24.3 | K182: 40.5 | L182: 1.99 | M182: 0 | N182: 1.21 | O182: 0 | P182: 0 | Q182: 14.7 | R182: 5.49 | S182: 1.49 | T182: 0.67 | U182: 0.37 | V182: 0.24 | W182: 0.42 | X182: 0.68 | Y182: 1.61 | Z182: 6.29 | AA182: 1.53 | AB182: 4.91 | AC182: 1.3 | AD182: 0.11 | AE182: 0.0096 | AF182: 0.0043 | AG182: < 0.005 | AH182: 130 | AI182: 0.82 | AJ182: 37.7 | AK182: 561 | AL182: 0.09 | AM182: 1.82 | AN182: 18 | AO182: 14 | AP182: 0.39 | AQ182: 66 | AR182: 88 | AS182: 0 | AT182: 324 | AU182: 0.49 | AV182: 0 | AW182: 1 | AX182: 0 | AY182: 2.44 | AZ182: 11 | BA182: 0 | BB182: 0 | BC182: 0.35 | BD182: 0.31 | BE182: 3.28 | BF182: 0.32 | BG182: 0.071 | BH182: 20 | BI182: 0
A183: 368 | B183: biscuits sucrés | C183: Biscuit sec au beurre. sablé. galette ou palet. au chocolat | D183: 100 | E183: 505 | F183: 2.6 | G183: 6.64 | H183: 61 | I183: 25.3 | J183: 28.9 | K183: 28.9 | L183: 3.19 | M183: 0 | N183: 1.27 | O183: 0 | P183: 0 | Q183: 16 | R183: 6.36 | S183: 1.01 | T183: 0.26 | U183: 0.32 | V183: 0.24 | W183: 0.37 | X183: 0.54 | Y183: 1.63 | Z183: 6.61 | AA183: 3.54 | AB183: 5.47 | AC183: 0.8 | AD183: 0.09 | AE183: 0.02 | AF183: < 0.01 | AG183: < 0.01 | AH183: 63.7 | AI183: 0.77 | AJ183: 34 | AK183: 297 | AL183: 0.33 | AM183: 7 | AN183: < 20 | AO183: 51 | AP183: 0.65 | AQ183: 140 | AR183: 270 | AS183: < 20 | AT183: 306 | AU183: 0.9 | AV183: 116 | AW183: 52 | AX183: < 0.25 | AY183: 2.67 | AZ183: 3 | BA183: 0 | BB183: < 0.5 | BC183: 0.1 | BD183: 0.089 | BE183: 0.22 | BF183: 0.35 | BG183: 0.066 | BH183: 25.6 | BI183: 0.41
A184: 357 | B184: biscuits sucrés | C184: Biscuit sec au lait | D184: 100 | E184: 437 | F184: 2.85 | G184: 8.25 | H184: 73.9 | I184: 11.5 | J184: 20 | K184: 47.4 | L184: 2.2 | M184: 0 | N184: 1.27 | O184: 0 | P184: 0 | Q184: 5.45 | R184: 0 | S184: 0 | T184: 0 | U184: 0 | V184: 0 | W184: 0 | X184: 0 | Y184: 0 | Z184: 0 | AA184: 0 | AB184: 0 | AC184: 0 | AD184: 0 | AE184: 0 | AF184: 0 | AG184: 0 | AH184: 0 | AI184: 1.14 | AJ184: 27.9 | AK184: 558 | AL184: 0 | AM184: 0 | AN184: 0 | AO184: 0 | AP184: 0 | AQ184: 0 | AR184: 0 | AS184: 0 | AT184: 455 | AU184: 0 | AV184: 0 | AW184: 0 | AX184: 0 | AY184: 0 | AZ184: 0 | BA184: 0 | BB184: 0 | BC184: 0 | BD184: 0 | BE184: 0 | BF184: 0 | BG184: 0 | BH184: 0 | BI184: 0
A185: 348 | B185: biscuits sucrés | C185: Biscuit sec aux fruits. hyposodé | D185: 100 | E185: 443 | F185: 5 | G185: 10.8 | H185: 61.4 | I185: 15.8 | J185: 20.2 | K185: 38.1 | L185: 6 | M185: 0 | N185: 1 | O185: 0 | P185: 0 | Q185: 6.8 | R185: 5.2 | S185: 3 | T185: 0 | U185: 0 | V185: 0 | W185: 0 | X185: 0 | Y185: 0 | Z185: 0 | AA185: 0 | AB185: 0 | AC185: 0 | AD185: 0 | AE185: 0 | AF185: 0 | AG185: 0 | AH185: 0 | AI185: 0.038 | AJ185: 45 | AK185: 0 | AL185: 0.1 | AM185: 1.95 | AN185: 12 | AO185: 40 | AP185: 0.3 | AQ185: 160 | AR185: 325 | AS185: 2.5 | AT185: 15 | AU185: 0.35 | AV185: 1 | AW185: 7 | AX185: 0.25 | AY185: 2.5 | AZ185: 0 | BA185: 0 | BB185: 0 | BC185: 1.63 | BD185: 1.95 | BE185: 19.5 | BF185: 10.9 | BG185: 2.4 | BH185: 435 | BI185: 0.04
A186: 391 | B186: biscuits sucrés | C186: Biscuit sec aux œufs à la cuillère (cuiller) ou Boudoir | D186: 100 | E186: 388 | F186: 6.3 | G186: 7.98 | H186: 79.9 | I186: 3.77 | J186: 47.9 | K186: 24.3 | L186: 1.37 | M186: 0 | N186: 0.66 | O186: 0 | P186: 0 | Q186: 0.99 | R186: 1.23 | S186: 0.77 | T186: 0 | U186: 0 | V186: 0 | W186: 0 | X186: 0 | Y186: 0.0092 | Z186: 0.56 | AA186: 0.14 | AB186: 1.11 | AC186: 0.69 | AD186: 0.036 | AE186: 0.016 | AF186: 0 | AG186: 0.023 | AH186: 109 | AI186: 0.41 | AJ186: 25.5 | AK186: 0.1 | AL186: < 1 | AM186: 1.1 | AN186: < 10 | AO186: 14.3 | AP186: < 1 | AQ186: 107 | AR186: 109 | AS186: < 3 | AT186: 161 | AU186: < 1 | AV186: 7.8 | AW186: < 50 | AX186: < 0.2 | AY186: 0.9 | AZ186: 0 | BA186: 0 | BB186: 0 | BC186: < 0.05 | BD186: 0.11 | BE186: < 0.05 | BF186: 0.6 | BG186: < 0.05 | BH186: 9.6 | BI186: 0.36
A187: 363 | B187: biscuits sucrés | C187: Biscuit sec avec nappage chocolat | D187: 100 | E187: 505 | F187: 2.72 | G187: 6.93 | H187: 61.9 | I187: 25 | J187: 36.7 | K187: 25.2 | L187: 2.09 | M187: 0 | N187: 1.32 | O187: 0 | P187: 0 | Q187: 14.9 | R187: 7.67 | S187: 1.75 | T187: 0.052 | U187: 0.035 | V187: 0.073 | W187: 0.088 | X187: 0.82 | Y187: 0.54 | Z187: 7.53 | AA187: 3.31 | AB187: 7.47 | AC187: 1.69 | AD187: 0.047 | AE187: < 0.005 | AF187: < 0.005 | AG187: < 0.005 | AH187: 9 | AI187: 0.4 | AJ187: 45 | AK187: 0 | AL187: 0 | AM187: 2.7 | AN187: 7.13 | AO187: 11.7 | AP187: 0 | AQ187: 131 | AR187: 193 | AS187: 0 | AT187: 156 | AU187: 0.89 | AV187: 0 | AW187: 0 | AX187: 0 | AY187: 0 | AZ187: 0 | BA187: 0 | BB187: < 0.3 | BC187: 0 | BD187: 0 | BE187: 0 | BF187: 0 | BG187: 0 | BH187: 0 | BI187: 0
A188: 355 | B188: biscuits sucrés | C188: Biscuit sec avec tablette de chocolat | D188: 100 | E188: 502 | F188: 2.01 | G188: 6.62 | H188: 63.3 | I188: 24.1 | J188: 36.8 | K188: 26.5 | L188: 2.65 | M188: 0 | N188: 1.3 | O188: 0 | P188: 0 | Q188: 15.1 | R188: 5.85 | S188: 1.08 | T188: 0.26 | U188: 0.15 | V188: 0.18 | W188: 0.27 | X188: 2.12 | Y188: 1.34 | Z188: 5.67 | AA188: 4.03 | AB188: 5.6 | AC188: 0.99 | AD188: 0.072 | AE188: 0.0028 | AF188: < 0.005 | AG188: < 0.005 | AH188: 26.4 | AI188: 0.61 | AJ188: 94 | AK188: 0 | AL188: 0.25 | AM188: 5.3 | AN188: 24 | AO188: 37.5 | AP188: 0.35 | AQ188: 185 | AR188: 218 | AS188: < 5 | AT188: 240 | AU188: 0.8 | AV188: 75 | AW188: 49 | AX188: < 0.5 | AY188: 0.89 | AZ188: 0 | BA188: 0 | BB188: 1.1 | BC188: 0.17 | BD188: 0.28 | BE188: 0.68 | BF188: 0.51 | BG188: 0.2 | BH188: 36 | BI188: 0.2
A189: 361 | B189: biscuits sucrés | C189: Biscuit sec chocolaté. préemballé | D189: 100 | E189: 520 | F189: 1.21 | G189: 6.43 | H189: 61.7 | I189: 26.9 | J189: 34.3 | K189: 27.4 | L189: 2.71 | M189: 0 | N189: 1.06 | O189: 0 | P189: 0 | Q189: 14.2 | R189: 0 | S189: 0 | T189: 0 | U189: 0 | V189: 0 | W189: 0 | X189: 0 | Y189: 0 | Z189: 0 | AA189: 0 | AB189: 0 | AC189: 0 | AD189: 0 | AE189: 0 | AF189: 0 | AG189: 0 | AH189: 0 | AI189: 0.5 | AJ189: 53.4 | AK189: 368 | AL189: 0.23 | AM189: 2.66 | AN189: 6 | AO189: 31.8 | AP189: 0.43 | AQ189: 165 | AR189: 221 | AS189: < 2.2 | AT189: 200 | AU189: 0.69 | AV189: traces | AW189: 7 | AX189: 0 | AY189: 1.1 | AZ189: 0 | BA189: 0 | BB189: 0 | BC189: 0.08 | BD189: 0.11 | BE189: 1.3 | BF189: 0.53 | BG189: 0.08 | BH189: 32 | BI189: 0
A190: 369 | B190: biscuits sucrés | C190: Biscuit sec chocolaté. type barquette | D190: 100 | E190: 483 | F190: 5.29 | G190: 7.39 | H190: 60.9 | I190: 22.8 | J190: 43.1 | K190: 16.2 | L190: 2.41 | M190: 0 | N190: 1.19 | O190: 0 | P190: 0 | Q190: 3.03 | R190: 13.8 | S190: 5.08 | T190: < 0.005 | U190: < 0.005 | V190: 0.021 | W190: 0.017 | X190: 0.14 | Y190: 0.073 | Z190: 1.69 | AA190: 0.77 | AB190: 12.6 | AC190: 3.79 | AD190: 1.23 | AE190: 0.0053 | AF190: 0.0043 | AG190: < 0.005 | AH190: 0 | AI190: 0.4 | AJ190: 0 | AK190: 0 | AL190: 0 | AM190: 0 | AN190: 0 | AO190: 0 | AP190: 0 | AQ190: 0 | AR190: 0 | AS190: 0 | AT190: 160 | AU190: 0 | AV190: 0 | AW190: 0 | AX190: 0 | AY190: 0 | AZ190: 0 | BA190: 0 | BB190: 0 | BC190: 0 | BD190: 0 | BE190: 0 | BF190: 0 | BG190: 0 | BH190: 0 | BI190: 0
A191: 371 | B191: biscuits sucrés | C191: Biscuit sec chocolaté. type galette | D191: 100 | E191: 500 | F191: 0 | G191: 6.84 | H191: 63.7 | I191: 23.5 | J191: 28.2 | K191: 34 | L191: 3.01 | M191: 0 | N191: 0.89 | O191: 0 | P191: 0 | Q191: 13.2 | R191: 0 | S191: 0 | T191: 0 | U191: 0 | V191: 0 | W191: 0 | X191: 0 | Y191: 0 | Z191: 0 | AA191: 0 | AB191: 0 | AC191: 0 | AD191: 0 | AE191: 0 | AF191: 0 | AG191: 0 | AH191: 0 | AI191: 0.65 | AJ191: 0 | AK191: 0 | AL191: 0 | AM191: 3.97 | AN191: 0 | AO191: 60.5 | AP191: 0 | AQ191: 171 | AR191: 0 | AS191: 0 | AT191: 261 | AU191: 0 | AV191: 0 | AW191: 0 | AX191: 0 | AY191: 4 | AZ191: 0 | BA191: 0 | BB191: 0 | BC191: 0.6 | BD191: 0.7 | BE191: 6 | BF191: 0 | BG191: 1 | BH191: 79 | BI191: 0
A192: 370 | B192: biscuits sucrés | C192: Biscuit sec chocolaté. type tartelette | D192: 100 | E192: 506 | F192: 2.7 | G192: 6.65 | H192: 60.2 | I192: 25.8 | J192: 29.2 | K192: 25.9 | L192: 3.24 | M192: 0 | N192: 1.42 | O192: 0 | P192: 0 | Q192: 16 | R192: 7.26 | S192: 1.75 | T192: 0.047 | U192: 0.09 | V192: 0.56 | W192: 0.41 | X192: 3.55 | Y192: 1.73 | Z192: 6.39 | AA192: 2.93 | AB192: 6.8 | AC192: 1.61 | AD192: 0.09 | AE192: < 0.01 | AF192: < 0.01 | AG192: < 0.01 | AH192: 21 | AI192: 0.45 | AJ192: 58 | AK192: 247 | AL192: 0.29 | AM192: 0.15 | AN192: < 20 | AO192: 59 | AP192: 0.88 | AQ192: 160 | AR192: 360 | AS192: < 20 | AT192: 178 | AU192: 1 | AV192: 25.1 | AW192: 7.66 | AX192: < 0.25 | AY192: 2.46 | AZ192: 4.2 | BA192: 0 | BB192: < 0.5 | BC192: 0.098 | BD192: 0.083 | BE192: 0.32 | BF192: 0.35 | BG192: 0.046 | BH192: 39.1 | BI192: 0.15
A193: 358 | B193: biscuits sucrés | C193: Biscuit sec croquant (ex : tuile) sans chocolat. allégé en matière grasse | D193: 100 | E193: 427 | F193: 1.5 | G193: 5.63 | H193: 80.1 | I193: 8.8 | J193: 29.4 | K193: 24.4 | L193: 2.5 | M193: 0 | N193: 1.5 | O193: 0 | P193: 0 | Q193: 2.85 | R193: 2.72 | S193: 0.95 | T193: 0 | U193: 0 | V193: 0.061 | W193: 0.043 | X193: 0.012 | Y193: 0.059 | Z193: 2.36 | AA193: 0.27 | AB193: 2.61 | AC193: 0 | AD193: 0.1 | AE193: 0.0031 | AF193: 0 | AG193: 0 | AH193: 40 | AI193: 0.78 | AJ193: 199 | AK193: 279 | AL193: < 1 | AM193: < 1 | AN193: < 10 | AO193: 25.5 | AP193: < 1 | AQ193: 239 | AR193: 211 | AS193: < 3 | AT193: 311 | AU193: < 1 | AV193: < 2 | AW193: < 50 | AX193: < 0.2 | AY193: 2.07 | AZ193: 0 | BA193: 0 | BB193: 0 | BC193: 0.17 | BD193: 0.11 | BE193: < 0.05 | BF193: 0.67 | BG193: < 0.05 | BH193: 11.7 | BI193: 0.97
A194: 349 | B194: biscuits sucrés | C194: Biscuit sec croquant au chocolat. allégé en matière grasse | D194: 100 | E194: 420 | F194: 0 | G194: 7 | H194: 69 | I194: 11 | J194: 22.4 | K194: 46.6 | L194: 8.4 | M194: 0 | N194: 2.27 | O194: 0 | P194: 0 | Q194: 3.18 | R194: 4.12 | S194: 1.84 | T194: 0.0092 | U194: 0.01 | V194: 0.055 | W194: 0.054 | X194: 0.59 | Y194: 0.25 | Z194: 1.37 | AA194: 0.73 | AB194: 3.84 | AC194: 0 | AD194: 0.39 | AE194: 0 | AF194: 0 | AG194: 0 | AH194: 0 | AI194: 2.18 | AJ194: 0 | AK194: 0 | AL194: 0 | AM194: 0 | AN194: 0 | AO194: 90 | AP194: 0 | AQ194: 0 | AR194: 0 | AS194: 0 | AT194: 870 | AU194: 0 | AV194: 0 | AW194: 0 | AX194: 0 | AY194: 3.9 | AZ194: 0 | BA194: 0 | BB194: 0 | BC194: 0.42 | BD194: 0 | BE194: 0 | BF194: 0 | BG194: 0.6 | BH194: 0 | BI194: 0
A195: 396 | B195: biscuits sucrés | C195: Biscuit sec feuilleté. type palmier ou autres | D195: 100 | E195: 519 | F195: 2.49 | G195: 6.1 | H195: 60.5 | I195: 27.6 | J195: 21.6 | K195: 38.9 | L195: 2.06 | M195: 0 | N195: 1.29 | O195: 0 | P195: 0 | Q195: 14.4 | R195: 9.49 | S195: 2.92 | T195: 0.029 | U195: 0.028 | V195: 0.17 | W195: 0.13 | X195: 0.9 | Y195: 0.58 | Z195: 9.58 | AA195: 1.83 | AB195: 8.55 | AC195: 2.6 | AD195: 0.23 | AE195: 0.0029 | AF195: 0.0029 | AG195: < 0.005 | AH195: 11.7 | AI195: 1.01 | AJ195: 16.7 | AK195: 0 | AL195: < 0.1 | AM195: 0.4 | AN195: 3 | AO195: 14.6 | AP195: 0.3 | AQ195: 57.6 | AR195: 91.2 | AS195: < 5 | AT195: 400 | AU195: 0.4 | AV195: 26.5 | AW195: 35 | AX195: 0.92 | AY195: 2.07 | AZ195: 0 | BA195: 0 | BB195: 0 | BC195: 0.15 | BD195: 0.052 | BE195: 0.75 | BF195: 0.29 | BG195: 0.24 | BH195: 34.7 | BI195: < 0.08
A196: 362 | B196: biscuits sucrés | C196: Biscuit sec fourré à la pâte ou purée de fruits | D196: 100 | E196: 383 | F196: 12.7 | G196: 4.43 | H196: 69.2 | I196: 9.11 | J196: 43.4 | K196: 21.5 | L196: 3.52 | M196: 0 | N196: 1.08 | O196: 0 | P196: 0 | Q196: 3.6 | R196: 3.74 | S196: 1.38 | T196: < 0.005 | U196: < 0.005 | V196: 0.0034 | W196: 0.0028 | X196: 0.02 | Y196: 0.074 | Z196: 3.17 | AA196: 0.33 | AB196: 3.74 | AC196: 0.76 | AD196: 0.19 | AE196: < 0.005 | AF196: < 0.005 | AG196: < 0.005 | AH196: 3.8 | AI196: 0.41 | AJ196: 64 | AK196: 235 | AL196: 0.1 | AM196: 1 | AN196: 12 | AO196: 294 | AP196: 0.3 | AQ196: 37 | AR196: 269 | AS196: < 5 | AT196: 160 | AU196: 0.3 | AV196: < 2 | AW196: 7 | AX196: 0.25 | AY196: 3.02 | AZ196: 5.8 | BA196: 0 | BB196: < 0.5 | BC196: 0.45 | BD196: 0.055 | BE196: 0.63 | BF196: 0.28 | BG196: 0.31 | BH196: 21 | BI196: < 0.08
A197: 350 | B197: biscuits sucrés | C197: Biscuit sec fourré aux fruits. allégé en matière grasse | D197: 100 | E197: 391 | F197: 8.8 | G197: 4.69 | H197: 75.3 | I197: 7.2 | J197: 0 | K197: 36.1 | L197: 3 | M197: 0 | N197: 1 | O197: 0 | P197: 0 | Q197: 2.82 | R197: 2.74 | S197: 1.33 | T197: 0 | U197: 0 | V197: 0 | W197: 0 | X197: 0.014 | Y197: 0.057 | Z197: 2.38 | AA197: 0.31 | AB197: 2.74 | AC197: 0 | AD197: 0.14 | AE197: 0 | AF197: 0 | AG197: 0 | AH197: 13 | AI197: 0.58 | AJ197: 59 | AK197: 206 | AL197: < 1 | AM197: < 1 | AN197: < 10 | AO197: 15.6 | AP197: < 1 | AQ197: 94 | AR197: 152 | AS197: < 3 | AT197: 230 | AU197: < 1 | AV197: < 2 | AW197: < 50 | AX197: < 0.2 | AY197: 3.2 | AZ197: 0 | BA197: 0 | BB197: 0 | BC197: 0.2 | BD197: 0.05 | BE197: < 0.05 | BF197: 0.45 | BG197: < 0.05 | BH197: 49.6 | BI197: 0.35
A198: 373 | B198: biscuits sucrés | C198: Biscuit sec fourré fruits à coque (non ou légèrement chocolaté) | D198: 100 | E198: 501 | F198: 2 | G198: 6.45 | H198: 63.9 | I198: 23.7 | J198: 29.2 | K198: 0 | L198: 3.35 | M198: 0 | N198: 0.67 | O198: 0 | P198: 0 | Q198: 14.3 | R198: 6.31 | S198: 1.96 | T198: 0 | U198: 0 | V198: 0 | W198: 0 | X198: 0 | Y198: 0 | Z198: 0 | AA198: 0 | AB198: 0 | AC198: 0 | AD198: 0.8 | AE198: 0 | AF198: 0 | AG198: 0 | AH198: 0 | AI198: 0.53 | AJ198: 0 | AK198: 0 | AL198: 0 | AM198: 0 | AN198: 0 | AO198: 0 | AP198: 0 | AQ198: 134 | AR198: 0 | AS198: 0 | AT198: 212 | AU198: 0 | AV198: 0 | AW198: 0 | AX198: 0 | AY198: 0 | AZ198: 0 | BA198: 0 | BB198: 0 | BC198: 0 | BD198: 0 | BE198: 0 | BF198: 0 | BG198: 0 | BH198: 0 | BI198: 0
A199: 399 | B199: biscuits sucrés | C199: Biscuit sec nappé aux fruits. tartelette | D199: 100 | E199: 436 | F199: 6.84 | G199: 4.7 | H199: 71.3 | I199: 14.2 | J199: 32.7 | K199: 30.1 | L199: 2.27 | M199: 0 | N199: 0.69 | O199: 0 | P199: 0 | Q199: 7.98 | R199: 4.75 | S199: 1.34 | T199: 0.11 | U199: 0.067 | V199: 0.15 | W199: 0.15 | X199: 0.66 | Y199: 0.57 | Z199: 5.46 | AA199: 0.68 | AB199: 4.33 | AC199: 1.29 | AD199: 0.038 | AE199: 0.0043 | AF199: < 0.005 | AG199: < 0.005 | AH199: 0 | AI199: 0.37 | AJ199: 0 | AK199: 0 | AL199: 0 | AM199: 0 | AN199: 0 | AO199: 0 | AP199: 0 | AQ199: 0 | AR199: 70 | AS199: 0 | AT199: 146 | AU199: 0 | AV199: 0 | AW199: 0 | AX199: 0 | AY199: 0 | AZ199: 0 | BA199: 0 | BB199: 0 | BC199: 0 | BD199: 0 | BE199: 0 | BF199: 0 | BG199: 0 | BH199: 0 | BI199: 0
A200: 345 | B200: biscuits sucrés | C200: Biscuit sec nature | D200: 100 | E200: 447 | F200: 4.35 | G200: 6.77 | H200: 69.7 | I200: 15.1 | J200: 23.6 | K200: 32 | L200: 2.81 | M200: 0 | N200: 1.32 | O200: 0 | P200: 0 | Q200: 6.81 | R200: 5.56 | S200: 2.06 | T200: 0 | U200: 0 | V200: 0 | W200: 0.48 | X200: 0 | Y200: 0.067 | Z200: 1.8 | AA200: 1.59 | AB200: 5.56 | AC200: 1.86 | AD200: 0.16 | AE200: 0 | AF200: 0 | AG200: 0 | AH200: 3 | AI200: 0.84 | AJ200: 39.5 | AK200: 0 | AL200: 0.1 | AM200: 2.12 | AN200: 1.9 | AO200: 15.3 | AP200: 0.47 | AQ200: 150 | AR200: 125 | AS200: < 2.2 | AT200: 334 | AU200: 0.47 | AV200: 0 | AW200: 0 | AX200: 0 | AY200: 0.26 | AZ200: 5.9 | BA200: 0 | BB200: 0 | BC200: 0.2 | BD200: 0.19 | BE200: 2.34 | BF200: 0.39 | BG200: 0.049 | BH200: 14.9 | BI200: 0.05
... 925 more rows

Sheet Calculs
A1: iD | B1: Aliments | C1: Poids (en g) | D1: Calories | E1: Protéines | F1: Glucides | G1: Lipides | I1: =Calculs!$J$3 -> 1794.985
A2: 2736 | B2: Croissant au beurre. artisanal | C2: 50 | D2: =SLFRM -> 212 | E2: =SLFRP -> 3.55 | F2: =SLFRG -> 21.6 | G2: =SLFRL -> 11.65 | I2: =NbCible -J3 -> 47.01752318
A3: 1472 | B3: Lait demi-écrémé. UHT | C3: 300 | D3: =SLFRM -> 137.4 | E3: =SLFRP -> 9.84 | F3: =SLFRG -> 14.4 | G3: =SLFRL -> 4.59 | I3: Valeurs en cours | J3: =SUBTOTAL(109,TCal) -> 1794.985 | K3: =SUBTOTAL(109,TPro) -> 94.4035 | L3: =SUBTOTAL(109,TGlu) -> 144.157 | M3: =SUBTOTAL(109,TLip) -> 87.674
A4: 1633 | B4: Macédoine de légumes. appertisée. égouttée | C4: 30 | D4: =SLFRM -> 12.18 | E4: =SLFRP -> 0.714 | F4: =SLFRG -> 1.677 | G4: =SLFRL -> 0.084
A5: 1402 | B5: Jambon cuit. choix | C5: 50 | D5: =SLFRM -> 62.5 | E5: =SLFRP -> 9.75 | F5: =SLFRG -> 0.85 | G5: =SLFRL -> 2.25
A6: 2600 | B6: Mayonnaise (70% MG min.) | C6: 15 | D6: =SLFRM -> 104.4 | E6: =SLFRP -> 0.204 | F6: =SLFRG -> 0.393 | G6: =SLFRL -> 11.28
A7: 2420 | B7: Poulet. cuisse. viande et peau. rôtie/cuite au four | C7: 150 | D7: =SLFRM -> 319.5 | E7: =SLFRP -> 38.85 | F7: =SLFRG -> 3 | G7: =SLFRL -> 16.95
A8: 2368 | B8: Frites de pommes de terre. surgelées. pour cuisson en friteuse | C8: 100 | D8: =SLFRM -> 244 | E8: =SLFRP -> 3.12 | F8: =SLFRG -> 29.1 | G8: =SLFRL -> 12.1
A9: 961 | B9: Camembert au lait cru | C9: 50 | D9: =SLFRM -> 133.5 | E9: =SLFRP -> 10.35 | F9: =SLFRG -> 0 | G9: =SLFRL -> 10.15
A10: 1149 | B10: Fraise. crue | C10: 125 | D10: =SLFRM -> 43.625 | E10: =SLFRP -> 0.8125 | F10: =SLFRG -> 7.675 | G10: =SLFRL -> 0.225
A11: 1503 | B11: Endive. crue | C11: 100 | D11: =SLFRM -> 20.8 | E11: =SLFRP -> 1.1 | F11: =SLFRG -> 3.15 | G11: =SLFRL -> 0.2
A12: 2673 | B12: Soupe de poissons et / ou crustacés. préemballée à réchauffer | C12: 250 | D12: =SLFRM -> 107 | E12: =SLFRP -> 8.625 | F12: =SLFRG -> 7.2 | G12: =SLFRL -> 4.475
A13: 1245 | B13: Flan pâtissier aux oeufs ou à la parisienne | C13: 200 | D13: =SLFRM -> 300 | E13: =SLFRP -> 7.38 | F13: =SLFRG -> 54.2 | G13: =SLFRL -> 3.24
A14: 2605 | B14: Sauce vinaigrette (50 à 75% d'huile). préemballée | C14: 20 | D14: =SLFRM -> 98.08 | E14: =SLFRP -> 0.108 | F14: =SLFRG -> 0.912 | G14: =SLFRL -> 10.48
